Supplier ID,Invoice ID,Supplier Name,Paid Date,Subjective Code,Subjective Name,Service Area,Cost Centre Name,Invoiced
6807,3122477,2SIMPLE SOFTWARE LTD,27/05/2014,45433,ECDL Courseware Hosting,Childrens Services,Admin IT (Schools),"1,110.00"
6807,3125870,2SIMPLE SOFTWARE LTD,29/05/2014,45433,ECDL Courseware Hosting,Childrens Services,Admin IT (Schools),"1,110.00"
6807,3113143,2SIMPLE SOFTWARE LTD,19/05/2014,45433,ECDL Courseware Hosting,Childrens Services,Admin IT (Schools),"20,500.00"
2109299,3104960,62 Wright Street#Mencap,06/05/2014,54301,Residential Provision,Adult Services,LD Purchaser Residential Care,"22,127.20"
2109302,3104961,7 Crawford Street#Mencap,06/05/2014,54301,Residential Provision,Adult Services,LD Purchaser Residential Care,"19,281.60"
239811,3117463,A1 STEAM CLEANING & RECOVERY,22/05/2014,52200,Contracted Services,Environmental Services,Transport Support Service,920.00
6055,3104864,ABAFIELDS RESIDENTIAL HOME,06/05/2014,Z6011,Z6011 - CR Bal Hold A/c Exp,Adult Services,ADZ1201 - 3rd Party Social Care Contributions,889.26
6055,3104864,ABAFIELDS RESIDENTIAL HOME,06/05/2014,54301,Residential Provision,Adult Services,LD Purchaser Residential Care,"3,000.16"
6055,3104864,ABAFIELDS RESIDENTIAL HOME,06/05/2014,54301,Residential Provision,Adult Services,OA  External Provision Residential,"27,814.06"
2348298,3104978,ABBEY HEALTHCARE (FARNWORTH) LIMITED,06/05/2014,Z6011,Z6011 - CR Bal Hold A/c Exp,Adult Services,ADZ0802 - Health - Funded Nursing Care,"2,149.69"
2348298,3104978,ABBEY HEALTHCARE (FARNWORTH) LIMITED,06/05/2014,54301,Residential Provision,Adult Services,MH Residential External Provision,"1,589.08"
2348298,3104978,ABBEY HEALTHCARE (FARNWORTH) LIMITED,06/05/2014,54301,Residential Provision,Adult Services,OA  External Provision Residential,"43,302.43"
2348298,3104978,ABBEY HEALTHCARE (FARNWORTH) LIMITED,06/05/2014,54302,Nursing Provision,Adult Services,OA  External Provision Residential,"9,025.87"
2341303,3104975,ABBEYCLIFFE RESIDENTIAL CARE HOME,06/05/2014,54301,Residential Provision,Adult Services,OA  External Provision Residential,"4,942.56"
6894,3104904,ABBEYDALE RESIDENTIAL CARE HOME,06/05/2014,54301,Residential Provision,Adult Services,OA  External Provision Residential,"1,647.52"
6895,3104887,ABBEYWOOD TOTTINGTON LTD,06/05/2014,54301,Residential Provision,Adult Services,OA  External Provision Residential,"5,884.00"
6916,3117838,ACCESS DOORS SYSTEMS LTD,22/05/2014,20100,Day To Day Maintenance,Environmental Services,Markets  Rent Account,630.00
156135,3118045,ACCESS TO CARE LTD,22/05/2014,52000,Vol Assoc Grants  General,Childrens Services,Res Serv Agency Placements,850.00
156135,3118052,ACCESS TO CARE LTD,22/05/2014,52000,Vol Assoc Grants  General,Childrens Services,Res Serv Agency Placements,850.00
156135,3111385,ACCESS TO CARE LTD,12/05/2014,52000,Vol Assoc Grants  General,Childrens Services,Res Serv Agency Placements,850.00
156135,3111445,ACCESS TO CARE LTD,12/05/2014,52000,Vol Assoc Grants  General,Childrens Services,Res Serv Agency Placements,850.00
156135,3111451,ACCESS TO CARE LTD,12/05/2014,52000,Vol Assoc Grants  General,Childrens Services,Res Serv Agency Placements,850.00
156135,3111455,ACCESS TO CARE LTD,12/05/2014,52000,Vol Assoc Grants  General,Childrens Services,Res Serv Agency Placements,850.00
156135,3111468,ACCESS TO CARE LTD,12/05/2014,52000,Vol Assoc Grants  General,Childrens Services,Res Serv Agency Placements,850.00
156135,3111471,ACCESS TO CARE LTD,12/05/2014,52000,Vol Assoc Grants  General,Childrens Services,Res Serv Agency Placements,850.00
156135,3111473,ACCESS TO CARE LTD,12/05/2014,52000,Vol Assoc Grants  General,Childrens Services,Res Serv Agency Placements,850.00
156135,3118056,ACCESS TO CARE LTD,22/05/2014,52000,Vol Assoc Grants  General,Childrens Services,Res Serv Agency Placements,850.00
156135,3118065,ACCESS TO CARE LTD,22/05/2014,52000,Vol Assoc Grants  General,Childrens Services,Res Serv Agency Placements,850.00
156135,3118068,ACCESS TO CARE LTD,22/05/2014,52000,Vol Assoc Grants  General,Childrens Services,Res Serv Agency Placements,850.00
156135,3118073,ACCESS TO CARE LTD,22/05/2014,52000,Vol Assoc Grants  General,Childrens Services,Res Serv Agency Placements,850.00
156135,3111383,ACCESS TO CARE LTD,12/05/2014,52000,Vol Assoc Grants  General,Childrens Services,Res Serv Agency Placements,850.00
156135,3111442,ACCESS TO CARE LTD,12/05/2014,52000,Vol Assoc Grants  General,Childrens Services,Res Serv Agency Placements,850.00
156135,3111448,ACCESS TO CARE LTD,12/05/2014,52000,Vol Assoc Grants  General,Childrens Services,Res Serv Agency Placements,850.00
156135,3111465,ACCESS TO CARE LTD,12/05/2014,52000,Vol Assoc Grants  General,Childrens Services,Res Serv Agency Placements,850.00
156135,3111470,ACCESS TO CARE LTD,12/05/2014,52000,Vol Assoc Grants  General,Childrens Services,Res Serv Agency Placements,850.00
156135,3111476,ACCESS TO CARE LTD,12/05/2014,52000,Vol Assoc Grants  General,Childrens Services,Res Serv Agency Placements,850.00
1951294,3114894,ACORN HOUSE FOSTERING SERVICES,19/05/2014,52000,Vol Assoc Grants  General,Childrens Services,Res Serv Agency Placements,"3,642.30"
959,3104889,ACORNS CARE CENTRE,06/05/2014,54302,Nursing Provision,Adult Services,OA  External Provision Residential,"1,494.08"
101393,3115936,ADAMS SELFSTORE,19/05/2014,22006,Rent of Storage Facilities,Chief Executives,CX67260 - Museum Premises,588.75
2221292,3104966,ADLINGTON MANOR,06/05/2014,54302,Nursing Provision,Adult Services,OA  External Provision Residential,"1,868.40"
245759,3125712,ADVANCED BUILDING (NW) LTD,29/05/2014,Z6008,Expense AP Accrual,Bolton MBC Balance Sheet,Bolton MBC Balance Sheet,885.00
245759,3125714,ADVANCED BUILDING (NW) LTD,29/05/2014,Z6008,Expense AP Accrual,Bolton MBC Balance Sheet,Bolton MBC Balance Sheet,530.00
245759,3111487,ADVANCED BUILDING (NW) LTD,12/05/2014,52200,Contracted Services,Housing GRF,Benjamin Court Accommodation,660.00
2283290,3125791,ADVANCED CHILDCARE LIMITED,29/05/2014,52000,Vol Assoc Grants  General,Childrens Services,Res Serv Agency Placements,"15,500.00"
2283290,3125807,ADVANCED CHILDCARE LIMITED,29/05/2014,52000,Vol Assoc Grants  General,Childrens Services,Res Serv Agency Placements,"12,838.34"
2283290,3125946,ADVANCED CHILDCARE LIMITED,29/05/2014,52000,Vol Assoc Grants  General,Childrens Services,Res Serv Agency Placements,"1,277.51"
2055299,3125619,AEBI SCHMIDT UK LTD,29/05/2014,52200,Contracted Services,Environmental Services,Transport Support Service,723.33
2052291,3105077,AGGREGATE INDUSTRIES UK LIMITED,06/05/2014,Z6011,Z6011 - CR Bal Hold A/c Exp,Environmental Services,Environmental Services Balance sheet,"3,032.36"
871655,3121013,AGILISYS LIMITED,22/05/2014,Z5211,Z5211 - Debit Bal Holding A/c Exp,Finance Department,FNZ8021 - Fin. Dept. - ICT Supplies Suspense,"14,757.53"
871655,3110503,AGILISYS LIMITED,12/05/2014,45401,Computer Maintenance,Childrens Services,Breightmet Outreach (Yth Srv),"2,065.81"
871655,3110501,AGILISYS LIMITED,12/05/2014,45102,Telephones  Installation,Chief Executives,CX58806 - Kcom Unified Comms,"188,533.34"
1772297,3107369,AGR BUILDING & FENCING CONTRACTORS LIMITED,08/05/2014,Z6008,Expense AP Accrual,Bolton MBC Balance Sheet,Bolton MBC Balance Sheet,502.00
6063,3116623,AGR CARE SERVICES,22/05/2014,52000,Vol Assoc Grants  General,Childrens Services,Res Serv Agency Placements,"10,400.00"
6063,3116626,AGR CARE SERVICES,22/05/2014,52000,Vol Assoc Grants  General,Childrens Services,Res Serv Agency Placements,"11,460.00"
6063,3116637,AGR CARE SERVICES,22/05/2014,52000,Vol Assoc Grants  General,Childrens Services,Res Serv Agency Placements,"11,160.00"
6063,3116642,AGR CARE SERVICES,22/05/2014,52000,Vol Assoc Grants  General,Childrens Services,Res Serv Agency Placements,"2,000.00"
6960,3121660,AIDAPT BATHROOMS LTD,27/05/2014,44051,Clients Aids & Adaptations,Adult Services,ICES,"1,973.90"
6064,3104894,AINSWORTH NURSING HOME,06/05/2014,54301,Residential Provision,Adult Services,MH Residential External Provision,"3,295.04"
6064,3104894,AINSWORTH NURSING HOME,06/05/2014,54302,Nursing Provision,Adult Services,MH Residential External Provision,"6,590.08"
6064,3104894,AINSWORTH NURSING HOME,06/05/2014,54302,Nursing Provision,Adult Services,OA  External Provision Residential,"1,647.52"
125827,3118411,ALBRIS BOOKS,27/05/2014,48509,Other Fees,Childrens Services,Admin Strategic Finance Unit,726.55
2473315,3117816,ALERE TOXICOLOGY PLC,22/05/2014,52200,Contracted Services,Adult Services,Drugs Pooled Treatment Budget,"1,677.00"
2473315,3116665,ALERE TOXICOLOGY PLC,22/05/2014,48509,Other Fees,Adult Services,Drugs Pooled Treatment Budget,635.00
2317297,3104972,ALEXANDER CARE HOME,06/05/2014,54301,Residential Provision,Adult Services,OA  External Provision Residential,"3,295.04"
2284331,3115548,REDACTED - PERSONAL DATA,19/05/2014,48509,Other Fees,Public Health,Get Active,"1,912.75"
146502,3116938,ALLIANCE DISPOSABLES LTD,29/05/2014,26000,Cleaning Materials,Environmental Services,Building Cleaning,516.78
146502,3113489,ALLIANCE DISPOSABLES LTD,19/05/2014,26000,Cleaning Materials,Environmental Services,Building Cleaning,515.19
146502,3113231,ALLIANCE DISPOSABLES LTD,15/05/2014,26001,Hygiene Requisite,Chief Executives,CX41000 - Admin Buildings Portfolio,"1,278.10"
146502,3113423,ALLIANCE DISPOSABLES LTD,19/05/2014,26002,Other Materials,Environmental Services,Building Cleaning,"1,630.00"
146502,3113487,ALLIANCE DISPOSABLES LTD,19/05/2014,26000,Cleaning Materials,Environmental Services,Building Cleaning,"1,740.00"
110901,3109388,ALLPAY.NET LTD,08/05/2014,48509,Other Fees,Finance Department,CSD Cashiers,533.75
110901,3109394,ALLPAY.NET LTD,08/05/2014,48509,Other Fees,Finance Department,CSD Cashiers,"2,958.49"
110901,3109396,ALLPAY.NET LTD,08/05/2014,48509,Other Fees,Finance Department,CSD Cashiers,"3,372.59"
1671329,3125792,ALLSTAR BUSINESS SOLUTIONS,29/05/2014,31301,Vehicle Fuel,Environmental Services,Activities and Operations,"11,105.21"
1671329,3125792,ALLSTAR BUSINESS SOLUTIONS,29/05/2014,31301,Vehicle Fuel,Environmental Services,Highway Works  Unallocated Costs,"2,411.83"
1671329,3125792,ALLSTAR BUSINESS SOLUTIONS,29/05/2014,31301,Vehicle Fuel,Adult Services,ICES,506.34
1671329,3125792,ALLSTAR BUSINESS SOLUTIONS,29/05/2014,31301,Vehicle Fuel,Environmental Services,SNT Childrens Servs,"2,626.58"
1671329,3125792,ALLSTAR BUSINESS SOLUTIONS,29/05/2014,31301,Vehicle Fuel,Environmental Services,Vulnerable Persons Transport,"2,421.95"
1671329,3125792,ALLSTAR BUSINESS SOLUTIONS,29/05/2014,31301,Vehicle Fuel,Environmental Services,Waste,"25,033.35"
1671329,3110468,ALLSTAR BUSINESS SOLUTIONS,12/05/2014,31301,Vehicle Fuel,Environmental Services,Activities and Operations,"10,349.61"
1671329,3110468,ALLSTAR BUSINESS SOLUTIONS,12/05/2014,31301,Vehicle Fuel,Environmental Services,Highway Works  Unallocated Costs,"2,000.58"
1671329,3110468,ALLSTAR BUSINESS SOLUTIONS,12/05/2014,31301,Vehicle Fuel,Environmental Services,SNT Childrens Servs,857.77
1671329,3110468,ALLSTAR BUSINESS SOLUTIONS,12/05/2014,31301,Vehicle Fuel,Environmental Services,Vulnerable Persons Transport,"2,959.28"
1671329,3110468,ALLSTAR BUSINESS SOLUTIONS,12/05/2014,31301,Vehicle Fuel,Environmental Services,Waste,"24,756.32"
1671329,3105175,ALLSTAR BUSINESS SOLUTIONS,06/05/2014,31301,Vehicle Fuel,Environmental Services,Activities and Operations,"10,286.48"
1671329,3105175,ALLSTAR BUSINESS SOLUTIONS,06/05/2014,31301,Vehicle Fuel,Environmental Services,Highway Works  Unallocated Costs,"3,480.57"
1671329,3105175,ALLSTAR BUSINESS SOLUTIONS,06/05/2014,31301,Vehicle Fuel,Adult Services,ICES,580.96
1671329,3105175,ALLSTAR BUSINESS SOLUTIONS,06/05/2014,31301,Vehicle Fuel,Environmental Services,SNT Childrens Servs,"2,391.97"
1671329,3105175,ALLSTAR BUSINESS SOLUTIONS,06/05/2014,31301,Vehicle Fuel,Environmental Services,Vulnerable Persons Transport,"3,099.53"
1671329,3105175,ALLSTAR BUSINESS SOLUTIONS,06/05/2014,31301,Vehicle Fuel,Environmental Services,Waste,"24,510.18"
25274,3111551,ALSECURE GROUP LTD,15/05/2014,44401,Other Security Expenses,Housing GRF,Benjamin Court Accommodation,839.16
25274,3111558,ALSECURE GROUP LTD,12/05/2014,44401,Other Security Expenses,Housing GRF,Benjamin Court Accommodation,"1,078.92"
25274,3111561,ALSECURE GROUP LTD,29/05/2014,44401,Other Security Expenses,Housing GRF,Benjamin Court Accommodation,839.16
265470,3116611,AMIX RMC PLANT LTD,29/05/2014,40601,General Materials,Environmental Services,Activities and Operations,538.00
6077,3116416,ANCHOR TRUST#2,19/05/2014,52200,Contracted Services,Adult Services,Supporting People  Capital Financing,"9,215.71"
6077,3116418,ANCHOR TRUST#2,19/05/2014,52200,Contracted Services,Adult Services,Supporting People  Capital Financing,"6,625.58"
6079,3115848,ANIMAL WARDENS,19/05/2014,52200,Contracted Services,Environmental Services,Activities and Operations,796.00
2246414,3104968,ANSAR PROJECTS,06/05/2014,54301,Residential Provision,Adult Services,MH Residential External Provision,"4,536.00"
6082,3116491,Anthony Axford Ltd,19/05/2014,44051,Clients Aids & Adaptations,Adult Services,ICES,708.68
162510,3125422,APH COMPUTERS LTD,27/05/2014,45431,Computer Software Licences,Environmental Services,Catering,"1,176.00"
114124,3115940,AQUA-SAVE,19/05/2014,Z6008,Expense AP Accrual,Bolton MBC Balance Sheet,Bolton MBC Balance Sheet,655.20
114124,3115937,AQUA-SAVE,19/05/2014,Z6008,Expense AP Accrual,Bolton MBC Balance Sheet,Bolton MBC Balance Sheet,561.60
259116,3116859,ARCH INITIATIVES,22/05/2014,52200,Contracted Services,Adult Services,Drugs Pooled Treatment Budget,"55,750.00"
259116,3116862,ARCH INITIATIVES,22/05/2014,52200,Contracted Services,Adult Services,Drugs Pooled Treatment Budget,"55,750.00"
259116,3116865,ARCH INITIATIVES,22/05/2014,52200,Contracted Services,Adult Services,Drugs Pooled Treatment Budget,"55,750.00"
6089,3125861,ARCO LIMITED,29/05/2014,Z6007,Z6007 - Inventory AP Accrual,Highways,Stores,669.60
6089,3105245,ARCO LIMITED,06/05/2014,42000,Clothing,Environmental Services,Highway Management,593.27
2491295,3108336,Ardencom Limited,08/05/2014,45100,Telephones Direct Rental,Environmental Services,Markets  Rent Account,711.96
223606,3108437,ASDA BUSINESS REWARDS,08/05/2014,45914,Commissioning Worklessness,Development & Regen,The Work Programme,500.00
135180,3117654,ASH HIRE & SALES LTD,22/05/2014,33201,Transport Hire,Environmental Services,Depots,"1,012.00"
135180,3104368,ASH HIRE & SALES LTD,06/05/2014,40610,Direct Materials,Environmental Services,Depots,913.50
135180,3113579,ASH HIRE & SALES LTD,19/05/2014,Z6008,Expense AP Accrual,Bolton MBC Balance Sheet,Bolton MBC Balance Sheet,"1,145.50"
135180,3113579,ASH HIRE & SALES LTD,19/05/2014,20501,Engineering Work,Environmental Services,Highway Services,"1,190.75"
135180,3113581,ASH HIRE & SALES LTD,19/05/2014,20501,Engineering Work,Environmental Services,Highway Services,"1,468.75"
135180,3113581,ASH HIRE & SALES LTD,19/05/2014,20501,Engineering Work,Environmental Services,Highways Maintenance Billable Costs,883.75
69148,3125352,ASHDOWN SUPPLIES,27/05/2014,40610,Direct Materials,Environmental Services,Bereavement Services,960.64
2338498,3104974,ASHTREE HOUSE,06/05/2014,54301,Residential Provision,Adult Services,OA  External Provision Residential,"4,700.00"
6100,3116385,ASSOCIATED CLEANING CONTRACTORS,19/05/2014,26100,Window Cleaning,Chief Executives,CX43010 - Annual Charge Holding Account,"1,917.00"
6100,3117802,ASSOCIATED CLEANING CONTRACTORS,22/05/2014,26101,Contract Cleaning,Childrens Services,Technical Innovation Centre,"1,880.20"
6100,3126339,ASSOCIATED CLEANING CONTRACTORS,29/05/2014,Z6008,Expense AP Accrual,Bolton MBC Balance Sheet,Bolton MBC Balance Sheet,795.50
6100,3110016,ASSOCIATED CLEANING CONTRACTORS,12/05/2014,Z1051,Work in Progress Additions,Central Corporate,Corporate Property Balance Sheet,"1,195.00"
6100,3112642,ASSOCIATED CLEANING CONTRACTORS,15/05/2014,26000,Cleaning Materials,Housing GRF,Access & Advice Housing Options Centre,"1,037.00"
6100,3104548,ASSOCIATED CLEANING CONTRACTORS,06/05/2014,Z6008,Expense AP Accrual,Bolton MBC Balance Sheet,Bolton MBC Balance Sheet,864.75
2515336,3104996,ASTLEY GRANGE HOMES LIMITED,06/05/2014,Z6011,Z6011 - CR Bal Hold A/c Exp,Adult Services,ADZ0802 - Health - Funded Nursing Care,"1,780.64"
2515336,3104996,ASTLEY GRANGE HOMES LIMITED,06/05/2014,54302,Nursing Provision,Adult Services,OA  External Provision Residential,"6,662.72"
10192,3108397,AUTO TIME SYSTEMS NORTHERN LTD,08/05/2014,25000,Fixed Equipment Purchase,Environmental Services,SNT Other,"2,246.50"
6104,3116526,AUTOMATIC ALARMS LIMITED,29/05/2014,Z6008,Expense AP Accrual,Bolton MBC Balance Sheet,Bolton MBC Balance Sheet,"2,085.20"
6104,3116529,AUTOMATIC ALARMS LIMITED,19/05/2014,Z6008,Expense AP Accrual,Bolton MBC Balance Sheet,Bolton MBC Balance Sheet,570.07
6104,3121339,AUTOMATIC ALARMS LIMITED,22/05/2014,Z6008,Expense AP Accrual,Bolton MBC Balance Sheet,Bolton MBC Balance Sheet,"2,548.08"
6104,3121349,AUTOMATIC ALARMS LIMITED,22/05/2014,Z6008,Expense AP Accrual,Bolton MBC Balance Sheet,Bolton MBC Balance Sheet,889.69
6104,3108404,AUTOMATIC ALARMS LIMITED,08/05/2014,Z6008,Expense AP Accrual,Bolton MBC Balance Sheet,Bolton MBC Balance Sheet,"3,010.97"
6104,3108405,AUTOMATIC ALARMS LIMITED,08/05/2014,Z6008,Expense AP Accrual,Bolton MBC Balance Sheet,Bolton MBC Balance Sheet,"1,888.22"
6104,3108407,AUTOMATIC ALARMS LIMITED,08/05/2014,Z6008,Expense AP Accrual,Bolton MBC Balance Sheet,Bolton MBC Balance Sheet,"2,971.44"
14748,3124554,AVCO SYSTEMS LTD,27/05/2014,45431,Computer Software Licences,Childrens Services,Admin Info Mgemnt Unit,"6,500.00"
6107,3127225,B & M DAVIES (PLANT HIRE) LTD,29/05/2014,33202,Plant Hire,Environmental Services,Bereavement Services,560.50
6107,3117537,B & M DAVIES (PLANT HIRE) LTD,22/05/2014,40610,Direct Materials,Environmental Services,Depots,516.25
6107,3117453,B & M DAVIES (PLANT HIRE) LTD,22/05/2014,33202,Plant Hire,Environmental Services,Bereavement Services,935.50
6107,3113598,B & M DAVIES (PLANT HIRE) LTD,19/05/2014,Z6008,Expense AP Accrual,Bolton MBC Balance Sheet,Bolton MBC Balance Sheet,614.00
6107,3115352,B & M DAVIES (PLANT HIRE) LTD,19/05/2014,40102,Operational Equipment Rental,Environmental Services,Bereavement Services,557.50
6107,3115356,B & M DAVIES (PLANT HIRE) LTD,19/05/2014,33202,Plant Hire,Environmental Services,Bereavement Services,870.00
6107,3117563,B & M DAVIES (PLANT HIRE) LTD,22/05/2014,40601,General Materials,Environmental Services,Depots,525.00
6107,3111745,B & M DAVIES (PLANT HIRE) LTD,15/05/2014,Z6008,Expense AP Accrual,Bolton MBC Balance Sheet,Bolton MBC Balance Sheet,525.00
2387308,3104981,BAKEWELLS CARE HOME,06/05/2014,Z6011,Z6011 - CR Bal Hold A/c Exp,Adult Services,ADZ1201 - 3rd Party Social Care Contributions,"1,805.96"
2387308,3104981,BAKEWELLS CARE HOME,06/05/2014,54301,Residential Provision,Adult Services,OA  External Provision Residential,"18,020.36"
1651311,3104951,BANKFIELD,06/05/2014,54301,Residential Provision,Adult Services,OA  External Provision Residential,"3,461.23"
2552307,3104863,Barley Brook Care Home,06/05/2014,54301,Residential Provision,Adult Services,OA  External Provision Residential,"1,620.00"
125827,3120849,BARLOWS ELECTRICAL,27/05/2014,44061,Clients Temporary Accommodation,Housing GRF,Benjamin Court Accommodation,"1,291.20"
7298,3126727,BARNARDOS,29/05/2014,52200,Contracted Services,Childrens Services,Admin Commissioning,"13,140.00"
7298,3109901,BARNARDOS,12/05/2014,52000,Vol Assoc Grants  General,Childrens Services,Res Serv Agency Placements,"3,514.29"
39733,3104923,BEDFORD RESIDENTIAL NURSING CARE HOME,06/05/2014,54302,Nursing Provision,Adult Services,OA  External Provision Residential,"4,282.86"
247279,3104937,BEECHVILLE CARE HOME,06/05/2014,Z6011,Z6011 - CR Bal Hold A/c Exp,Adult Services,ADZ1201 - 3rd Party Social Care Contributions,"1,836.40"
247279,3104937,BEECHVILLE CARE HOME,06/05/2014,Z5211,Z5211 - Debit Bal Holding A/c Exp,Adult Services,ADZ1202 - Client Property Top Ups,909.88
247279,3104937,BEECHVILLE CARE HOME,06/05/2014,54301,Residential Provision,Adult Services,OA  External Provision Residential,"8,353.56"
185697,3116321,BELL GROUP UK,22/05/2014,Z6008,Expense AP Accrual,Bolton MBC Balance Sheet,Bolton MBC Balance Sheet,"1,395.00"
1552722,3104949,BELONG ATHERTON#EPH,06/05/2014,54302,Nursing Provision,Adult Services,MH Residential External Provision,"2,371.12"
1400014,3104947,BELONG WIGAN#EPH,06/05/2014,Z6011,Z6011 - CR Bal Hold A/c Exp,Adult Services,ADZ1201 - 3rd Party Social Care Contributions,707.32
1400014,3104947,BELONG WIGAN#EPH,06/05/2014,54301,Residential Provision,Adult Services,OA  External Provision Residential,"1,460.00"
532537,3117573,BENCHMARK BUILDING SUPPLIES LTD,29/05/2014,Z6007,Z6007 - Inventory AP Accrual,Highways,Stores,550.40
532537,3113552,BENCHMARK BUILDING SUPPLIES LTD,29/05/2014,Z1051,Work in Progress Additions,Development & Regen,Development & Regeneration Capital,748.80
532537,3104500,BENCHMARK BUILDING SUPPLIES LTD,06/05/2014,Z1051,Work in Progress Additions,Development & Regen,Development & Regeneration Capital,748.80
532537,3104502,BENCHMARK BUILDING SUPPLIES LTD,06/05/2014,Z1051,Work in Progress Additions,Development & Regen,Development & Regeneration Capital,748.80
532537,3105230,BENCHMARK BUILDING SUPPLIES LTD,06/05/2014,Z1051,Work in Progress Additions,Development & Regen,Development & Regeneration Capital,"1,048.32"
532537,3105302,BENCHMARK BUILDING SUPPLIES LTD,06/05/2014,Z1051,Work in Progress Additions,Development & Regen,Development & Regeneration Capital,"1,048.32"
2394295,3112459,BERENDSEN UK LTD#FORMERLY SUNLIGHT SERVICES GRP LTD,15/05/2014,42001,Uniforms,Environmental Services,Depots,529.06
2394295,3127266,BERENDSEN UK LTD#FORMERLY SUNLIGHT SERVICES GRP LTD,29/05/2014,42002,Laundry,Environmental Services,Transport Support Service,"1,288.42"
2387309,3104982,BERKELEY HOUSE,06/05/2014,54302,Nursing Provision,Adult Services,LD Purchaser Residential Care,"12,766.76"
66470,3126421,BERTRAM TRADING LTD#BERTRAM LIBRARY SERVICES,29/05/2014,40753,Book Fund Expenditure,Chief Executives,CX67420 - Libraries Info. Services,"4,875.28"
6126,3126530,BETHELL CONSTRUCTION LTD,29/05/2014,Z1051,Work in Progress Additions,Highways,Stores,922.05
6126,3113572,BETHELL CONSTRUCTION LTD,19/05/2014,20501,Engineering Work,Environmental Services,Highway Services,"3,499.20"
6126,3113573,BETHELL CONSTRUCTION LTD,19/05/2014,Z6008,Expense AP Accrual,Bolton MBC Balance Sheet,Bolton MBC Balance Sheet,"5,020.70"
6126,3114828,BETHELL CONSTRUCTION LTD,19/05/2014,Z6008,Expense AP Accrual,Bolton MBC Balance Sheet,Bolton MBC Balance Sheet,"3,383.64"
6126,3111441,BETHELL CONSTRUCTION LTD,12/05/2014,Z6008,Expense AP Accrual,Bolton MBC Balance Sheet,Bolton MBC Balance Sheet,"25,665.45"
6126,3113594,BETHELL CONSTRUCTION LTD,19/05/2014,Z6008,Expense AP Accrual,Bolton MBC Balance Sheet,Bolton MBC Balance Sheet,"4,016.56"
6126,3113596,BETHELL CONSTRUCTION LTD,19/05/2014,20501,Engineering Work,Environmental Services,Highway Services,"2,799.36"
6126,3109639,BETHELL CONSTRUCTION LTD,12/05/2014,20501,Engineering Work,Environmental Services,Highway Services,"2,799.36"
6126,3105282,BETHELL CONSTRUCTION LTD,06/05/2014,Z6008,Expense AP Accrual,Bolton MBC Balance Sheet,Bolton MBC Balance Sheet,"3,012.42"
2299297,3117054,BHA,22/05/2014,48509,Other Fees,Adult Services,AD Local Involvement Network,"14,240.90"
814638,3124451,BIRKDALE DESIGN LTD,27/05/2014,40150,Office Furniture Purchase,Housing GRF,Local Welfare Provision Pilot,573.04
814638,3124467,BIRKDALE DESIGN LTD,27/05/2014,40150,Office Furniture Purchase,Housing GRF,Local Welfare Provision Pilot,"1,058.72"
814638,3127355,BIRKDALE DESIGN LTD,29/05/2014,40150,Office Furniture Purchase,Housing GRF,Local Welfare Provision Pilot,541.84
814638,3116610,BIRKDALE DESIGN LTD,22/05/2014,40150,Office Furniture Purchase,Housing GRF,Furnished Tenancies,634.40
814638,3116615,BIRKDALE DESIGN LTD,22/05/2014,40150,Office Furniture Purchase,Housing GRF,Furnished Tenancies,634.40
814638,3116620,BIRKDALE DESIGN LTD,22/05/2014,40150,Office Furniture Purchase,Housing GRF,Furnished Tenancies,681.20
814638,3124143,BIRKDALE DESIGN LTD,27/05/2014,40150,Office Furniture Purchase,Housing GRF,Furnished Tenancies,859.04
814638,3124147,BIRKDALE DESIGN LTD,27/05/2014,40150,Office Furniture Purchase,Housing GRF,Furnished Tenancies,859.04
814638,3124448,BIRKDALE DESIGN LTD,27/05/2014,40150,Office Furniture Purchase,Housing GRF,Furnished Tenancies,774.80
814638,3116679,BIRKDALE DESIGN LTD,22/05/2014,40150,Office Furniture Purchase,Housing GRF,Local Welfare Provision Pilot,"1,227.20"
814638,3116687,BIRKDALE DESIGN LTD,22/05/2014,40150,Office Furniture Purchase,Housing GRF,Furnished Tenancies,774.80
814638,3116702,BIRKDALE DESIGN LTD,22/05/2014,40150,Office Furniture Purchase,Housing GRF,Furnished Tenancies,774.80
814638,3116705,BIRKDALE DESIGN LTD,22/05/2014,40150,Office Furniture Purchase,Housing GRF,Furnished Tenancies,634.40
814638,3112458,BIRKDALE DESIGN LTD,15/05/2014,40150,Office Furniture Purchase,Housing GRF,Furnished Tenancies,774.80
814638,3112460,BIRKDALE DESIGN LTD,15/05/2014,40150,Office Furniture Purchase,Housing GRF,Furnished Tenancies,634.40
814638,3112466,BIRKDALE DESIGN LTD,15/05/2014,40150,Office Furniture Purchase,Housing GRF,Furnished Tenancies,859.03
814638,3112275,BIRKDALE DESIGN LTD,15/05/2014,40150,Office Furniture Purchase,Housing GRF,Furnished Tenancies,774.80
814638,3112277,BIRKDALE DESIGN LTD,15/05/2014,40150,Office Furniture Purchase,Housing GRF,Furnished Tenancies,774.80
814638,3112278,BIRKDALE DESIGN LTD,15/05/2014,40150,Office Furniture Purchase,Housing GRF,Furnished Tenancies,728.00
814638,3112379,BIRKDALE DESIGN LTD,15/05/2014,40150,Office Furniture Purchase,Housing GRF,Local Welfare Provision Pilot,541.84
814638,3112395,BIRKDALE DESIGN LTD,15/05/2014,40150,Office Furniture Purchase,Housing GRF,Local Welfare Provision Pilot,573.04
814638,3116698,BIRKDALE DESIGN LTD,22/05/2014,40150,Office Furniture Purchase,Housing GRF,Furnished Tenancies,774.80
814638,3112553,BIRKDALE DESIGN LTD,15/05/2014,40150,Office Furniture Purchase,Housing GRF,Local Welfare Provision Pilot,943.28
814638,3112445,BIRKDALE DESIGN LTD,15/05/2014,40150,Office Furniture Purchase,Housing GRF,Furnished Tenancies,974.48
814638,3112452,BIRKDALE DESIGN LTD,15/05/2014,40150,Office Furniture Purchase,Housing GRF,Furnished Tenancies,774.80
814638,3112454,BIRKDALE DESIGN LTD,15/05/2014,40150,Office Furniture Purchase,Housing GRF,Furnished Tenancies,728.00
7948,3104895,BLACKROD HOUSE,06/05/2014,Z6011,Z6011 - CR Bal Hold A/c Exp,Adult Services,ADZ1201 - 3rd Party Social Care Contributions,651.05
7948,3104895,BLACKROD HOUSE,06/05/2014,54301,Residential Provision,Adult Services,MH Residential External Provision,"1,567.96"
7948,3104895,BLACKROD HOUSE,06/05/2014,54301,Residential Provision,Adult Services,OA  External Provision Residential,"16,781.83"
1919293,3113378,BLUEFORT SECURITY LIMITED,27/05/2014,45401,Computer Maintenance,Chief Executives,CX58800 - Corporate I.C.T.,"5,592.00"
2310301,3104729,BLUNDELL`S PHARMACY LTD,06/05/2014,45914,Commissioning Worklessness,Development & Regen,The Work Programme,750.00
38557,3109423,BOLTON & DISTRICT CITIZENS ADVICE BUREAU LTD,08/05/2014,47103,Miscellaneous Grants,Chief Executives,Voluntary Sector Grants,"43,218.00"
43938,3126672,BOLTON AT HOME#137,29/05/2014,45431,Computer Software Licences,Chief Executives,CX43002 - Projects,"1,914.86"
43938,3115745,BOLTON AT HOME#137,19/05/2014,93120,Refunds,Housing GRF,Benjamin Court Accommodation,"4,079.24"
43938,3115931,BOLTON AT HOME#137,19/05/2014,20100,Day To Day Maintenance,Housing GRF,Access & Advice Caravan Sites,584.28
43938,3115931,BOLTON AT HOME#137,19/05/2014,20100,Day To Day Maintenance,Housing GRF,Haulgh project,"9,962.71"
43938,3104733,BOLTON AT HOME#137,06/05/2014,Z1051,Work in Progress Additions,Housing GRF,Capital  General Fund,"184,024.64"
43938,3109316,BOLTON AT HOME#137,08/05/2014,Z1051,Work in Progress Additions,Development & Regen,Development & Regeneration Capital,"42,346.75"
43938,3126540,BOLTON AT HOME#137,29/05/2014,52210,Contracted Services  Rental Voids,Adult Services,LD Provider  Supported Housing,"2,801.16"
43938,3106364,BOLTON AT HOME#137,06/05/2014,52200,Contracted Services,Environmental Services,Waste,"9,926.93"
59503,3112237,BOLTON CARPET SERVICES LTD,15/05/2014,20100,Day To Day Maintenance,Childrens Services,Res Serv Maintenance,"1,239.38"
8990,3126605,BOLTON CARPET WAREHOUSE,29/05/2014,40150,Office Furniture Purchase,Housing GRF,Local Welfare Provision Pilot,759.10
8990,3117715,BOLTON CARPET WAREHOUSE,22/05/2014,40150,Office Furniture Purchase,Housing GRF,Local Welfare Provision Pilot,680.58
8990,3124562,BOLTON CARPET WAREHOUSE,27/05/2014,40150,Office Furniture Purchase,Housing GRF,Local Welfare Provision Pilot,680.58
8990,3124564,BOLTON CARPET WAREHOUSE,27/05/2014,40150,Office Furniture Purchase,Housing GRF,Local Welfare Provision Pilot,680.58
8990,3124566,BOLTON CARPET WAREHOUSE,27/05/2014,40150,Office Furniture Purchase,Housing GRF,Furnished Tenancies,622.89
8990,3117697,BOLTON CARPET WAREHOUSE,22/05/2014,40150,Office Furniture Purchase,Housing GRF,Local Welfare Provision Pilot,759.10
8990,3126377,BOLTON CARPET WAREHOUSE,29/05/2014,40150,Office Furniture Purchase,Housing GRF,Furnished Tenancies,507.70
8990,3126608,BOLTON CARPET WAREHOUSE,29/05/2014,40150,Office Furniture Purchase,Housing GRF,Local Welfare Provision Pilot,806.28
8990,3113617,BOLTON CARPET WAREHOUSE,19/05/2014,40150,Office Furniture Purchase,Housing GRF,Local Welfare Provision Pilot,759.10
8990,3113618,BOLTON CARPET WAREHOUSE,19/05/2014,40150,Office Furniture Purchase,Housing GRF,Local Welfare Provision Pilot,845.75
8990,3126355,BOLTON CARPET WAREHOUSE,29/05/2014,40150,Office Furniture Purchase,Housing GRF,Furnished Tenancies,680.58
8990,3126367,BOLTON CARPET WAREHOUSE,29/05/2014,40150,Office Furniture Purchase,Housing GRF,Furnished Tenancies,576.40
8990,3126381,BOLTON CARPET WAREHOUSE,29/05/2014,40150,Office Furniture Purchase,Housing GRF,Local Welfare Provision Pilot,680.58
8990,3124551,BOLTON CARPET WAREHOUSE,27/05/2014,40150,Office Furniture Purchase,Housing GRF,Local Welfare Provision Pilot,680.58
8990,3124567,BOLTON CARPET WAREHOUSE,27/05/2014,40150,Office Furniture Purchase,Housing GRF,Furnished Tenancies,680.58
8990,3126407,BOLTON CARPET WAREHOUSE,29/05/2014,40150,Office Furniture Purchase,Housing GRF,Local Welfare Provision Pilot,576.40
8990,3114800,BOLTON CARPET WAREHOUSE,19/05/2014,40150,Office Furniture Purchase,Housing GRF,Local Welfare Provision Pilot,759.10
8990,3126369,BOLTON CARPET WAREHOUSE,29/05/2014,40150,Office Furniture Purchase,Housing GRF,Furnished Tenancies,759.10
8990,3126384,BOLTON CARPET WAREHOUSE,29/05/2014,40150,Office Furniture Purchase,Housing GRF,Local Welfare Provision Pilot,680.58
8990,3126415,BOLTON CARPET WAREHOUSE,29/05/2014,40150,Office Furniture Purchase,Housing GRF,Local Welfare Provision Pilot,884.80
8990,3113389,BOLTON CARPET WAREHOUSE,15/05/2014,40150,Office Furniture Purchase,Housing GRF,Local Welfare Provision Pilot,680.58
8990,3126606,BOLTON CARPET WAREHOUSE,29/05/2014,40150,Office Furniture Purchase,Housing GRF,Local Welfare Provision Pilot,827.90
7436,3118167,Bolton College#Was Community College,23/05/2014,52200,Contracted Services,Development & Regen,Adult Education,"193,598.40"
7436,3116784,Bolton College#Was Community College,22/05/2014,48509,Other Fees,Childrens Services,CH84302 - Sec Sch Imp – Cluster Co-ordinator,"2,880.92"
16302,3109405,BOLTON COMMUNITY TRANSPORT & FURNITURE SERVICES#BCT & FS,08/05/2014,47103,Miscellaneous Grants,Chief Executives,Voluntary Sector Grants,"5,820.25"
2576377,3108357,Bolton Hindus' Age Inspiration Ltd#BHAI,08/05/2014,52200,Contracted Services,Adult Services,OA  Carers Grant,"3,750.00"
59203,3109418,Bolton Interfaith Council,08/05/2014,47103,Miscellaneous Grants,Chief Executives,Voluntary Sector Grants,"8,750.00"
7411,3115912,BOLTON LADS & GIRLS CLUB,19/05/2014,52200,Contracted Services,Childrens Services,Admin Commissioning,"41,623.00"
10016,3126494,BOLTON LITTLE THEATRE LTD,29/05/2014,Z6011,Z6011 - CR Bal Hold A/c Exp,Environmental Services,ENZ9001 - Venues,"3,668.00"
10016,3104783,BOLTON LITTLE THEATRE LTD,06/05/2014,Z6011,Z6011 - CR Bal Hold A/c Exp,Environmental Services,ENZ9001 - Venues,964.00
7418,3105280,BOLTON MIDDLEBROOK LEISURE TRUST,06/05/2014,79000,Election Expenses,Chief Executives,CX13104 - European Elections,"2,983.80"
16303,3109401,BOLTON SHOPMOBILITY#COMMUNITY CARE OPTIONS,08/05/2014,47103,Miscellaneous Grants,Chief Executives,Voluntary Sector Grants,"6,743.25"
6149,3108429,BOLTON STONE RESTORATION LTD,08/05/2014,Z6011,Z6011 - CR Bal Hold A/c Exp,Environmental Services,Environmental Services Balance sheet,"5,689.00"
6149,3108587,BOLTON STONE RESTORATION LTD,08/05/2014,Z6008,Expense AP Accrual,Bolton MBC Balance Sheet,Bolton MBC Balance Sheet,"3,630.00"
6149,3116316,BOLTON STONE RESTORATION LTD,19/05/2014,Z1051,Work in Progress Additions,Environmental Services,Environmental Services Balance sheet,"8,642.00"
10773,3126698,BOLTON SYMPHONY ORCHESTRA,29/05/2014,48501,Artistes Fees,Environmental Services,Albert Halls Entertainment,"1,116.00"
7463,3117988,BOLTON TREE & LANDSCAPE SERVICES LTD,29/05/2014,52200,Contracted Services,Environmental Services,Assets,"1,200.00"
2052,3113609,Bolton Under Fives Forum#BUFF,19/05/2014,52200,Contracted Services,Childrens Services,Admin Commissioning,"2,500.00"
6152,3118246,BOLTON WALL & FLOORING LTD,29/05/2014,Z6008,Expense AP Accrual,Bolton MBC Balance Sheet,Bolton MBC Balance Sheet,"2,780.00"
6152,3126413,BOLTON WALL & FLOORING LTD,29/05/2014,20101,Programmed Maint. Work,Environmental Services,Community Centres  Blackrod,"3,767.00"
8706,3125955,BOLTON WISE LTD#EATWISE#WISEWORKS#WISETRAINING (14-19)#STYLE WISE#MOJO TRUST,29/05/2014,48509,Other Fees,Environmental Services,Neighbourhood Management Programme,"1,275.54"
8706,3126787,BOLTON WISE LTD#EATWISE#WISEWORKS#WISETRAINING (14-19)#STYLE WISE#MOJO TRUST,29/05/2014,55700,Grant Funded Expenditure,Environmental Services,Community Safety,"4,889.33"
8706,3126788,BOLTON WISE LTD#EATWISE#WISEWORKS#WISETRAINING (14-19)#STYLE WISE#MOJO TRUST,29/05/2014,55700,Grant Funded Expenditure,Environmental Services,Community Safety,"1,825.73"
8706,3126669,BOLTON WISE LTD#EATWISE#WISEWORKS#WISETRAINING (14-19)#STYLE WISE#MOJO TRUST,29/05/2014,40100,Operational Equipment Purchase,Environmental Services,Community Safety,"3,787.16"
8706,3126785,BOLTON WISE LTD#EATWISE#WISEWORKS#WISETRAINING (14-19)#STYLE WISE#MOJO TRUST,29/05/2014,55700,Grant Funded Expenditure,Environmental Services,Community Safety,686.95
7465,3125930,BOLTON YOUNG PERSONS HOUSING SCHEME#BYPHS,29/05/2014,52000,Vol Assoc Grants  General,Childrens Services,Res Serv Agency Placements,995.20
7465,3118084,BOLTON YOUNG PERSONS HOUSING SCHEME#BYPHS,22/05/2014,52300,Client Support Costs,Childrens Services,Child Prot Leaving Care Team,527.16
7465,3118090,BOLTON YOUNG PERSONS HOUSING SCHEME#BYPHS,22/05/2014,52300,Client Support Costs,Childrens Services,Child Prot Leaving Care Team,869.86
7465,3117789,BOLTON YOUNG PERSONS HOUSING SCHEME#BYPHS,22/05/2014,52300,Client Support Costs,Childrens Services,Child Prot Leaving Care Team,516.13
7465,3117791,BOLTON YOUNG PERSONS HOUSING SCHEME#BYPHS,22/05/2014,52300,Client Support Costs,Childrens Services,Child Prot Leaving Care Team,938.21
7465,3125524,BOLTON YOUNG PERSONS HOUSING SCHEME#BYPHS,29/05/2014,52200,Contracted Services,Adult Services,Supporting People  Capital Financing,"116,331.75"
7465,3117787,BOLTON YOUNG PERSONS HOUSING SCHEME#BYPHS,22/05/2014,52300,Client Support Costs,Childrens Services,Child Prot Leaving Care Team,603.80
7465,3117790,BOLTON YOUNG PERSONS HOUSING SCHEME#BYPHS,22/05/2014,52300,Client Support Costs,Childrens Services,Child Prot Leaving Care Team,"1,147.45"
2490322,3126688,Border Signs & Graphix Ltd,29/05/2014,52200,Contracted Services,Environmental Services,Assets,"6,816.00"
7481,3117562,BRADSHAW SHEET METAL WORKS LTD,22/05/2014,31305,Vehicle Servicing,Environmental Services,Transport Support Service,"1,330.00"
125827,3119397,BRAKE BROTHERS LTD,27/05/2014,41101,Catering ProvisionsFood,Environmental Services,Catering,526.05
1548543,3104948,BRIDEOAKE CARE HOME,06/05/2014,54301,Residential Provision,Adult Services,OA  External Provision Residential,"1,620.00"
1475113,3116871,BRIGHT DIRECTION TRAINING LIMITED,22/05/2014,45914,Commissioning Worklessness,Development & Regen,The Work Programme,800.00
1475113,3116874,BRIGHT DIRECTION TRAINING LIMITED,22/05/2014,45914,Commissioning Worklessness,Development & Regen,The Work Programme,800.00
1475113,3125593,BRIGHT DIRECTION TRAINING LIMITED,29/05/2014,45915,Commissioning Skills,Development & Regen,The Work Programme,800.00
1475113,3125597,BRIGHT DIRECTION TRAINING LIMITED,29/05/2014,45915,Commissioning Skills,Development & Regen,The Work Programme,800.00
243438,3124015,BRIGHT INTERACTIVE LTD,27/05/2014,45431,Computer Software Licences,Chief Executives,CX24000 - Marketing Agency,"1,188.00"
2565318,3125397,Bristol Missing Link Ltd Next Link Housing Project,27/05/2014,55700,Grant Funded Expenditure,Environmental Services,Community Safety,"6,000.00"
20980,3115506,BRITISH GAS BUSINESS,19/05/2014,21200,Gas  General,Housing GRF,Benjamin Court Accommodation,"3,977.47"
20980,3105130,BRITISH GAS BUSINESS,06/05/2014,21100,Electricity  General,Chief Executives,CX41200 - Adult Social Care Portfolio,877.24
264233,3104941,BROOKFIELD RESIDENTIAL CARE HOME LTD,06/05/2014,54301,Residential Provision,Adult Services,MH Residential External Provision,"2,200.00"
7524,3104910,BROOKVALE,06/05/2014,54301,Residential Provision,Adult Services,LD Purchaser Residential Care,"7,138.64"
6169,3104907,BROTHERS OF CHARITY SERVICES,06/05/2014,54302,Nursing Provision,Adult Services,LD Purchaser Residential Care,"3,617.20"
6169,3112558,BROTHERS OF CHARITY SERVICES,15/05/2014,52200,Contracted Services,Adult Services,LD Purchaser Day Services,801.16
6169,3112558,BROTHERS OF CHARITY SERVICES,15/05/2014,52200,Contracted Services,Adult Services,LD Purchaser Domiciliary Care,937.44
6169,3112535,BROTHERS OF CHARITY SERVICES,15/05/2014,52200,Contracted Services,Adult Services,LD Purchaser Domiciliary Care,"2,124.40"
7528,3104884,BROUGHTON HOUSE#EPH,06/05/2014,54301,Residential Provision,Adult Services,OA  External Provision Residential,"3,053.92"
7528,3104884,BROUGHTON HOUSE#EPH,06/05/2014,54302,Nursing Provision,Adult Services,OA  External Provision Residential,"1,526.96"
7529,3104885,BROWFIELD RESIDENTIAL CARE HOME,06/05/2014,54301,Residential Provision,Adult Services,MH Residential External Provision,"4,920.72"
2118292,3127353,BS SUPPORT SERVICES LIMITED,29/05/2014,19103,Training Exp  In House,Childrens Services,Youth Offending Team,"2,060.45"
2130290,3108421,BSM PRINT LTD,08/05/2014,43001,Printing General,Environmental Services,Catering,510.00
14681,3115757,BT GLOBAL SERVICES,19/05/2014,54507,54507 - Carer Additional Costs,Adult Services,AD  IT,810.49
14681,3116315,BT GLOBAL SERVICES,19/05/2014,45407,Computer Peripherals,Adult Services,AD  IT,810.49
125827,3120012,BT GLOBAL SERVICES,27/05/2014,45102,Telephones  Installation,Childrens Services,Admin IT (Schools),"1,365.86"
6179,3116695,BURNT TREE GROUP,22/05/2014,33201,Transport Hire,Environmental Services,Transport Support Service,677.60
6179,3116703,BURNT TREE GROUP,22/05/2014,33201,Transport Hire,Environmental Services,Transport Support Service,501.60
6179,3116706,BURNT TREE GROUP,22/05/2014,33201,Transport Hire,Environmental Services,Transport Support Service,501.60
6179,3115839,BURNT TREE GROUP,19/05/2014,33201,Transport Hire,Environmental Services,Transport Support Service,501.60
6179,3115841,BURNT TREE GROUP,19/05/2014,33201,Transport Hire,Environmental Services,Transport Support Service,677.60
6179,3115842,BURNT TREE GROUP,19/05/2014,33201,Transport Hire,Environmental Services,Transport Support Service,677.60
6179,3115843,BURNT TREE GROUP,19/05/2014,33201,Transport Hire,Environmental Services,Transport Support Service,677.60
6179,3116363,BURNT TREE GROUP,19/05/2014,33201,Transport Hire,Environmental Services,Transport Support Service,677.60
2270301,3118223,Burwood Supply Ltd,22/05/2014,Z6007,Z6007 - Inventory AP Accrual,Highways,Stores,"2,300.00"
6180,3104354,Bury Council,06/05/2014,52200,Contracted Services,Adult Services,LD Purchaser Day Services,549.40
1551594,3125932,BY THE BRIDGE NORTH WEST,29/05/2014,52000,Vol Assoc Grants  General,Childrens Services,Res Serv Agency Placements,"3,826.29"
1551594,3125935,BY THE BRIDGE NORTH WEST,29/05/2014,52000,Vol Assoc Grants  General,Childrens Services,Res Serv Agency Placements,"4,185.00"
1551594,3125937,BY THE BRIDGE NORTH WEST,29/05/2014,52000,Vol Assoc Grants  General,Childrens Services,Res Serv Agency Placements,"3,794.05"
6182,3126791,C HORROCKS & SONS LTD,29/05/2014,Z6008,Expense AP Accrual,Bolton MBC Balance Sheet,Bolton MBC Balance Sheet,565.80
2267458,3125491,CAIS LTD,27/05/2014,54301,Residential Provision,Adult Services,Drugs Pooled Treatment Budget,690.00
2267458,3125489,CAIS LTD,27/05/2014,54301,Residential Provision,Adult Services,Drugs Pooled Treatment Budget,690.00
6191,3117391,CAPITA BUSINESS SERVICES LTD,22/05/2014,48509,Other Fees,Finance Department,Directorate,"5,000.00"
6196,3116617,CARE TODAY CHILDRENS SERVICE,22/05/2014,52000,Vol Assoc Grants  General,Childrens Services,Res Serv Agency Placements,"13,298.70"
63390,3116636,CARE UK HOMECARE#CARE UK (BOLTON),22/05/2014,52200,Contracted Services,Adult Services,OA  Home Care Services external provision,"51,713.85"
63390,3110647,CARE UK HOMECARE#CARE UK (BOLTON),12/05/2014,52200,Contracted Services,Adult Services,OA  Home Care Services external provision,"48,778.83"
212109,3117972,Careers Solutions,22/05/2014,52300,Client Support Costs,Childrens Services,Connexions PAs,"1,600.00"
78906,3112597,CAREWATCH (BOLTON),15/05/2014,52200,Contracted Services,Adult Services,OA  Home Care Services external provision,"45,024.57"
252578,3104938,CARR BANK HOUSE#REDACTED - PERSONAL DATA,06/05/2014,54301,Residential Provision,Adult Services,MH Residential External Provision,"1,568.68"
1321969,3105097,CDEC LIMITED,08/05/2014,40101,Operational Equipment Maint,Childrens Services,Admin IT (Schools),"1,000.00"
1321969,3105096,CDEC LIMITED,08/05/2014,40101,Operational Equipment Maint,Childrens Services,Admin IT (Schools),"6,707.00"
1321969,3105095,CDEC LIMITED,08/05/2014,40101,Operational Equipment Maint,Childrens Services,Admin IT (Schools),"66,790.70"
75516,3125371,CEMEX UK MATERIALS LTD,27/05/2014,Z6007,Z6007 - Inventory AP Accrual,Highways,Stores,"2,248.37"
75516,3117548,CEMEX UK MATERIALS LTD,22/05/2014,Z6007,Z6007 - Inventory AP Accrual,Highways,Stores,879.27
75516,3105078,CEMEX UK MATERIALS LTD,06/05/2014,Z6007,Z6007 - Inventory AP Accrual,Highways,Stores,855.44
75516,3117533,CEMEX UK MATERIALS LTD,22/05/2014,Z6007,Z6007 - Inventory AP Accrual,Highways,Stores,723.29
75516,3112145,CEMEX UK MATERIALS LTD,15/05/2014,Z6007,Z6007 - Inventory AP Accrual,Highways,Stores,715.00
75516,3105094,CEMEX UK MATERIALS LTD,06/05/2014,Z6007,Z6007 - Inventory AP Accrual,Highways,Stores,917.23
75516,3104415,CEMEX UK MATERIALS LTD,06/05/2014,Z6007,Z6007 - Inventory AP Accrual,Highways,Stores,936.34
75516,3104419,CEMEX UK MATERIALS LTD,06/05/2014,Z6007,Z6007 - Inventory AP Accrual,Highways,Stores,837.57
9175,3116449,CH Bolton Limited,19/05/2014,22002,Management Fee,Chief Executives,CX42000 - Castle Hill,"142,364.16"
13252,3112612,CHALLENGER SITE SERVICES,15/05/2014,52200,Contracted Services,Environmental Services,Assets,"1,344.00"
2552,3115748,CHARLTONS SWEEPER HIRE LTD,19/05/2014,Z6008,Expense AP Accrual,Bolton MBC Balance Sheet,Bolton MBC Balance Sheet,"1,000.00"
2552,3105002,CHARLTONS SWEEPER HIRE LTD,06/05/2014,Z6008,Expense AP Accrual,Bolton MBC Balance Sheet,Bolton MBC Balance Sheet,"1,750.00"
6205,3125649,CHASSIS & CAB SPECIALISTS,29/05/2014,52200,Contracted Services,Environmental Services,Transport Support Service,846.00
6205,3110459,CHASSIS & CAB SPECIALISTS,12/05/2014,52200,Contracted Services,Environmental Services,Transport Support Service,615.00
2556,3103625,Cheeky Monkeys Day Nursery,06/05/2014,48509,Other Fees,Childrens Services,Children and Family Supp Svs North,531.00
1048773,3127343,CHESHIRE CENTRE FOR INDEPENDENT LIVING,29/05/2014,53000,Private Contracted Services,Adult Services,STARS & ILS  North,"9,130.25"
1048773,3127341,CHESHIRE CENTRE FOR INDEPENDENT LIVING,29/05/2014,53000,Private Contracted Services,Adult Services,STARS & ILS  North,"9,027.00"
2605307,3118233,Chester House Residents Accounts#DWP,22/05/2014,Z6011,Z6011 - CR Bal Hold A/c Exp,Adult Services,ADZ1901 - Residents Savings A/C,872.35
2605313,3118245,Chester House Residents Accounts#John Brierley & Son Funeral Directors,22/05/2014,Z6011,Z6011 - CR Bal Hold A/c Exp,Adult Services,ADZ1901 - Residents Savings A/C,"3,299.00"
6131,3126365,CHILD ACTION NORTHWEST,29/05/2014,52000,Vol Assoc Grants  General,Childrens Services,Res Serv Agency Placements,"3,428.70"
6131,3126371,CHILD ACTION NORTHWEST,29/05/2014,52000,Vol Assoc Grants  General,Childrens Services,Res Serv Agency Placements,"3,000.00"
6131,3126373,CHILD ACTION NORTHWEST,29/05/2014,52000,Vol Assoc Grants  General,Childrens Services,Res Serv Agency Placements,"4,304.70"
6131,3118100,CHILD ACTION NORTHWEST,22/05/2014,52000,Vol Assoc Grants  General,Childrens Services,Youth Offending Team,"1,418.75"
191679,3104932,CHORLEY LODGE#ORCHARD CARE HOMES.COM LIMITED,06/05/2014,54301,Residential Provision,Adult Services,OA  External Provision Residential,"1,792.00"
2617,3108372,CHUBB ELECTRONIC SECURITY LTD,12/05/2014,Z6008,Expense AP Accrual,Bolton MBC Balance Sheet,Bolton MBC Balance Sheet,623.00
1646290,3126506,CHUBB FIRE & SECURITY LTD,29/05/2014,Z6008,Expense AP Accrual,Bolton MBC Balance Sheet,Bolton MBC Balance Sheet,623.00
1646290,3111889,CHUBB FIRE & SECURITY LTD,15/05/2014,Z6008,Expense AP Accrual,Bolton MBC Balance Sheet,Bolton MBC Balance Sheet,623.00
1646290,3116465,CHUBB FIRE & SECURITY LTD,19/05/2014,25102,Security Systems  Rental,Childrens Services,Music ServMusic Service general,686.49
1646290,3104492,CHUBB FIRE & SECURITY LTD,06/05/2014,Z6008,Expense AP Accrual,Bolton MBC Balance Sheet,Bolton MBC Balance Sheet,"1,040.00"
125827,3118312,CICELEY COMMERICAL BLACKBURN,27/05/2014,31305,Vehicle Servicing,Environmental Services,Transport Support Service,966.41
125827,3118323,CICELEY COMMERICAL BLACKBURN,27/05/2014,31305,Vehicle Servicing,Environmental Services,Transport Support Service,"1,710.59"
2030290,3105122,CIVILS & LINTELS#COOPER CLARKE#HENDRICKS LOVELL,06/05/2014,Z6007,Z6007 - Inventory AP Accrual,Highways,Stores,680.00
13180,3109699,CLEAR CHANNEL UK LIMITED#3,12/05/2014,48200,Advertising General,Environmental Services,Albert Halls Entertainment,"1,080.00"
70607,3121020,CLEMENT CLARKE INTERNATIONAL LTD,22/05/2014,44051,Clients Aids & Adaptations,Adult Services,ICES,"1,405.10"
125827,3118840,CLIFTON QUALITY MEATS,27/05/2014,41101,Catering ProvisionsFood,Environmental Services,Catering,604.51
130480,3112334,COHENS CHEMIST#GORGEMEAD LTD,15/05/2014,52200,Contracted Services,Adult Services,Drugs Pooled Treatment Budget,719.70
130480,3112336,COHENS CHEMIST#GORGEMEAD LTD,15/05/2014,52200,Contracted Services,Adult Services,Drugs Pooled Treatment Budget,890.20
130480,3109359,COHENS CHEMIST#GORGEMEAD LTD,08/05/2014,52200,Contracted Services,Public Health,Smoking,"1,036.26"
6216,3105111,COLAS LTD,06/05/2014,Z6007,Z6007 - Inventory AP Accrual,Highways,Stores,"3,775.86"
123269,3125475,COLE SECURITY SERVICES LTD#FACTOR BIBBY,27/05/2014,44401,Other Security Expenses,Chief Executives,CX59500 - C.R.M. Operations,850.70
123269,3112596,COLE SECURITY SERVICES LTD#FACTOR BIBBY,15/05/2014,44401,Other Security Expenses,Chief Executives,CX59500 - C.R.M. Operations,742.10
123269,3125471,COLE SECURITY SERVICES LTD#FACTOR BIBBY,27/05/2014,44401,Other Security Expenses,Chief Executives,CX59500 - C.R.M. Operations,905.00
123269,3105152,COLE SECURITY SERVICES LTD#FACTOR BIBBY,06/05/2014,44401,Other Security Expenses,Chief Executives,CX59500 - C.R.M. Operations,905.00
1796290,3117796,COLLETT TRANSPORT SERVICES LTD#SPECIALIST FLEET SERVICES,22/05/2014,33201,Transport Hire,Environmental Services,Transport Support Service,"3,960.00"
2675,3113568,COLOURS WHOLESALE FLOWERS,19/05/2014,40609,Horticultural Materials,Environmental Services,Heaton Fold,568.65
2521300,3113381,COMPLETE DEMOLITION LTD,15/05/2014,Z1051,Work in Progress Additions,Property Services,Corporate Property Capital Project Transfers to Other Projects,"29,426.57"
17386,3117698,CONCEPTS IN EDUCATION LTD,22/05/2014,48509,Other Fees,Childrens Services,Special Commissioning,742.50
1862301,3104953,CONISTON HOUSE CARE HOME,06/05/2014,54301,Residential Provision,Adult Services,OA  External Provision Residential,"6,760.00"
21285,3112179,CONSERVATION CONTRACTS NORTH WEST LTD,15/05/2014,52200,Contracted Services,Environmental Services,Assets,"2,424.60"
2048428,3110629,CONTOUR HOMES#73,12/05/2014,52210,Contracted Services  Rental Voids,Adult Services,LD Purchaser Supported Housing,"1,318.00"
2048428,3110630,CONTOUR HOMES#73,12/05/2014,52210,Contracted Services  Rental Voids,Adult Services,LD Purchaser Supported Housing,605.92
2048428,3110631,CONTOUR HOMES#73,12/05/2014,52210,Contracted Services  Rental Voids,Adult Services,LD Purchaser Supported Housing,953.12
2048428,3110632,CONTOUR HOMES#73,12/05/2014,52210,Contracted Services  Rental Voids,Adult Services,LD Purchaser Supported Housing,953.04
2048428,3110633,CONTOUR HOMES#73,12/05/2014,52210,Contracted Services  Rental Voids,Adult Services,PD Purchaser Supported Housing,"1,077.92"
8783,3112615,CO-OP FUNERAL SERVICES#THE CO-OPERATIVE FUNERALCARE,15/05/2014,52300,Client Support Costs,Childrens Services,Child Prot Leaving Care Team,"1,660.00"
6227,3104908,CORNERSTONE TRUST,06/05/2014,54301,Residential Provision,Adult Services,LD Purchaser Residential Care,"18,898.40"
125827,3120086,COUNTY COURT MANCHESTER,27/05/2014,48509,Other Fees,Chief Executives,CX11000 - Legal Services Trading Account,"4,930.00"
125827,3120085,COUNTY COURT MANCHESTER,27/05/2014,48509,Other Fees,Childrens Services,Management Team,"9,290.00"
125827,3120084,COUNTY COURT MANCHESTER,27/05/2014,48509,Other Fees,Childrens Services,Management Team,"4,490.00"
34651,3113291,CRANLEIGH DESIGN CONSULTANTS LTD,15/05/2014,Z6008,Expense AP Accrual,Bolton MBC Balance Sheet,Bolton MBC Balance Sheet,878.75
419294,3121584,CRAVEN ROOFING CONTRACTORS,27/05/2014,20101,Programmed Maint. Work,Property Services,Marsden Road(BASE),655.00
419294,3121585,CRAVEN ROOFING CONTRACTORS,27/05/2014,20101,Programmed Maint. Work,Property Services,Paderborn House,801.40
6233,3116645,CREATIVE SUPPORT LTD#3,22/05/2014,52200,Contracted Services,Adult Services,MH Residential External Provision,"2,025.00"
6233,3109464,CREATIVE SUPPORT LTD#3,12/05/2014,52200,Contracted Services,Adult Services,LD Purchaser Supported Housing,"32,102.23"
6233,3109465,CREATIVE SUPPORT LTD#3,12/05/2014,52200,Contracted Services,Adult Services,LD Purchaser Supported Housing,"39,912.92"
6233,3109466,CREATIVE SUPPORT LTD#3,12/05/2014,52200,Contracted Services,Adult Services,LD Purchaser Supported Housing,"26,735.80"
6233,3104437,CREATIVE SUPPORT LTD#3,06/05/2014,52200,Contracted Services,Adult Services,OA Extra Care Housing External Provision,"7,895.21"
6233,3104438,CREATIVE SUPPORT LTD#3,06/05/2014,52200,Contracted Services,Adult Services,OA Extra Care Housing External Provision,"11,418.38"
6233,3104439,CREATIVE SUPPORT LTD#3,06/05/2014,52200,Contracted Services,Adult Services,OA Extra Care Housing External Provision,"10,843.82"
6233,3104440,CREATIVE SUPPORT LTD#3,06/05/2014,52200,Contracted Services,Adult Services,OA Extra Care Housing External Provision,"11,305.67"
6233,3104441,CREATIVE SUPPORT LTD#3,06/05/2014,52200,Contracted Services,Adult Services,OA Extra Care Housing External Provision,"9,571.01"
2511617,3110646,CRG Limited#Homecare,12/05/2014,52200,Contracted Services,Adult Services,OA  Home Care Services external provision,"17,189.82"
2788,3125711,CROMWELL POLYTHENE LTD,29/05/2014,40100,Operational Equipment Purchase,Environmental Services,Trade Waste,518.48
125827,3118417,CURRYS ONLINE,27/05/2014,40610,Direct Materials,Childrens Services,Admin Strategic Finance Unit,699.99
242608,3124780,CYCLESCHEME.CO.UK,27/05/2014,31150,Cycle Purchase,Chief Executives,Cycle to Work Scheme,"2,997.89"
242608,3124782,CYCLESCHEME.CO.UK,27/05/2014,31150,Cycle Purchase,Chief Executives,Cycle to Work Scheme,"1,702.81"
242608,3107375,CYCLESCHEME.CO.UK,07/05/2014,31150,Cycle Purchase,Chief Executives,Cycle to Work Scheme,"1,399.70"
242608,3107373,CYCLESCHEME.CO.UK,07/05/2014,31150,Cycle Purchase,Chief Executives,Cycle to Work Scheme,"2,549.26"
1115807,3117462,DALEFIELD SURGERY#P82010,22/05/2014,52200,Contracted Services,Public Health,Sexual Health Improvement,"1,920.00"
1115807,3117466,DALEFIELD SURGERY#P82010,22/05/2014,52200,Contracted Services,Public Health,Sexual Health Improvement,708.00
302830,3126693,DATASPACE,29/05/2014,48506,Records Storage,Chief Executives,CX11000 - Legal Services Trading Account,832.34
302830,3124336,DATASPACE,27/05/2014,48506,Records Storage,Childrens Services,Business Support  Children Social Care,839.75
135695,3125603,DAVID DAVENPORT & CO,29/05/2014,40609,Horticultural Materials,Environmental Services,Heaton Fold,553.50
1576406,3109424,DAWN DAWSONS ACADEMY#DADS,08/05/2014,Z6011,Z6011 - CR Bal Hold A/c Exp,Environmental Services,ENZ9001 - Venues,"1,907.00"
111640,3113349,DBD MECHANICAL & ELECTRICAL BUILDING SERVICES,15/05/2014,Z1051,Work in Progress Additions,Environmental Services,Environmental Services Balance sheet,"1,741.81"
139082,3112343,DEANE PHARMACY#WILKINSON PHARMACY LTD,15/05/2014,52200,Contracted Services,Adult Services,Drugs Pooled Treatment Budget,511.50
6257,3121683,DEANE SECURITY#NOT DEANE ALARMS,27/05/2014,Z6007,Z6007 - Inventory AP Accrual,Highways,Stores,572.90
1645336,3116473,DEFENSIVE DRIVER TRAINING LTD,19/05/2014,19100,Training Exps Tuition Fees,Environmental Services,Transport Support Service,513.75
1645336,3113612,DEFENSIVE DRIVER TRAINING LTD,19/05/2014,19100,Training Exps Tuition Fees,Environmental Services,Transport Support Service,522.50
6259,3112788,DELL CORPORATION LTD,15/05/2014,45400,Computer Purchase,Childrens Services,Admin IT (Schools),"1,884.00"
2245290,3104967,DERBYSHIRE HAVEN CARE HOME,06/05/2014,54301,Residential Provision,Adult Services,OA  External Provision Residential,"1,660.36"
398011,3121876,DESIGN SURVEYING PARTNERSHIP LTD,27/05/2014,Z1051,Work in Progress Additions,Environmental Services,Environmental Services Balance sheet,"14,191.35"
2991,3125590,DESTITUTE ANIMAL SHELTER,29/05/2014,52200,Contracted Services,Environmental Services,Activities and Operations,542.50
192525,3112352,DIAMOND HEALTHCARE (NW) LTD#DERBY STREET PHARMACY,15/05/2014,52200,Contracted Services,Adult Services,Drugs Pooled Treatment Budget,"1,241.00"
2218304,3124363,DISCLOSURE AND BARRING SERVICE,27/05/2014,48528,CRB Checks  External,Environmental Services,Regulatory Services Licensing,"3,833.00"
2218304,3115861,DISCLOSURE AND BARRING SERVICE,19/05/2014,19400,Disclosure Monitoring,Chief Executives,CX21005 - HR - Corporate,"9,450.00"
241487,3104936,DOUGLAS BANK NURSING HOME#TUDOR BANK LTD,06/05/2014,54302,Nursing Provision,Adult Services,OA  External Provision Residential,"1,906.60"
72100,3104925,DOVE COURT RESIDENTIAL & NURSING HOME,06/05/2014,54301,Residential Provision,Adult Services,OA  External Provision Residential,"1,462.00"
3059,3116411,DOVE MARKETING,19/05/2014,44051,Clients Aids & Adaptations,Adult Services,ICES,677.00
231808,3104934,DOWNSHAW LODGE,06/05/2014,54302,Nursing Provision,Adult Services,OA  External Provision Residential,"1,903.78"
2164296,3110426,DR LOWE & PARTNERS#P82011,12/05/2014,52200,Contracted Services,Public Health,Sexual Health Improvement,"2,200.00"
2598340,3113251,Dr Nuala Bent#1,15/05/2014,54301,Residential Provision,Adult Services,OA  External Provision Residential,"1,106.92"
24798,3108440,DRAIN DOCTOR PLUMBING DRAINAGE INVESTIGATIONS & SOLUTIONS NW LTD,08/05/2014,Z6008,Expense AP Accrual,Bolton MBC Balance Sheet,Bolton MBC Balance Sheet,705.00
2318330,3117455,DRS ARIF CHOWDHURY PATEL#P82018,22/05/2014,52200,Contracted Services,Public Health,Sexual Health Improvement,"1,900.00"
216676,3126878,DRS DIRECT LTD#BIBBY FACTORS LEICESTER LIMITED,29/05/2014,55711,Medical Referees Fees,Chief Executives,CX21301 - Occ Health Holding Code,"1,000.00"
216676,3113017,DRS DIRECT LTD#BIBBY FACTORS LEICESTER LIMITED,15/05/2014,55711,Medical Referees Fees,Chief Executives,CX21301 - Occ Health Holding Code,900.00
1164807,3109907,DUTTON TECH CONSULTING#ANDREW DUTTON,12/05/2014,48509,Other Fees,Childrens Services,Technical Innovation Centre,"1,100.00"
1164807,3109908,DUTTON TECH CONSULTING#ANDREW DUTTON,12/05/2014,48509,Other Fees,Childrens Services,Technical Innovation Centre,"2,400.00"
6270,3115105,DUVAL SECURITY,19/05/2014,44401,Other Security Expenses,Environmental Services,Markets  Rent Account,"2,230.64"
3209,3117965,E N COXHEAD LTD,22/05/2014,40609,Horticultural Materials,Environmental Services,Heaton Fold,782.40
3209,3109944,E N COXHEAD LTD,29/05/2014,40609,Horticultural Materials,Environmental Services,Heaton Fold,553.20
21961,3124462,E.ON ENERGY#2,27/05/2014,21100,Electricity  General,Childrens Services,Crompton CC,"1,247.74"
6277,3116810,ECCLES CONSTRUCTION,22/05/2014,20103,Day To Day Maintenance Structural,Environmental Services,Assets,615.00
9564,3104914,ECCLESHOLME,06/05/2014,54301,Residential Provision,Adult Services,OA  External Provision Residential,"1,506.04"
10232,3117638,ECE CONSULTANCY LTD,22/05/2014,20500,R & M Cremators,Environmental Services,Bereavement Services,"1,050.00"
2582312,3114766,Eco Control Solutions Ltd,19/05/2014,Z1051,Work in Progress Additions,Central Corporate,Corporate Property Balance Sheet,"3,236.00"
798634,3108921,EDUCATION SUPPORT PROFESSIONALS,12/05/2014,53000,Private Contracted Services,Childrens Services,Admin IT (Schools),"2,709.00"
798634,3122479,EDUCATION SUPPORT PROFESSIONALS,27/05/2014,53000,Private Contracted Services,Childrens Services,Admin IT (Schools),"2,051.00"
2417,3112529,ELECTRICITY NORTH WEST LIMITED#UNITED UTILITIES ELECTRICITY SERVICES LTD,15/05/2014,20501,Engineering Work,Environmental Services,Highway Services,610.70
2570306,3115917,Elite Dress Agency Bolton Ltd,19/05/2014,55700,Grant Funded Expenditure,Development & Regen,Strategic Development,"4,216.30"
2570306,3126437,Elite Dress Agency Bolton Ltd,29/05/2014,55700,Grant Funded Expenditure,Development & Regen,Strategic Development,"5,784.24"
6635,3104900,ELLERSHAW HOUSE LTD,06/05/2014,54301,Residential Provision,Adult Services,LD Purchaser Residential Care,"9,098.36"
186816,3104931,ELLERSLIE COURT#VITALISE,06/05/2014,54301,Residential Provision,Adult Services,PD Purchaser Residential Care,"2,722.32"
8412,3126736,EMO OIL LTD#WAS SHELL OIL,29/05/2014,Z6007,Z6007 - Inventory AP Accrual,Highways,Stores,"2,035.44"
8412,3115332,EMO OIL LTD#WAS SHELL OIL,19/05/2014,31301,Vehicle Fuel,Environmental Services,Bereavement Services,747.36
14251,3125370,ENGINEERING SERVICE CO,27/05/2014,Z1051,Work in Progress Additions,Environmental Services,Environmental Services Balance sheet,979.00
14251,3113353,ENGINEERING SERVICE CO,15/05/2014,20300,Heating & Electrical Work,Development & Regen,The Leisure Trust,"1,677.00"
14251,3113362,ENGINEERING SERVICE CO,15/05/2014,20300,Heating & Electrical Work,Development & Regen,The Leisure Trust,762.00
390857,3117761,ENTERTAINMENT TRADE MGT AGENCIES LTD,22/05/2014,48501,Artistes Fees,Environmental Services,Albert Halls Entertainment,"1,044.12"
3325,3111374,ENVIRONMENT AGENCY,12/05/2014,22202,Sewerage & Env'mental Servs,Environmental Services,Bereavement Services,"2,052.00"
3325,3109415,ENVIRONMENT AGENCY,08/05/2014,22202,Sewerage & Env'mental Servs,Chief Executives,CX67220 - Hall I'th Wood Museum,684.00
266886,3113147,ERICA CARLETON,15/05/2014,48502,Legal Fees,Childrens Services,Management Team,720.00
2315304,3110444,EUKHOST LTD,12/05/2014,45400,Computer Purchase,Chief Executives,CX59501 - Web Team,"1,460.83"
2595312,3109928,Evolution Claims Ltd,12/05/2014,45914,Commissioning Worklessness,Development & Regen,The Work Programme,750.00
1330970,3126703,EXPRESS ELECTRICAL DISTRIBUTORS LTD#NEW COMPANY,29/05/2014,Z6007,Z6007 - Inventory AP Accrual,Highways,Stores,770.25
2526502,3110636,Exterion Media (UK) Limited,12/05/2014,48203,Marketing,Chief Executives,CX24002 - Marketing - Holding Code,"1,546.00"
2526502,3110637,Exterion Media (UK) Limited,12/05/2014,48203,Marketing,Chief Executives,CX24002 - Marketing - Holding Code,"2,496.00"
3376,3117053,F R SHARROCK LTD#SHARROCKS,22/05/2014,40102,Operational Equipment Rental,Environmental Services,Activities and Operations,"16,800.44"
3376,3117053,F R SHARROCK LTD#SHARROCKS,22/05/2014,40102,Operational Equipment Rental,Environmental Services,Bereavement Services,829.17
3376,3104332,F R SHARROCK LTD#SHARROCKS,06/05/2014,40101,Operational Equipment Maint,Environmental Services,Activities and Operations,"1,292.92"
42126,3104538,FARNWORTH PERFORMING ARTS COMPANY,06/05/2014,Z6011,Z6011 - CR Bal Hold A/c Exp,Environmental Services,ENZ9001 - Venues,"2,278.54"
2484313,3115871,FAST HIRE UK,19/05/2014,Z6008,Expense AP Accrual,Bolton MBC Balance Sheet,Bolton MBC Balance Sheet,520.00
1555984,3117642,FAUN ZOELLER (UK) LTD,22/05/2014,31305,Vehicle Servicing,Environmental Services,Transport Support Service,549.48
1555984,3117493,FAUN ZOELLER (UK) LTD,22/05/2014,52200,Contracted Services,Environmental Services,Transport Support Service,"1,268.50"
1555984,3110479,FAUN ZOELLER (UK) LTD,12/05/2014,31305,Vehicle Servicing,Environmental Services,Transport Support Service,694.27
1555984,3117484,FAUN ZOELLER (UK) LTD,22/05/2014,52200,Contracted Services,Environmental Services,Transport Support Service,"1,019.42"
6307,3113442,FIBRELITE (NORTH WEST) LTD,19/05/2014,40101,Operational Equipment Maint,Childrens Services,Admin IT (Schools),"3,340.00"
62795,3110429,Financial Data Management Ltd,12/05/2014,79000,Election Expenses,Chief Executives,CX13104 - European Elections,"5,784.24"
132270,3113290,FINE TURF SERVICES#FTS,15/05/2014,Z1051,Work in Progress Additions,Environmental Services,Environmental Services Balance sheet,"14,652.00"
75884,3117049,FIRST CALL COMMUNITY SYSTEMS LTD T/A SURECARE,22/05/2014,52200,Contracted Services,Adult Services,OA  Home Care Services external provision,"19,048.88"
75884,3117051,FIRST CALL COMMUNITY SYSTEMS LTD T/A SURECARE,22/05/2014,52200,Contracted Services,Adult Services,OA  Home Care Services external provision,"16,712.83"
3430,3108451,FIRST MANCHESTER LTD & FIRST TRANSFORMING TRAVEL,15/05/2014,34401,Clients  Bus Fares,Childrens Services,Contact & Direct Work,"1,235.00"
3430,3108462,FIRST MANCHESTER LTD & FIRST TRANSFORMING TRAVEL,08/05/2014,34401,Clients  Bus Fares,Development & Regen,The Work Programme,570.00
3430,3108464,FIRST MANCHESTER LTD & FIRST TRANSFORMING TRAVEL,08/05/2014,34401,Clients  Bus Fares,Childrens Services,Youth Offending Team,641.25
3430,3108589,FIRST MANCHESTER LTD & FIRST TRANSFORMING TRAVEL,08/05/2014,34401,Clients  Bus Fares,Childrens Services,Youth Offending Team,641.25
3430,3112976,FIRST MANCHESTER LTD & FIRST TRANSFORMING TRAVEL,15/05/2014,34402,Clients  Taxi Fares,Childrens Services,Safeguarding Team North,997.50
261782,3124552,FORTALICE LTD#BOLTON WOMENS AID,27/05/2014,52200,Contracted Services,Adult Services,Supporting People  Capital Financing,"56,229.75"
261782,3113611,FORTALICE LTD#BOLTON WOMENS AID,19/05/2014,52200,Contracted Services,Childrens Services,Admin Commissioning,"14,000.00"
2278295,3104969,FOSSE BANK HOUSE,06/05/2014,54301,Residential Provision,Adult Services,MH Residential External Provision,"4,545.88"
6320,3104866,FOUR SEASONS NURSING HOME,06/05/2014,Z6011,Z6011 - CR Bal Hold A/c Exp,Adult Services,ADZ0802 - Health - Funded Nursing Care,"9,279.62"
6320,3104866,FOUR SEASONS NURSING HOME,06/05/2014,54302,Nursing Provision,Adult Services,LD Purchaser Residential Care,"1,589.08"
6320,3104866,FOUR SEASONS NURSING HOME,06/05/2014,54301,Residential Provision,Adult Services,OA  External Provision Residential,"35,697.55"
6320,3104866,FOUR SEASONS NURSING HOME,06/05/2014,54302,Nursing Provision,Adult Services,OA  External Provision Residential,"34,306.36"
6320,3104866,FOUR SEASONS NURSING HOME,06/05/2014,54301,Residential Provision,Adult Services,PD Purchaser Residential Care,"4,767.24"
2605310,3118237,Four Seasons Residents Accounts#Stewart William Sangster,22/05/2014,Z6011,Z6011 - CR Bal Hold A/c Exp,Adult Services,ADZ1901 - Residents Savings A/C,"3,707.26"
125827,3120338,"FREDERICKS ICE CREAM, CHORLEY",27/05/2014,41101,Catering ProvisionsFood,Environmental Services,Pavillion Cafe,673.14
125827,3120336,"FREDERICKS ICE CREAM, CHORLEY",27/05/2014,41101,Catering ProvisionsFood,Environmental Services,Pavillion Cafe,955.08
125827,3120328,"FREDERICKS ICE CREAM, CHORLEY",27/05/2014,41101,Catering ProvisionsFood,Environmental Services,Pavillion Cafe,"1,783.20"
125827,3120329,"FREDERICKS ICE CREAM, CHORLEY",27/05/2014,41101,Catering ProvisionsFood,Environmental Services,Pavillion Cafe,690.65
125827,3120330,"FREDERICKS ICE CREAM, CHORLEY",27/05/2014,41101,Catering ProvisionsFood,Environmental Services,Pavillion Cafe,838.78
6326,3125948,G & K REFRACTORIES LTD,29/05/2014,20500,R & M Cremators,Environmental Services,Bereavement Services,620.00
1100818,3117762,G4S CASH SOLUTIONS,22/05/2014,44402,Security Cash Collection,Chief Executives,CX59600 - CSD Cashiers,"1,174.28"
386722,3104764,GATEWAY MEDIA LTD,06/05/2014,45914,Commissioning Worklessness,Development & Regen,The Work Programme,"1,500.00"
2213290,3121871,GB BUILDING SOLUTIONS,27/05/2014,Z1051,Work in Progress Additions,Central Corporate,Corporate Property Balance Sheet,"161,783.24"
155974,3116333,GEM ARBORICULTURAL SERVICES,19/05/2014,20409,Woodland Maintenance,Central Corporate,Land & Property Portfolios,"2,600.00"
6325,3107360,GEORGE COX & SONS LTD,08/05/2014,Z6011,Z6011 - CR Bal Hold A/c Exp,Environmental Services,Environmental Services Balance sheet,"49,205.09"
1779291,3104952,GHS BROOKDALE,06/05/2014,54301,Residential Provision,Adult Services,OA  External Provision Residential,"3,295.04"
1937290,3104954,GLEN ROSA & KITWOOD HOUSE,06/05/2014,54301,Residential Provision,Adult Services,OA  External Provision Residential,"1,710.52"
6338,3104867,GLENBANK CARE HOME LTD,06/05/2014,Z6011,Z6011 - CR Bal Hold A/c Exp,Adult Services,ADZ1201 - 3rd Party Social Care Contributions,520.00
6338,3104867,GLENBANK CARE HOME LTD,06/05/2014,54301,Residential Provision,Adult Services,OA  External Provision Residential,"20,304.32"
6242,3104896,GLENHOMES REST HOME,06/05/2014,54301,Residential Provision,Adult Services,OA  External Provision Residential,"23,540.52"
2212300,3104965,GLENROYD CARE HOME,06/05/2014,54302,Nursing Provision,Adult Services,OA  External Provision Residential,"1,565.76"
3603,3116763,G-MAP SERVICES LTD,22/05/2014,52000,Vol Assoc Grants  General,Childrens Services,Res Serv Agency Placements,"2,420.00"
2345332,3117296,GMP DRIVERCARE LTD,22/05/2014,33206,Vehicle Leasing,Public Health,Food Action Bolton,"2,544.00"
186916,3106344,GMS SERVICES LIMITED,06/05/2014,Z6008,Expense AP Accrual,Bolton MBC Balance Sheet,Bolton MBC Balance Sheet,935.00
186916,3112623,GMS SERVICES LIMITED,29/05/2014,Z6007,Z6007 - Inventory AP Accrual,Property Services,EAM Holding,"6,934.84"
2535340,3104997,Gordon Lodge Nursing Home,06/05/2014,54302,Nursing Provision,Adult Services,OA  External Provision Residential,"2,029.20"
125827,3118316,GORDONS(BOLTON) LTD,27/05/2014,31305,Vehicle Servicing,Environmental Services,Transport Support Service,759.49
6342,3104868,GORSEY CLOUGH NURSING HOME LTD,06/05/2014,Z6011,Z6011 - CR Bal Hold A/c Exp,Adult Services,ADZ0802 - Health - Funded Nursing Care,878.32
6342,3104868,GORSEY CLOUGH NURSING HOME LTD,06/05/2014,54302,Nursing Provision,Adult Services,OA  External Provision Residential,"8,237.60"
2036308,3126721,GOVDELIVERY,29/05/2014,45401,Computer Maintenance,Finance Department,Web Team,"1,932.00"
2036308,3104523,GOVDELIVERY,06/05/2014,45401,Computer Maintenance,Finance Department,Web Team,"1,932.00"
2287325,3125312,GRAHAM ASSET MANAGEMENT LTD,27/05/2014,Z6008,Expense AP Accrual,Bolton MBC Balance Sheet,Bolton MBC Balance Sheet,828.08
2287325,3125329,GRAHAM ASSET MANAGEMENT LTD,27/05/2014,Z6008,Expense AP Accrual,Bolton MBC Balance Sheet,Bolton MBC Balance Sheet,506.23
2287325,3125343,GRAHAM ASSET MANAGEMENT LTD,27/05/2014,Z6008,Expense AP Accrual,Bolton MBC Balance Sheet,Bolton MBC Balance Sheet,630.77
2287325,3106343,GRAHAM ASSET MANAGEMENT LTD,08/05/2014,Z6007,Z6007 - Inventory AP Accrual,Property Services,EAM Holding,"4,234.80"
6344,3104869,GRANGE LEA RESIDENTIAL CARE HOME LTD,06/05/2014,54301,Residential Provision,Adult Services,OA  External Provision Residential,"24,691.81"
178961,3127247,GREAT PLACES HOUSING ASSOCIATION,29/05/2014,52200,Contracted Services,Adult Services,Supporting People  Capital Financing,"36,044.25"
178961,3127256,GREAT PLACES HOUSING ASSOCIATION,29/05/2014,52200,Contracted Services,Adult Services,Supporting People  Capital Financing,"10,111.24"
123878,3109416,GREATER MANCHESTER INDUSTRIAL MISSION TRUST,08/05/2014,47103,Miscellaneous Grants,Chief Executives,Voluntary Sector Grants,"10,710.75"
2515304,3104995,GREATWOOD HOUSE,06/05/2014,54301,Residential Provision,Adult Services,OA  External Provision Residential,"1,848.00"
477504,3117681,GREENCHEM SOLUTIONS LTD,22/05/2014,31305,Vehicle Servicing,Environmental Services,Transport Support Service,608.64
1854290,3113193,GREENHALGH KERR,15/05/2014,48502,Legal Fees,Chief Executives,CX57800 - Non-Domestic Rating,"1,026.00"
2194290,3104964,GREENLANDS RESIDENTIAL HOME LTD,06/05/2014,54301,Residential Provision,Adult Services,OA  External Provision Residential,"25,905.24"
16647,3113201,GROSVENOR PRINT & DESIGN#GROSVENOR STATIONERY CO (PRESTON) LTD,15/05/2014,43032,Office Stationery,Chief Executives,CX57500 - Council Tax,618.90
15577,3111353,GROUNDWORK LANDSCAPES LIMITED,29/05/2014,Z6008,Expense AP Accrual,Bolton MBC Balance Sheet,Bolton MBC Balance Sheet,770.00
2345384,3104976,GROVE HOUSE,06/05/2014,54301,Residential Provision,Adult Services,OA  External Provision Residential,"5,848.00"
2284378,3124152,H TIMMINS GROUP LTD,27/05/2014,Z6008,Expense AP Accrual,Bolton MBC Balance Sheet,Bolton MBC Balance Sheet,"1,058.02"
38584,3104920,HALF ACRE CARE HOME,06/05/2014,54301,Residential Provision,Adult Services,OA  External Provision Residential,"4,942.56"
760627,3112356,HALLIWELL LATE NIGHT PHARMACY,15/05/2014,52200,Contracted Services,Adult Services,Drugs Pooled Treatment Budget,799.50
2255291,3111828,HAPPY MUSIC LIMITED,15/05/2014,48517,Fees/Expenses Schools,Childrens Services,Music ServMusic Service general,"2,450.00"
148023,3104928,HARBOUR CLOSE,06/05/2014,54301,Residential Provision,Adult Services,PD Purchaser Residential Care,"3,877.88"
6359,3112188,HARDSCAPE PRODUCTS LTD,29/05/2014,Z6008,Expense AP Accrual,Bolton MBC Balance Sheet,Bolton MBC Balance Sheet,"6,650.00"
2156,3104809,HARMONY YOUTH PROJECT,06/05/2014,45914,Commissioning Worklessness,Development & Regen,The Work Programme,750.00
867656,3126512,HAYS SPECIALIST RECRUITMENT,29/05/2014,53102,Agency Staff  Other,Adult Services,ACM  Management,878.15
867656,3126512,HAYS SPECIALIST RECRUITMENT,29/05/2014,53102,Agency Staff  Other,Environmental Services,Activities and Operations,"1,562.82"
867656,3126512,HAYS SPECIALIST RECRUITMENT,29/05/2014,53102,Agency Staff  Other,Childrens Services,Business Support    South District,"2,124.19"
867656,3126512,HAYS SPECIALIST RECRUITMENT,29/05/2014,53102,Agency Staff  Other,Childrens Services,Business Support    West District,555.23
867656,3126512,HAYS SPECIALIST RECRUITMENT,29/05/2014,53102,Agency Staff  Other,Childrens Services,Business Support  Children Social Care,"2,372.20"
867656,3126512,HAYS SPECIALIST RECRUITMENT,29/05/2014,53102,Agency Staff  Other,Childrens Services,Children and Family Supp Svs North,"1,610.13"
867656,3126512,HAYS SPECIALIST RECRUITMENT,29/05/2014,53102,Agency Staff  Other,Childrens Services,Children and Family Supp Svs South,"4,421.70"
867656,3126512,HAYS SPECIALIST RECRUITMENT,29/05/2014,53102,Agency Staff  Other,Childrens Services,Children and Family Supp Svs West,"1,089.63"
867656,3126512,HAYS SPECIALIST RECRUITMENT,29/05/2014,53102,Agency Staff  Other,Chief Executives,CX11000 - Legal Services Trading Account,"4,606.02"
867656,3126512,HAYS SPECIALIST RECRUITMENT,29/05/2014,53102,Agency Staff  Other,Chief Executives,CX21300 - Occupational Health Unit,641.62
867656,3126512,HAYS SPECIALIST RECRUITMENT,29/05/2014,53102,Agency Staff  Other,Chief Executives,CX43004 - Corporate Asset Planning,668.57
867656,3126512,HAYS SPECIALIST RECRUITMENT,29/05/2014,53102,Agency Staff  Other,Chief Executives,CX43005 - Estates & Property Management,"2,020.83"
867656,3126512,HAYS SPECIALIST RECRUITMENT,29/05/2014,53102,Agency Staff  Other,Chief Executives,CX43013 - CPS Shared Costs,"1,065.46"
867656,3126512,HAYS SPECIALIST RECRUITMENT,29/05/2014,53102,Agency Staff  Other,Chief Executives,CX55330 - Accounts Payable Shared Service Centre,983.08
867656,3126512,HAYS SPECIALIST RECRUITMENT,29/05/2014,53102,Agency Staff  Other,Chief Executives,CX58800 - Corporate I.C.T.,"1,201.56"
867656,3126512,HAYS SPECIALIST RECRUITMENT,29/05/2014,53102,Agency Staff  Other,Chief Executives,CX59500 - C.R.M. Operations,"4,463.07"
867656,3126512,HAYS SPECIALIST RECRUITMENT,29/05/2014,53102,Agency Staff  Other,Childrens Services,Disability Serv Family Support Team,766.63
867656,3126512,HAYS SPECIALIST RECRUITMENT,29/05/2014,53102,Agency Staff  Other,Environmental Services,GMRAPS,682.82
867656,3126512,HAYS SPECIALIST RECRUITMENT,29/05/2014,53102,Agency Staff  Other,Housing GRF,Haulgh project,666.00
867656,3126512,HAYS SPECIALIST RECRUITMENT,29/05/2014,53102,Agency Staff  Other,Adult Services,Home Support Reablement,755.70
867656,3126512,HAYS SPECIALIST RECRUITMENT,29/05/2014,53102,Agency Staff  Other,Housing GRF,Housing and Public Health,527.99
867656,3126512,HAYS SPECIALIST RECRUITMENT,29/05/2014,53102,Agency Staff  Other,Environmental Services,Markets  Rent Account,"3,320.07"
867656,3126512,HAYS SPECIALIST RECRUITMENT,29/05/2014,53102,Agency Staff  Other,Environmental Services,Neighbourhood Management Support,888.43
867656,3126512,HAYS SPECIALIST RECRUITMENT,29/05/2014,53102,Agency Staff  Other,Adult Services,OA  Winifred Kettle  Residential,"1,076.95"
867656,3126512,HAYS SPECIALIST RECRUITMENT,29/05/2014,53102,Agency Staff  Other,Development & Regen,PTP General Policy,529.13
867656,3126512,HAYS SPECIALIST RECRUITMENT,29/05/2014,53102,Agency Staff  Other,Childrens Services,Referral & Assmt Team West,884.00
867656,3126512,HAYS SPECIALIST RECRUITMENT,29/05/2014,53102,Agency Staff  Other,Childrens Services,Safeguarding Team North,"2,061.80"
867656,3126512,HAYS SPECIALIST RECRUITMENT,29/05/2014,53102,Agency Staff  Other,Childrens Services,Safeguarding Team South,"1,865.90"
867656,3126512,HAYS SPECIALIST RECRUITMENT,29/05/2014,53102,Agency Staff  Other,Development & Regen,The Work Programme,"1,052.78"
867656,3126512,HAYS SPECIALIST RECRUITMENT,29/05/2014,53102,Agency Staff  Other,Adult Services,Urgent Care,914.25
867656,3126512,HAYS SPECIALIST RECRUITMENT,29/05/2014,53102,Agency Staff  Other,Environmental Services,Waste,"4,489.86"
867656,3124420,HAYS SPECIALIST RECRUITMENT,27/05/2014,53102,Agency Staff  Other,Adult Services,ACM  Management,985.32
867656,3124420,HAYS SPECIALIST RECRUITMENT,27/05/2014,53102,Agency Staff  Other,Environmental Services,Activities and Operations,"6,805.45"
867656,3124420,HAYS SPECIALIST RECRUITMENT,27/05/2014,53102,Agency Staff  Other,Adult Services,AD Joint Finance Unit,656.82
867656,3124420,HAYS SPECIALIST RECRUITMENT,27/05/2014,53102,Agency Staff  Other,Environmental Services,Bereavement Services,"2,946.74"
867656,3124420,HAYS SPECIALIST RECRUITMENT,27/05/2014,53102,Agency Staff  Other,Childrens Services,Business Support    South District,"2,668.40"
867656,3124420,HAYS SPECIALIST RECRUITMENT,27/05/2014,53102,Agency Staff  Other,Childrens Services,Business Support    West District,758.29
867656,3124420,HAYS SPECIALIST RECRUITMENT,27/05/2014,53102,Agency Staff  Other,Childrens Services,Business Support  Children Social Care,"2,360.88"
867656,3124420,HAYS SPECIALIST RECRUITMENT,27/05/2014,53102,Agency Staff  Other,Childrens Services,Children and Family Supp Svs North,"1,503.58"
867656,3124420,HAYS SPECIALIST RECRUITMENT,27/05/2014,53102,Agency Staff  Other,Childrens Services,Children and Family Supp Svs South,"4,335.38"
867656,3124420,HAYS SPECIALIST RECRUITMENT,27/05/2014,53102,Agency Staff  Other,Childrens Services,Children and Family Supp Svs West,"2,985.80"
867656,3124420,HAYS SPECIALIST RECRUITMENT,27/05/2014,53102,Agency Staff  Other,Chief Executives,CX11000 - Legal Services Trading Account,"7,140.18"
867656,3124420,HAYS SPECIALIST RECRUITMENT,27/05/2014,53102,Agency Staff  Other,Chief Executives,CX21300 - Occupational Health Unit,771.70
867656,3124420,HAYS SPECIALIST RECRUITMENT,27/05/2014,53102,Agency Staff  Other,Chief Executives,CX43004 - Corporate Asset Planning,668.57
867656,3124420,HAYS SPECIALIST RECRUITMENT,27/05/2014,53102,Agency Staff  Other,Chief Executives,CX43005 - Estates & Property Management,"1,104.96"
867656,3124420,HAYS SPECIALIST RECRUITMENT,27/05/2014,53102,Agency Staff  Other,Chief Executives,CX43013 - CPS Shared Costs,987.71
867656,3124420,HAYS SPECIALIST RECRUITMENT,27/05/2014,53102,Agency Staff  Other,Chief Executives,CX55300 - Financial Management,675.25
867656,3124420,HAYS SPECIALIST RECRUITMENT,27/05/2014,53102,Agency Staff  Other,Chief Executives,CX55330 - Accounts Payable Shared Service Centre,"1,101.48"
867656,3124420,HAYS SPECIALIST RECRUITMENT,27/05/2014,53102,Agency Staff  Other,Chief Executives,CX55340 - Finance Dept Procurement Team,"1,065.05"
867656,3124420,HAYS SPECIALIST RECRUITMENT,27/05/2014,53102,Agency Staff  Other,Chief Executives,CX58800 - Corporate I.C.T.,"1,379.02"
867656,3124420,HAYS SPECIALIST RECRUITMENT,27/05/2014,53102,Agency Staff  Other,Chief Executives,CX59500 - C.R.M. Operations,"5,987.48"
867656,3124420,HAYS SPECIALIST RECRUITMENT,27/05/2014,53102,Agency Staff  Other,Chief Executives,CX67201 - Customer Services,"1,599.51"
867656,3124420,HAYS SPECIALIST RECRUITMENT,27/05/2014,53102,Agency Staff  Other,Childrens Services,Disability Serv Family Support Team,691.02
867656,3124420,HAYS SPECIALIST RECRUITMENT,27/05/2014,53102,Agency Staff  Other,Housing GRF,Haulgh project,"1,266.12"
867656,3124420,HAYS SPECIALIST RECRUITMENT,27/05/2014,53102,Agency Staff  Other,Adult Services,Home Support Reablement,"1,525.76"
867656,3124420,HAYS SPECIALIST RECRUITMENT,27/05/2014,53102,Agency Staff  Other,Housing GRF,Housing and Public Health,528.26
867656,3124420,HAYS SPECIALIST RECRUITMENT,27/05/2014,53102,Agency Staff  Other,Adult Services,Independent,727.01
867656,3124420,HAYS SPECIALIST RECRUITMENT,27/05/2014,53102,Agency Staff  Other,Environmental Services,Management & Overheads,893.42
867656,3124420,HAYS SPECIALIST RECRUITMENT,27/05/2014,53102,Agency Staff  Other,Environmental Services,Markets  Rent Account,"16,478.53"
867656,3124420,HAYS SPECIALIST RECRUITMENT,27/05/2014,53102,Agency Staff  Other,Environmental Services,Neighbourhood Management Support,888.44
867656,3124420,HAYS SPECIALIST RECRUITMENT,27/05/2014,53102,Agency Staff  Other,Adult Services,OA  Alderbank  Residential,"5,628.34"
867656,3124420,HAYS SPECIALIST RECRUITMENT,27/05/2014,53102,Agency Staff  Other,Adult Services,OA  Darley Court Intermediate Care,"8,597.22"
867656,3124420,HAYS SPECIALIST RECRUITMENT,27/05/2014,53102,Agency Staff  Other,Adult Services,OA  Winifred Kettle  Residential,"1,639.94"
867656,3124420,HAYS SPECIALIST RECRUITMENT,27/05/2014,53102,Agency Staff  Other,Development & Regen,PTP General Policy,529.12
867656,3124420,HAYS SPECIALIST RECRUITMENT,27/05/2014,53102,Agency Staff  Other,Childrens Services,Referral & Assmt Team West,"1,548.08"
867656,3124420,HAYS SPECIALIST RECRUITMENT,27/05/2014,53102,Agency Staff  Other,Childrens Services,Safeguarding Team North,"1,659.17"
867656,3124420,HAYS SPECIALIST RECRUITMENT,27/05/2014,53102,Agency Staff  Other,Childrens Services,Safeguarding Team South,"1,706.30"
867656,3124420,HAYS SPECIALIST RECRUITMENT,27/05/2014,53102,Agency Staff  Other,Childrens Services,Targeted Youth Support,661.26
867656,3124420,HAYS SPECIALIST RECRUITMENT,27/05/2014,53102,Agency Staff  Other,Development & Regen,The Work Programme,896.65
867656,3124420,HAYS SPECIALIST RECRUITMENT,27/05/2014,53102,Agency Staff  Other,Environmental Services,Transport Support Service,"1,570.18"
867656,3124420,HAYS SPECIALIST RECRUITMENT,27/05/2014,53102,Agency Staff  Other,Environmental Services,Waste,"21,662.16"
867656,3110390,HAYS SPECIALIST RECRUITMENT,12/05/2014,53102,Agency Staff  Other,Adult Services,ACM  Management,"1,020.91"
867656,3110390,HAYS SPECIALIST RECRUITMENT,12/05/2014,53102,Agency Staff  Other,Environmental Services,Activities and Operations,"8,952.08"
867656,3110390,HAYS SPECIALIST RECRUITMENT,12/05/2014,53102,Agency Staff  Other,Environmental Services,Bereavement Services,"2,409.58"
867656,3110390,HAYS SPECIALIST RECRUITMENT,12/05/2014,53102,Agency Staff  Other,Childrens Services,Business Support    South District,"2,605.03"
867656,3110390,HAYS SPECIALIST RECRUITMENT,12/05/2014,53102,Agency Staff  Other,Childrens Services,Business Support    West District,779.93
867656,3110390,HAYS SPECIALIST RECRUITMENT,12/05/2014,53102,Agency Staff  Other,Childrens Services,Business Support  Children Social Care,"3,339.13"
867656,3110390,HAYS SPECIALIST RECRUITMENT,12/05/2014,53102,Agency Staff  Other,Childrens Services,Children and Family Supp Svs North,"1,606.23"
867656,3110390,HAYS SPECIALIST RECRUITMENT,12/05/2014,53102,Agency Staff  Other,Childrens Services,Children and Family Supp Svs South,"3,939.41"
867656,3110390,HAYS SPECIALIST RECRUITMENT,12/05/2014,53102,Agency Staff  Other,Childrens Services,Children and Family Supp Svs West,"2,475.56"
867656,3110390,HAYS SPECIALIST RECRUITMENT,12/05/2014,53102,Agency Staff  Other,Environmental Services,Civic Cleaning,"1,714.79"
867656,3110390,HAYS SPECIALIST RECRUITMENT,12/05/2014,53102,Agency Staff  Other,Chief Executives,CX11000 - Legal Services Trading Account,"5,674.81"
867656,3110390,HAYS SPECIALIST RECRUITMENT,12/05/2014,53102,Agency Staff  Other,Chief Executives,CX21300 - Occupational Health Unit,673.41
867656,3110390,HAYS SPECIALIST RECRUITMENT,12/05/2014,53102,Agency Staff  Other,Chief Executives,CX43004 - Corporate Asset Planning,668.57
867656,3110390,HAYS SPECIALIST RECRUITMENT,12/05/2014,53102,Agency Staff  Other,Chief Executives,CX43005 - Estates & Property Management,810.75
867656,3110390,HAYS SPECIALIST RECRUITMENT,12/05/2014,53102,Agency Staff  Other,Chief Executives,CX43013 - CPS Shared Costs,825.54
867656,3110390,HAYS SPECIALIST RECRUITMENT,12/05/2014,53102,Agency Staff  Other,Chief Executives,CX55300 - Financial Management,675.25
867656,3110390,HAYS SPECIALIST RECRUITMENT,12/05/2014,53102,Agency Staff  Other,Chief Executives,CX55330 - Accounts Payable Shared Service Centre,"1,058.54"
867656,3110390,HAYS SPECIALIST RECRUITMENT,12/05/2014,53102,Agency Staff  Other,Chief Executives,CX55340 - Finance Dept Procurement Team,880.22
867656,3110390,HAYS SPECIALIST RECRUITMENT,12/05/2014,53102,Agency Staff  Other,Chief Executives,CX58800 - Corporate I.C.T.,"1,112.84"
867656,3110390,HAYS SPECIALIST RECRUITMENT,12/05/2014,53102,Agency Staff  Other,Chief Executives,CX59500 - C.R.M. Operations,"5,430.53"
867656,3110390,HAYS SPECIALIST RECRUITMENT,12/05/2014,53102,Agency Staff  Other,Development & Regen,Divisional Development,510.40
867656,3110390,HAYS SPECIALIST RECRUITMENT,12/05/2014,53102,Agency Staff  Other,Housing GRF,Haulgh project,"1,876.50"
867656,3110390,HAYS SPECIALIST RECRUITMENT,12/05/2014,53102,Agency Staff  Other,Adult Services,Home Support Reablement,"1,222.47"
867656,3110390,HAYS SPECIALIST RECRUITMENT,12/05/2014,53102,Agency Staff  Other,Housing GRF,Housing and Public Health,527.99
867656,3110390,HAYS SPECIALIST RECRUITMENT,12/05/2014,53102,Agency Staff  Other,Adult Services,Independent,"1,957.00"
867656,3110390,HAYS SPECIALIST RECRUITMENT,12/05/2014,53102,Agency Staff  Other,Adult Services,MH Dementia and Complex Care Fieldwork Team,528.40
867656,3110390,HAYS SPECIALIST RECRUITMENT,12/05/2014,53102,Agency Staff  Other,Environmental Services,Neighbourhood Management Support,"1,538.24"
867656,3110390,HAYS SPECIALIST RECRUITMENT,12/05/2014,53102,Agency Staff  Other,Adult Services,OA  Alderbank  Residential,588.89
867656,3110390,HAYS SPECIALIST RECRUITMENT,12/05/2014,53102,Agency Staff  Other,Adult Services,OA  Darley Court Intermediate Care,"1,487.68"
867656,3110390,HAYS SPECIALIST RECRUITMENT,12/05/2014,53102,Agency Staff  Other,Adult Services,OA  Winifred Kettle  Residential,"1,795.55"
867656,3110390,HAYS SPECIALIST RECRUITMENT,12/05/2014,53102,Agency Staff  Other,Development & Regen,PTP General Policy,541.26
867656,3110390,HAYS SPECIALIST RECRUITMENT,12/05/2014,53102,Agency Staff  Other,Childrens Services,Referral & Assmt Team West,885.08
867656,3110390,HAYS SPECIALIST RECRUITMENT,12/05/2014,53102,Agency Staff  Other,Childrens Services,Safeguarding Team North,840.28
867656,3110390,HAYS SPECIALIST RECRUITMENT,12/05/2014,53102,Agency Staff  Other,Childrens Services,Safeguarding Team South,"2,378.90"
867656,3110390,HAYS SPECIALIST RECRUITMENT,12/05/2014,53102,Agency Staff  Other,Development & Regen,The Work Programme,"1,097.38"
867656,3110390,HAYS SPECIALIST RECRUITMENT,12/05/2014,53102,Agency Staff  Other,Adult Services,Urgent Care,914.25
867656,3110390,HAYS SPECIALIST RECRUITMENT,12/05/2014,53102,Agency Staff  Other,Environmental Services,Waste,"19,453.90"
867656,3115863,HAYS SPECIALIST RECRUITMENT,19/05/2014,53102,Agency Staff  Other,Adult Services,ACM  Management,"1,036.28"
867656,3115863,HAYS SPECIALIST RECRUITMENT,19/05/2014,53102,Agency Staff  Other,Environmental Services,Activities and Operations,"7,351.66"
867656,3115863,HAYS SPECIALIST RECRUITMENT,19/05/2014,53102,Agency Staff  Other,Environmental Services,Bereavement Services,"1,839.64"
867656,3115863,HAYS SPECIALIST RECRUITMENT,19/05/2014,53102,Agency Staff  Other,Childrens Services,Business Support    South District,"2,114.23"
867656,3115863,HAYS SPECIALIST RECRUITMENT,19/05/2014,53102,Agency Staff  Other,Childrens Services,Business Support    West District,685.13
867656,3115863,HAYS SPECIALIST RECRUITMENT,19/05/2014,53102,Agency Staff  Other,Childrens Services,Business Support  Children Social Care,"2,132.60"
867656,3115863,HAYS SPECIALIST RECRUITMENT,19/05/2014,53102,Agency Staff  Other,Childrens Services,Children and Family Supp Svs North,"1,699.41"
867656,3115863,HAYS SPECIALIST RECRUITMENT,19/05/2014,53102,Agency Staff  Other,Childrens Services,Children and Family Supp Svs South,"4,301.90"
867656,3115863,HAYS SPECIALIST RECRUITMENT,19/05/2014,53102,Agency Staff  Other,Childrens Services,Children and Family Supp Svs West,"1,500.29"
867656,3115863,HAYS SPECIALIST RECRUITMENT,19/05/2014,53102,Agency Staff  Other,Environmental Services,Civic Cleaning,549.00
867656,3115863,HAYS SPECIALIST RECRUITMENT,19/05/2014,53102,Agency Staff  Other,Chief Executives,CX11000 - Legal Services Trading Account,"5,233.30"
867656,3115863,HAYS SPECIALIST RECRUITMENT,19/05/2014,53102,Agency Staff  Other,Chief Executives,CX21300 - Occupational Health Unit,530.91
867656,3115863,HAYS SPECIALIST RECRUITMENT,19/05/2014,53102,Agency Staff  Other,Chief Executives,CX43004 - Corporate Asset Planning,668.59
867656,3115863,HAYS SPECIALIST RECRUITMENT,19/05/2014,53102,Agency Staff  Other,Chief Executives,CX43005 - Estates & Property Management,"2,762.31"
867656,3115863,HAYS SPECIALIST RECRUITMENT,19/05/2014,53102,Agency Staff  Other,Chief Executives,CX43013 - CPS Shared Costs,736.85
867656,3115863,HAYS SPECIALIST RECRUITMENT,19/05/2014,53102,Agency Staff  Other,Chief Executives,CX55330 - Accounts Payable Shared Service Centre,831.74
867656,3115863,HAYS SPECIALIST RECRUITMENT,19/05/2014,53102,Agency Staff  Other,Chief Executives,CX58800 - Corporate I.C.T.,"1,101.89"
867656,3115863,HAYS SPECIALIST RECRUITMENT,19/05/2014,53102,Agency Staff  Other,Chief Executives,CX59500 - C.R.M. Operations,"5,595.48"
867656,3115863,HAYS SPECIALIST RECRUITMENT,19/05/2014,53102,Agency Staff  Other,Chief Executives,CX67201 - Customer Services,"1,253.70"
867656,3115863,HAYS SPECIALIST RECRUITMENT,19/05/2014,53102,Agency Staff  Other,Development & Regen,Divisional Development,586.18
867656,3115863,HAYS SPECIALIST RECRUITMENT,19/05/2014,53102,Agency Staff  Other,Adult Services,Home Support Reablement,"2,092.83"
867656,3115863,HAYS SPECIALIST RECRUITMENT,19/05/2014,53102,Agency Staff  Other,Housing GRF,Homes for You,779.88
867656,3115863,HAYS SPECIALIST RECRUITMENT,19/05/2014,53102,Agency Staff  Other,Environmental Services,Markets  Rent Account,"1,493.64"
867656,3115863,HAYS SPECIALIST RECRUITMENT,19/05/2014,53102,Agency Staff  Other,Environmental Services,Neighbourhood Management Support,756.61
867656,3115863,HAYS SPECIALIST RECRUITMENT,19/05/2014,53102,Agency Staff  Other,Adult Services,OA  Alderbank  Residential,"2,007.06"
867656,3115863,HAYS SPECIALIST RECRUITMENT,19/05/2014,53102,Agency Staff  Other,Adult Services,OA  Darley Court Intermediate Care,"3,852.02"
867656,3115863,HAYS SPECIALIST RECRUITMENT,19/05/2014,53102,Agency Staff  Other,Adult Services,OA  Firwood  Residential,"2,154.03"
867656,3115863,HAYS SPECIALIST RECRUITMENT,19/05/2014,53102,Agency Staff  Other,Adult Services,OA  Winifred Kettle  Residential,"1,403.93"
867656,3115863,HAYS SPECIALIST RECRUITMENT,19/05/2014,53102,Agency Staff  Other,Childrens Services,Safeguarding Team North,828.88
867656,3115863,HAYS SPECIALIST RECRUITMENT,19/05/2014,53102,Agency Staff  Other,Childrens Services,Safeguarding Team South,"1,710.29"
867656,3115863,HAYS SPECIALIST RECRUITMENT,19/05/2014,53102,Agency Staff  Other,Childrens Services,Targeted Youth Support,"1,197.44"
867656,3115863,HAYS SPECIALIST RECRUITMENT,19/05/2014,53102,Agency Staff  Other,Development & Regen,The Work Programme,"1,012.31"
867656,3115863,HAYS SPECIALIST RECRUITMENT,19/05/2014,53102,Agency Staff  Other,Environmental Services,Transport Support Service,"1,098.36"
867656,3115863,HAYS SPECIALIST RECRUITMENT,19/05/2014,53102,Agency Staff  Other,Adult Services,Urgent Care,741.28
867656,3115863,HAYS SPECIALIST RECRUITMENT,19/05/2014,53102,Agency Staff  Other,Environmental Services,Waste,"12,718.50"
867656,3115863,HAYS SPECIALIST RECRUITMENT,19/05/2014,53102,Agency Staff  Other,Childrens Services,Yth Ser  Training & Development,"1,087.76"
867656,3105285,HAYS SPECIALIST RECRUITMENT,06/05/2014,53102,Agency Staff  Other,Adult Services,ACM  Management,"1,070.91"
867656,3105285,HAYS SPECIALIST RECRUITMENT,06/05/2014,53102,Agency Staff  Other,Environmental Services,Activities and Operations,"6,948.12"
867656,3105285,HAYS SPECIALIST RECRUITMENT,06/05/2014,53102,Agency Staff  Other,Environmental Services,Bereavement Services,908.40
867656,3105285,HAYS SPECIALIST RECRUITMENT,06/05/2014,53102,Agency Staff  Other,Childrens Services,Business Support    South District,"2,267.34"
867656,3105285,HAYS SPECIALIST RECRUITMENT,06/05/2014,53102,Agency Staff  Other,Childrens Services,Business Support  Children Social Care,"2,398.14"
867656,3105285,HAYS SPECIALIST RECRUITMENT,06/05/2014,53102,Agency Staff  Other,Childrens Services,Children and Family Supp Svs North,"1,106.64"
867656,3105285,HAYS SPECIALIST RECRUITMENT,06/05/2014,53102,Agency Staff  Other,Childrens Services,Children and Family Supp Svs South,"2,916.53"
867656,3105285,HAYS SPECIALIST RECRUITMENT,06/05/2014,53102,Agency Staff  Other,Childrens Services,Children and Family Supp Svs West,"2,501.25"
867656,3105285,HAYS SPECIALIST RECRUITMENT,06/05/2014,53102,Agency Staff  Other,Chief Executives,CX11000 - Legal Services Trading Account,"4,119.09"
867656,3105285,HAYS SPECIALIST RECRUITMENT,06/05/2014,53102,Agency Staff  Other,Chief Executives,CX13003 - Mayoralty,659.12
867656,3105285,HAYS SPECIALIST RECRUITMENT,06/05/2014,53102,Agency Staff  Other,Chief Executives,CX21300 - Occupational Health Unit,587.04
867656,3105285,HAYS SPECIALIST RECRUITMENT,06/05/2014,53102,Agency Staff  Other,Chief Executives,CX43004 - Corporate Asset Planning,668.58
867656,3105285,HAYS SPECIALIST RECRUITMENT,06/05/2014,53102,Agency Staff  Other,Chief Executives,CX43005 - Estates & Property Management,"2,816.46"
867656,3105285,HAYS SPECIALIST RECRUITMENT,06/05/2014,53102,Agency Staff  Other,Chief Executives,CX43013 - CPS Shared Costs,"1,673.42"
867656,3105285,HAYS SPECIALIST RECRUITMENT,06/05/2014,53102,Agency Staff  Other,Chief Executives,CX55300 - Financial Management,540.20
867656,3105285,HAYS SPECIALIST RECRUITMENT,06/05/2014,53102,Agency Staff  Other,Chief Executives,CX55330 - Accounts Payable Shared Service Centre,603.68
867656,3105285,HAYS SPECIALIST RECRUITMENT,06/05/2014,53102,Agency Staff  Other,Chief Executives,CX55340 - Finance Dept Procurement Team,888.99
867656,3105285,HAYS SPECIALIST RECRUITMENT,06/05/2014,53102,Agency Staff  Other,Chief Executives,CX57800 - Non-Domestic Rating,720.86
867656,3105285,HAYS SPECIALIST RECRUITMENT,06/05/2014,53102,Agency Staff  Other,Chief Executives,CX58800 - Corporate I.C.T.,924.43
867656,3105285,HAYS SPECIALIST RECRUITMENT,06/05/2014,53102,Agency Staff  Other,Chief Executives,CX59500 - C.R.M. Operations,"4,228.42"
867656,3105285,HAYS SPECIALIST RECRUITMENT,06/05/2014,53102,Agency Staff  Other,Chief Executives,CX67201 - Customer Services,796.54
867656,3105285,HAYS SPECIALIST RECRUITMENT,06/05/2014,53102,Agency Staff  Other,Childrens Services,Disability Serv Family Support Team,503.57
867656,3105285,HAYS SPECIALIST RECRUITMENT,06/05/2014,53102,Agency Staff  Other,Environmental Services,GMRAPS,608.13
867656,3105285,HAYS SPECIALIST RECRUITMENT,06/05/2014,53102,Agency Staff  Other,Adult Services,Home Support Reablement,809.42
867656,3105285,HAYS SPECIALIST RECRUITMENT,06/05/2014,53102,Agency Staff  Other,Adult Services,MH North Fieldwork Team,"1,247.38"
867656,3105285,HAYS SPECIALIST RECRUITMENT,06/05/2014,53102,Agency Staff  Other,Environmental Services,Neighbourhood Management Support,585.06
867656,3105285,HAYS SPECIALIST RECRUITMENT,06/05/2014,53102,Agency Staff  Other,Adult Services,OA  Alderbank  Residential,"4,080.22"
867656,3105285,HAYS SPECIALIST RECRUITMENT,06/05/2014,53102,Agency Staff  Other,Adult Services,OA  Darley Court Intermediate Care,"6,806.53"
867656,3105285,HAYS SPECIALIST RECRUITMENT,06/05/2014,53102,Agency Staff  Other,Adult Services,OA  Firwood  Residential,"1,556.46"
867656,3105285,HAYS SPECIALIST RECRUITMENT,06/05/2014,53102,Agency Staff  Other,Development & Regen,PTP General Policy,845.48
867656,3105285,HAYS SPECIALIST RECRUITMENT,06/05/2014,53102,Agency Staff  Other,Childrens Services,Referral & Assmt Team West,694.08
867656,3105285,HAYS SPECIALIST RECRUITMENT,06/05/2014,53102,Agency Staff  Other,Environmental Services,Regulatory Services,723.60
867656,3105285,HAYS SPECIALIST RECRUITMENT,06/05/2014,53102,Agency Staff  Other,Childrens Services,Safeguarding Team North,"1,667.58"
867656,3105285,HAYS SPECIALIST RECRUITMENT,06/05/2014,53102,Agency Staff  Other,Childrens Services,Safeguarding Team South,923.28
867656,3105285,HAYS SPECIALIST RECRUITMENT,06/05/2014,53102,Agency Staff  Other,Adult Services,STARS & ILS  Management,805.50
867656,3105285,HAYS SPECIALIST RECRUITMENT,06/05/2014,53102,Agency Staff  Other,Adult Services,STARS & ILS  North,"1,627.35"
867656,3105285,HAYS SPECIALIST RECRUITMENT,06/05/2014,53102,Agency Staff  Other,Childrens Services,Targeted Youth Support,"1,201.42"
867656,3105285,HAYS SPECIALIST RECRUITMENT,06/05/2014,53102,Agency Staff  Other,Development & Regen,The Work Programme,547.24
867656,3105285,HAYS SPECIALIST RECRUITMENT,06/05/2014,53102,Agency Staff  Other,Environmental Services,Transport Support Service,582.47
867656,3105285,HAYS SPECIALIST RECRUITMENT,06/05/2014,53102,Agency Staff  Other,Adult Services,Urgent Care,778.36
867656,3105285,HAYS SPECIALIST RECRUITMENT,06/05/2014,53102,Agency Staff  Other,Environmental Services,Waste,"30,451.94"
867656,3105285,HAYS SPECIALIST RECRUITMENT,06/05/2014,53102,Agency Staff  Other,Childrens Services,Yth Ser  Training & Development,509.17
6367,3104897,HAZELBROOK CHRISTIAN NURSING HOME,06/05/2014,Z6011,Z6011 - CR Bal Hold A/c Exp,Adult Services,ADZ0802 - Health - Funded Nursing Care,878.32
6367,3104897,HAZELBROOK CHRISTIAN NURSING HOME,06/05/2014,Z6011,Z6011 - CR Bal Hold A/c Exp,Adult Services,ADZ1201 - 3rd Party Social Care Contributions,562.86
6367,3104897,HAZELBROOK CHRISTIAN NURSING HOME,06/05/2014,54301,Residential Provision,Adult Services,OA  External Provision Residential,"6,831.07"
6367,3104897,HAZELBROOK CHRISTIAN NURSING HOME,06/05/2014,54302,Nursing Provision,Adult Services,OA  External Provision Residential,"3,090.00"
73073,3125954,HEARING PRODUCTS INTERNATIONAL LIMITED,29/05/2014,44051,Clients Aids & Adaptations,Adult Services,Independent,958.00
146379,3121885,HEARTLIFT#ANDREA WOOD,27/05/2014,52200,Contracted Services,Childrens Services,Admin Commissioning,"14,750.00"
3786,3112474,HELPING HAND CO (LEDBURY) LTD,15/05/2014,44051,Clients Aids & Adaptations,Adult Services,ICES,"4,027.00"
3786,3112478,HELPING HAND CO (LEDBURY) LTD,15/05/2014,44051,Clients Aids & Adaptations,Adult Services,ICES,"2,691.00"
6369,3104870,HENSHAWS SOCIETY FOR THE BLIND,06/05/2014,54301,Residential Provision,Adult Services,PD Purchaser Residential Care,"2,946.72"
2544302,3104999,High Brake House,06/05/2014,54301,Residential Provision,Adult Services,OA  External Provision Residential,"1,682.00"
258947,3104939,HIGHCLIFFE RESIDENTIAL HOME#TEAMCARE LTD,06/05/2014,54301,Residential Provision,Adult Services,OA  External Provision Residential,"1,682.00"
236248,3104935,HILLCREST VERNON,06/05/2014,54301,Residential Provision,Adult Services,LD Purchaser Residential Care,"4,870.72"
2013321,3104957,HILLVIEW CARE HOME,06/05/2014,54301,Residential Provision,Adult Services,OA  External Provision Residential,"1,682.00"
51146,3104459,HM Revenue & Customs Only#Was Inland Revenue#2,06/05/2014,Z1051,Work in Progress Additions,Housing GRF,Capital  General Fund,"6,000.00"
161419,3117686,HMF (UK) LTD,22/05/2014,52200,Contracted Services,Environmental Services,Transport Support Service,"1,729.71"
13294,3125517,HOLGATE HOUSE LIMITED,29/05/2014,54301,Residential Provision,Adult Services,Drugs Pooled Treatment Budget,"1,986.43"
13294,3125514,HOLGATE HOUSE LIMITED,29/05/2014,54301,Residential Provision,Adult Services,Drugs Pooled Treatment Budget,728.35
6454,3104874,HOLLANDS NURSING HOME,06/05/2014,Z6011,Z6011 - CR Bal Hold A/c Exp,Adult Services,ADZ0802 - Health - Funded Nursing Care,"3,996.08"
6454,3104874,HOLLANDS NURSING HOME,06/05/2014,54301,Residential Provision,Adult Services,LD Purchaser Residential Care,"5,226.84"
6454,3104874,HOLLANDS NURSING HOME,06/05/2014,54301,Residential Provision,Adult Services,MH Residential External Provision,"8,694.80"
6454,3104874,HOLLANDS NURSING HOME,06/05/2014,54302,Nursing Provision,Adult Services,MH Residential External Provision,"8,817.72"
6454,3104874,HOLLANDS NURSING HOME,06/05/2014,54301,Residential Provision,Adult Services,OA  External Provision Residential,"1,567.96"
6454,3104874,HOLLANDS NURSING HOME,06/05/2014,54302,Nursing Provision,Adult Services,OA  External Provision Residential,"1,567.96"
6454,3104874,HOLLANDS NURSING HOME,06/05/2014,54301,Residential Provision,Adult Services,PD Purchaser Residential Care,"5,923.66"
6454,3104874,HOLLANDS NURSING HOME,06/05/2014,54302,Nursing Provision,Adult Services,PD Purchaser Residential Care,"7,674.28"
76828,3109770,HOLTWOOD HOUSE#FACTOR ARC ADVENTURE (BURY) LTD,12/05/2014,52000,Vol Assoc Grants  General,Childrens Services,Disability Serv External Provision,"7,710.12"
76828,3109775,HOLTWOOD HOUSE#FACTOR ARC ADVENTURE (BURY) LTD,12/05/2014,52000,Vol Assoc Grants  General,Childrens Services,Disability Serv External Provision,"10,714.20"
76828,3109777,HOLTWOOD HOUSE#FACTOR ARC ADVENTURE (BURY) LTD,12/05/2014,52000,Vol Assoc Grants  General,Childrens Services,Disability Serv External Provision,"10,920.58"
76828,3109778,HOLTWOOD HOUSE#FACTOR ARC ADVENTURE (BURY) LTD,12/05/2014,52000,Vol Assoc Grants  General,Childrens Services,Disability Serv External Provision,"6,725.40"
128732,3112593,HOMECARE FOR YOU LTD#BLACKBURN,15/05/2014,52200,Contracted Services,Adult Services,OA  Home Care Services external provision,"24,641.69"
1617292,3126376,HOMECARE SUPPORT,29/05/2014,52200,Contracted Services,Adult Services,OA  Home Care Services external provision,"2,693.08"
1617292,3126379,HOMECARE SUPPORT,29/05/2014,52200,Contracted Services,Adult Services,OA  Home Care Services external provision,"2,333.60"
1617292,3112589,HOMECARE SUPPORT,15/05/2014,52200,Contracted Services,Adult Services,OA  Home Care Services external provision,"42,426.09"
1617292,3112591,HOMECARE SUPPORT,15/05/2014,52200,Contracted Services,Adult Services,OA  Home Care Services external provision,"61,922.91"
369698,3104943,HOMELEA RESIDENTIAL CARE HOME,06/05/2014,54301,Residential Provision,Adult Services,OA  External Provision Residential,"1,843.52"
217235,3104933,HOURIGAN HOUSE#BOROUGH CARE SERVICES,06/05/2014,54301,Residential Provision,Adult Services,OA  External Provision Residential,"1,460.00"
6138,3104865,HYDE  LEA,06/05/2014,Z6011,Z6011 - CR Bal Hold A/c Exp,Adult Services,ADZ1201 - 3rd Party Social Care Contributions,680.00
6138,3104865,HYDE  LEA,06/05/2014,54301,Residential Provision,Adult Services,OA  External Provision Residential,"24,497.52"
302829,3121019,IDOX SOFTWARE LTD,29/05/2014,48509,Other Fees,Development & Regen,Spatial Data  from GIS,"17,454.55"
1582048,3113260,IDS LAND SURVEY,15/05/2014,Z1051,Work in Progress Additions,Highways,Stores,850.00
22994,3104782,IKEN BUSINESS LTD,06/05/2014,45431,Computer Software Licences,Chief Executives,CX11000 - Legal Services Trading Account,"11,452.56"
8734,3115860,IMPROVEMENT & DEVELOPMENT AGENCY FOR LOCAL GOVERNMENT,19/05/2014,47200,General Subscriptions,Chief Executives,CX13033 - Corporate Information Team,"2,712.00"
160124,3124457,INDEPENDENCE MOBILITY LTD,27/05/2014,44051,Clients Aids & Adaptations,Adult Services,ACM  Management,"2,160.00"
1581897,3127263,INDEPENDENT BUSINESS SERVICES LTD,29/05/2014,48509,Other Fees,Childrens Services,Special Needs Unit,"1,987.00"
3909,3112135,INFORMATION & DATA NETWORK SUPPLIES LTD#IDN,15/05/2014,40140,Office Equipment Purchase,Childrens Services,Admin IT (Schools),"3,349.00"
3909,3122480,INFORMATION & DATA NETWORK SUPPLIES LTD#IDN,27/05/2014,45400,Computer Purchase,Childrens Services,Admin IT (Schools),"1,505.10"
3909,3112132,INFORMATION & DATA NETWORK SUPPLIES LTD#IDN,15/05/2014,45400,Computer Purchase,Childrens Services,Admin IT (Schools),"2,872.56"
3909,3108922,INFORMATION & DATA NETWORK SUPPLIES LTD#IDN,12/05/2014,45400,Computer Purchase,Childrens Services,Admin IT (Schools),"5,171.00"
3909,3108923,INFORMATION & DATA NETWORK SUPPLIES LTD#IDN,12/05/2014,45400,Computer Purchase,Childrens Services,Admin IT (Schools),"7,581.85"
3909,3108924,INFORMATION & DATA NETWORK SUPPLIES LTD#IDN,12/05/2014,40140,Office Equipment Purchase,Childrens Services,Admin IT (Schools),"1,399.00"
3909,3108927,INFORMATION & DATA NETWORK SUPPLIES LTD#IDN,12/05/2014,40101,Operational Equipment Maint,Childrens Services,Admin IT (Schools),"1,998.00"
63617,3125644,INSTITUTE OF LICENSING,29/05/2014,19104,Training Exp  Ext Seminars,Environmental Services,Regulatory Services Licensing,"1,060.00"
96665,3125702,INVACARE LTD,29/05/2014,44051,Clients Aids & Adaptations,Adult Services,ICES,"1,160.00"
2178306,3124787,ISG CONSTRUCTION LTD,27/05/2014,Z1051,Work in Progress Additions,Property Services,Property Services Balance Sheet,"527,132.00"
267154,3117353,J A TYRE SERVICE LTD,22/05/2014,31303,Tyres,Environmental Services,Transport Support Service,"1,012.00"
267154,3117354,J A TYRE SERVICE LTD,22/05/2014,31303,Tyres,Environmental Services,Transport Support Service,764.90
267154,3112657,J A TYRE SERVICE LTD,15/05/2014,31303,Tyres,Environmental Services,Transport Support Service,694.80
267154,3117360,J A TYRE SERVICE LTD,22/05/2014,31303,Tyres,Environmental Services,Transport Support Service,523.90
267154,3117362,J A TYRE SERVICE LTD,22/05/2014,31303,Tyres,Environmental Services,Transport Support Service,534.90
267154,3112656,J A TYRE SERVICE LTD,15/05/2014,31303,Tyres,Environmental Services,Transport Support Service,971.50
267154,3112663,J A TYRE SERVICE LTD,15/05/2014,31303,Tyres,Environmental Services,Transport Support Service,520.45
267154,3112654,J A TYRE SERVICE LTD,15/05/2014,31303,Tyres,Environmental Services,Transport Support Service,578.90
267154,3117349,J A TYRE SERVICE LTD,22/05/2014,31303,Tyres,Environmental Services,Transport Support Service,969.80
6399,3111683,J DICKINSON & SONS (HORWICH) LTD#2,15/05/2014,26106,Refuse Collection,Environmental Services,Markets  Rent Account,817.85
6399,3112057,J DICKINSON & SONS (HORWICH) LTD#2,15/05/2014,40610,Direct Materials,Environmental Services,Highway Services,680.81
6399,3117042,J DICKINSON & SONS (HORWICH) LTD#2,22/05/2014,20101,Programmed Maint. Work,Environmental Services,Highways Managers,"1,573.35"
6399,3111669,J DICKINSON & SONS (HORWICH) LTD#2,15/05/2014,26106,Refuse Collection,Environmental Services,Markets  Rent Account,608.29
6399,3110388,J DICKINSON & SONS (HORWICH) LTD#2,12/05/2014,40610,Direct Materials,Environmental Services,Highway Services,983.89
6399,3104360,J DICKINSON & SONS (HORWICH) LTD#2,06/05/2014,40610,Direct Materials,Environmental Services,Highway Services,"1,633.34"
6399,3117085,J DICKINSON & SONS (HORWICH) LTD#2,22/05/2014,26106,Refuse Collection,Environmental Services,Markets  Rent Account,"1,341.64"
6399,3113563,J DICKINSON & SONS (HORWICH) LTD#2,19/05/2014,Z6008,Expense AP Accrual,Bolton MBC Balance Sheet,Bolton MBC Balance Sheet,868.50
6399,3110386,J DICKINSON & SONS (HORWICH) LTD#2,12/05/2014,40601,General Materials,Environmental Services,Activities and Operations,518.98
6399,3104470,J DICKINSON & SONS (HORWICH) LTD#2,06/05/2014,20101,Programmed Maint. Work,Environmental Services,Highways Managers,532.17
6399,3104495,J DICKINSON & SONS (HORWICH) LTD#2,06/05/2014,20101,Programmed Maint. Work,Environmental Services,Highways Managers,768.41
6399,3117940,J DICKINSON & SONS (HORWICH) LTD#2,22/05/2014,26106,Refuse Collection,Environmental Services,Markets  Rent Account,753.63
6399,3104361,J DICKINSON & SONS (HORWICH) LTD#2,06/05/2014,40610,Direct Materials,Environmental Services,Highway Services,974.94
6399,3104371,J DICKINSON & SONS (HORWICH) LTD#2,06/05/2014,20101,Programmed Maint. Work,Environmental Services,Highways Managers,793.14
6399,3104403,J DICKINSON & SONS (HORWICH) LTD#2,06/05/2014,Z6008,Expense AP Accrual,Bolton MBC Balance Sheet,Bolton MBC Balance Sheet,860.70
2396351,3125375,J FREELEY LIMITED,27/05/2014,Z1051,Work in Progress Additions,Environmental Services,Environmental Services Balance sheet,"19,764.00"
6401,3117650,J HOPKINS (CONTRACTORS) LTD,22/05/2014,Z6008,Expense AP Accrual,Bolton MBC Balance Sheet,Bolton MBC Balance Sheet,"10,080.00"
6401,3104335,J HOPKINS (CONTRACTORS) LTD,06/05/2014,Z6008,Expense AP Accrual,Bolton MBC Balance Sheet,Bolton MBC Balance Sheet,"8,064.00"
6401,3104312,J HOPKINS (CONTRACTORS) LTD,06/05/2014,Z6008,Expense AP Accrual,Bolton MBC Balance Sheet,Bolton MBC Balance Sheet,"42,395.82"
6401,3104357,J HOPKINS (CONTRACTORS) LTD,06/05/2014,Z6008,Expense AP Accrual,Bolton MBC Balance Sheet,Bolton MBC Balance Sheet,"26,804.72"
6401,3108374,J HOPKINS (CONTRACTORS) LTD,08/05/2014,Z6008,Expense AP Accrual,Bolton MBC Balance Sheet,Bolton MBC Balance Sheet,"8,064.00"
4021,3127254,J MAHER LIMITED,29/05/2014,40609,Horticultural Materials,Environmental Services,Heaton Fold,504.62
2112387,3113368,J W YOUNG (BUTCHERS) LIMITED,15/05/2014,41101,Catering ProvisionsFood,Environmental Services,Catering,"2,339.28"
2112387,3125866,J W YOUNG (BUTCHERS) LIMITED,29/05/2014,41101,Catering ProvisionsFood,Environmental Services,Catering,"1,830.10"
2112387,3125821,J W YOUNG (BUTCHERS) LIMITED,29/05/2014,41101,Catering ProvisionsFood,Environmental Services,Catering,"2,105.87"
2284291,3117966,JACKSON JACKSON & SONS LTD,22/05/2014,48509,Other Fees,Property Services,Corporate Property Revenue Project Transfers to Other Projects,"39,900.00"
4060,3104905,JAH-JIREH (BLACKPOOL),06/05/2014,54301,Residential Provision,Adult Services,OA  External Provision Residential,"3,697.04"
4070,3126894,JAMES LECKEY DESIGN LTD,29/05/2014,44051,Clients Aids & Adaptations,Adult Services,ICES,808.00
58799,3125940,JAY FOSTERING LIMITED,29/05/2014,52000,Vol Assoc Grants  General,Childrens Services,Res Serv Agency Placements,"3,582.67"
58799,3125943,JAY FOSTERING LIMITED,29/05/2014,52000,Vol Assoc Grants  General,Childrens Services,Res Serv Agency Placements,"3,500.83"
2491291,3104731,JEWELGLEN LIMITED (PARKVIEW),06/05/2014,45914,Commissioning Worklessness,Development & Regen,The Work Programme,"2,000.00"
105529,3112991,JOHNSTON SWEEPERS LIMITED,15/05/2014,31305,Vehicle Servicing,Environmental Services,Transport Support Service,"1,049.06"
1122809,3125481,JONES LIGHTING LTD,27/05/2014,Z1051,Work in Progress Additions,Highways,Stores,"3,247.86"
1122809,3116852,JONES LIGHTING LTD,22/05/2014,20501,Engineering Work,Environmental Services,Highway Services,539.09
1122809,3115864,JONES LIGHTING LTD,19/05/2014,46105,46105 - Members NI Contributions,Environmental Services,Lighting / Stores Billable Costs,"1,275.48"
1122809,3115865,JONES LIGHTING LTD,19/05/2014,20501,Engineering Work,Environmental Services,Lighting / Stores Billable Costs,"11,845.53"
1122809,3111605,JONES LIGHTING LTD,15/05/2014,40610,Direct Materials,Environmental Services,Highway Services,"1,403.38"
1122809,3111460,JONES LIGHTING LTD,12/05/2014,40610,Direct Materials,Environmental Services,Highway Services,893.06
1122809,3111488,JONES LIGHTING LTD,12/05/2014,40610,Direct Materials,Environmental Services,Highway Services,765.48
18212,3121333,KAROMED LIMITED,29/05/2014,44051,Clients Aids & Adaptations,Adult Services,ICES,"4,638.72"
18212,3116499,KAROMED LIMITED,19/05/2014,44051,Clients Aids & Adaptations,Adult Services,ICES,"2,763.00"
424427,3126682,KCOM GROUP PLC,29/05/2014,Z5211,Z5211 - Debit Bal Holding A/c Exp,Finance Department,FNZ8015 - Eclipse Broadband Suspense,"7,189.22"
424427,3125405,KCOM GROUP PLC,27/05/2014,Z5212,Z5212 - Debit Bal Holding A/c Income,Finance Department,FNZ8015 - Eclipse Broadband Suspense,"2,424.05"
424427,3116443,KCOM GROUP PLC,19/05/2014,Z5211,Z5211 - Debit Bal Holding A/c Exp,Finance Department,Fin. Dept.  Centrex Suspense,"6,696.50"
424427,3122481,KCOM GROUP PLC,27/05/2014,40100,Operational Equipment Purchase,Childrens Services,Admin IT (Schools),"24,105.89"
424427,3105102,KCOM GROUP PLC,08/05/2014,40100,Operational Equipment Purchase,Childrens Services,Admin IT (Schools),"24,150.87"
424427,3111921,KCOM GROUP PLC,15/05/2014,Z5212,Z5212 - Debit Bal Holding A/c Income,Finance Department,Fin. Dept.  Centrex Suspense,"6,581.99"
2491290,3104750,KEARSLEY MANUFACTURING LIMITED,06/05/2014,45914,Commissioning Worklessness,Development & Regen,The Work Programme,"2,000.00"
1586371,3111645,KELLIBRATIONS BY KELLY DOOLEY,15/05/2014,40613,Goods for Resale,Environmental Services,Civic Catering  Town Hall Functions,551.50
1586371,3111664,KELLIBRATIONS BY KELLY DOOLEY,15/05/2014,40613,Goods for Resale,Environmental Services,Civic Catering  Town Hall Functions,731.50
7747,3104892,KENYON LODGE,06/05/2014,54301,Residential Provision,Adult Services,OA  External Provision Residential,"1,506.04"
101173,3110645,KEYMEN ASSOCIATES LTD#MAYDAY,12/05/2014,52200,Contracted Services,Adult Services,OA  Home Care Services external provision,"25,475.56"
2530293,3111932,Keyz 2 The Door#New Start,15/05/2014,52000,Vol Assoc Grants  General,Childrens Services,Res Serv Agency Placements,"6,873.12"
1989355,3104956,KINGARTH,06/05/2014,54301,Residential Provision,Adult Services,LD Purchaser Residential Care,"11,162.40"
1802291,3115855,KINGS CHAMBERS,19/05/2014,48502,Legal Fees,Development & Regen,Development Management,"1,250.00"
4405,3108390,KNIGHTSBRIDGE FURNITURE PRODUCTIONS LTD,12/05/2014,Z1051,Work in Progress Additions,Central Corporate,Corporate Property Balance Sheet,"2,997.00"
6434,3104898,KNIGHTSWOOD RESIDENTIAL HOME,06/05/2014,Z6011,Z6011 - CR Bal Hold A/c Exp,Adult Services,ADZ1201 - 3rd Party Social Care Contributions,"3,217.47"
6434,3104898,KNIGHTSWOOD RESIDENTIAL HOME,06/05/2014,54301,Residential Provision,Adult Services,OA  External Provision Residential,"17,614.85"
2198,3117303,KPMG LLP,22/05/2014,48519,External Audit Fees,Finance Department,Financial Management,"3,035.00"
240516,3104320,KTG Recruitment Ltd,22/05/2014,54301,Residential Provision,Adult Services,OA  External Provision Residential,"1,067.25"
240516,3105158,KTG Recruitment Ltd,22/05/2014,54301,Residential Provision,Adult Services,OA  External Provision Residential,938.25
240516,3104314,KTG Recruitment Ltd,22/05/2014,54301,Residential Provision,Adult Services,OA  External Provision Residential,"1,083.00"
1937291,3104955,LABURNUM HOUSE LTD#REDACTED PERSONAL DATA,06/05/2014,54301,Residential Provision,Adult Services,MH Residential External Provision,"1,568.68"
6440,3104872,LADYMEAD NURSING HOME#FACTOR ICON HEALTHCARE (UK) LIMITED,06/05/2014,54301,Residential Provision,Adult Services,OA  External Provision Residential,"12,518.28"
6440,3104872,LADYMEAD NURSING HOME#FACTOR ICON HEALTHCARE (UK) LIMITED,06/05/2014,54302,Nursing Provision,Adult Services,OA  External Provision Residential,"1,567.96"
2433402,3113591,LAFARGE TARMAC TRADING LIMITED,19/05/2014,Z6008,Expense AP Accrual,Bolton MBC Balance Sheet,Bolton MBC Balance Sheet,756.69
2433402,3113593,LAFARGE TARMAC TRADING LIMITED,19/05/2014,Z6008,Expense AP Accrual,Bolton MBC Balance Sheet,Bolton MBC Balance Sheet,728.23
2433402,3113587,LAFARGE TARMAC TRADING LIMITED,19/05/2014,Z6008,Expense AP Accrual,Bolton MBC Balance Sheet,Bolton MBC Balance Sheet,"1,581.70"
2433402,3105283,LAFARGE TARMAC TRADING LIMITED,06/05/2014,Z6008,Expense AP Accrual,Bolton MBC Balance Sheet,Bolton MBC Balance Sheet,"1,664.12"
2433402,3113589,LAFARGE TARMAC TRADING LIMITED,19/05/2014,Z6008,Expense AP Accrual,Bolton MBC Balance Sheet,Bolton MBC Balance Sheet,739.35
2433402,3112026,LAFARGE TARMAC TRADING LIMITED,15/05/2014,Z6008,Expense AP Accrual,Bolton MBC Balance Sheet,Bolton MBC Balance Sheet,724.52
2433402,3109641,LAFARGE TARMAC TRADING LIMITED,12/05/2014,Z6008,Expense AP Accrual,Bolton MBC Balance Sheet,Bolton MBC Balance Sheet,722.67
2433402,3104416,LAFARGE TARMAC TRADING LIMITED,06/05/2014,Z6008,Expense AP Accrual,Bolton MBC Balance Sheet,Bolton MBC Balance Sheet,906.15
2433402,3104417,LAFARGE TARMAC TRADING LIMITED,06/05/2014,Z6008,Expense AP Accrual,Bolton MBC Balance Sheet,Bolton MBC Balance Sheet,"1,480.50"
4457,3104911,LAKESIDE CARE HOME,06/05/2014,54301,Residential Provision,Adult Services,OA  External Provision Residential,"1,460.00"
2404295,3104987,LAKESIDE RESIDENTIAL CARE HOME,06/05/2014,54301,Residential Provision,Adult Services,OA  External Provision Residential,"1,544.00"
2146291,3114784,LAMBERT WALKER CONSERVATION AND RESTORATION LTD,19/05/2014,Z1051,Work in Progress Additions,Environmental Services,Environmental Services Balance sheet,"41,327.50"
6442,3113245,LANDSCAPE ENGINEERING LTD,15/05/2014,Z1051,Work in Progress Additions,Environmental Services,Environmental Services Balance sheet,"7,035.00"
2273296,3112137,Lego Company Limited T/A Lego Education Europe,15/05/2014,45433,ECDL Courseware Hosting,Childrens Services,Admin IT (Schools),"2,109.91"
2588308,3125392,REDACTED - PERSONAL DATA,27/05/2014,48509,Other Fees,Housing GRF,Mediation,707.25
1015735,3104946,LEVER EDGE CARE HOME,06/05/2014,54301,Residential Provision,Adult Services,MH Residential External Provision,"1,589.08"
1015735,3104946,LEVER EDGE CARE HOME,06/05/2014,54301,Residential Provision,Adult Services,OA  External Provision Residential,"96,587.70"
1015735,3104946,LEVER EDGE CARE HOME,06/05/2014,54301,Residential Provision,Adult Services,PD Purchaser Residential Care,"1,589.08"
2605312,3118242,Lever Edge Residents Accounts#Fred Hamer Funeral Services,22/05/2014,Z6011,Z6011 - CR Bal Hold A/c Exp,Adult Services,ADZ1901 - Residents Savings A/C,"3,232.00"
2601339,3117019,Lex Autolease Ltd,22/05/2014,33206,Vehicle Leasing,Public Health,Food Action Bolton,550.01
2601339,3116988,Lex Autolease Ltd,22/05/2014,33206,Vehicle Leasing,Public Health,Food Action Bolton,550.01
2601339,3117014,Lex Autolease Ltd,22/05/2014,33206,Vehicle Leasing,Public Health,Food Action Bolton,550.01
2601339,3117023,Lex Autolease Ltd,22/05/2014,33206,Vehicle Leasing,Public Health,Food Action Bolton,550.01
2601339,3116985,Lex Autolease Ltd,22/05/2014,33206,Vehicle Leasing,Public Health,Food Action Bolton,550.01
2601339,3116973,Lex Autolease Ltd,22/05/2014,33206,Vehicle Leasing,Public Health,Food Action Bolton,"2,200.04"
2601339,3117003,Lex Autolease Ltd,22/05/2014,33206,Vehicle Leasing,Public Health,Get Active,684.50
2601339,3117010,Lex Autolease Ltd,22/05/2014,33206,Vehicle Leasing,Public Health,Food Action Bolton,550.01
2601339,3117028,Lex Autolease Ltd,22/05/2014,33206,Vehicle Leasing,Public Health,Food Action Bolton,"2,933.40"
2601339,3116990,Lex Autolease Ltd,22/05/2014,33206,Vehicle Leasing,Public Health,Food Action Bolton,550.01
1104799,3109927,LIAM TRIPPIER SCHOOL IMPROVEMENT LTD,12/05/2014,48509,Other Fees,Childrens Services,CE Funding  Intervention  Primary,595.34
514522,3116578,LIFELINE PROJECT LTD,19/05/2014,52200,Contracted Services,Adult Services,Drugs Pooled Treatment Budget,"66,460.42"
514522,3116581,LIFELINE PROJECT LTD,19/05/2014,52200,Contracted Services,Adult Services,Drugs Pooled Treatment Budget,"20,833.17"
514522,3116584,LIFELINE PROJECT LTD,19/05/2014,52200,Contracted Services,Adult Services,Drugs Pooled Treatment Budget,"70,631.75"
514522,3116579,LIFELINE PROJECT LTD,19/05/2014,52200,Contracted Services,Adult Services,Drugs Pooled Treatment Budget,"28,956.75"
63440,3116420,REDACTED - PERSONAL DATA#Interpreting & Translating Services,19/05/2014,48509,Other Fees,Adult Services,ACM  North,"1,890.00"
5061,3117515,LISA PARTINGTON,22/05/2014,48502,Legal Fees,Childrens Services,Management Team,650.00
4586,3125696,LISCLARE LIMITED,29/05/2014,44051,Clients Aids & Adaptations,Adult Services,ICES,"1,602.00"
363536,3104942,LITTLE SISTERS OF THE POOR,06/05/2014,54301,Residential Provision,Adult Services,OA  External Provision Residential,"3,323.36"
2527308,3113610,Logic Street & Park Furniture Ltd,19/05/2014,Z1051,Work in Progress Additions,Development & Regen,Development & Regeneration Capital,"3,649.24"
36816,3117605,LUCY WILSON-BARNES,22/05/2014,48502,Legal Fees,Chief Executives,CX11001 - Legal Services Holding Code,"2,400.00"
6188,3125778,LUCY ZODION LIMITED,29/05/2014,Z6007,Z6007 - Inventory AP Accrual,Highways,Stores,"2,210.00"
6188,3110649,LUCY ZODION LIMITED,12/05/2014,Z1051,Work in Progress Additions,Highways,Stores,"4,772.06"
6449,3104873,LYNGATE RESIDENTIAL HOME,06/05/2014,54301,Residential Provision,Adult Services,OA  External Provision Residential,"35,068.74"
2396347,3116914,REDACTED - PERSONAL DATA T/A Len Grant Photography,22/05/2014,48509,Other Fees,Environmental Services,Neighbourhood Management Programme,568.00
2032302,3126326,MAHOOD MARQUEES,29/05/2014,48203,Marketing,Chief Executives,CX24002 - Marketing - Holding Code,"1,360.00"
6464,3113113,MAKING SPACE#4,15/05/2014,52200,Contracted Services,Adult Services,Supporting People  Capital Financing,"5,395.39"
7903,3125808,MALCOLM NICHOLSON & SON,29/05/2014,52200,Contracted Services,Environmental Services,Transport Support Service,"1,792.21"
7903,3117706,MALCOLM NICHOLSON & SON,22/05/2014,52200,Contracted Services,Environmental Services,Transport Support Service,660.16
2421293,3117808,MALROD ENVIRONMENTAL LIMITED,29/05/2014,Z6008,Expense AP Accrual,Bolton MBC Balance Sheet,Bolton MBC Balance Sheet,850.00
6467,3110683,Manchester City Council,12/05/2014,55001,55001 - AGMA Section 48 grants,Chief Executives,CX55951 - AGMA Payments,"342,044.00"
6467,3110683,Manchester City Council,12/05/2014,55022,55022 - AGMA Environment Commission,Chief Executives,CX55951 - AGMA Payments,"30,147.00"
6467,3110683,Manchester City Council,12/05/2014,55024,55024 - AGMA GM Integrated Support,Chief Executives,CX55951 - AGMA Payments,"78,926.00"
6467,3110683,Manchester City Council,12/05/2014,55025,55025 - AGMA contribs to GM Against Crime,Chief Executives,CX55951 - AGMA Payments,"29,483.00"
6467,3110683,Manchester City Council,12/05/2014,55027,55027 - AGMA Public Sector reform,Chief Executives,CX55951 - AGMA Payments,"103,243.00"
6467,3110683,Manchester City Council,12/05/2014,55028,55028 - AGMA other priorities,Chief Executives,CX55951 - AGMA Payments,"14,557.00"
6467,3110683,Manchester City Council,12/05/2014,55032,55032 - Procurement Hub,Chief Executives,CX55951 - AGMA Payments,"16,278.00"
6467,3110683,Manchester City Council,12/05/2014,55033,55033 - Other AGMA Investments,Chief Executives,CX55951 - AGMA Payments,"45,840.00"
125827,3119983,MANCHESTER EVENING NEWS,27/05/2014,40100,Operational Equipment Purchase,Childrens Services,Music ServMusic Service general,"2,190.00"
6461,3116639,Manchester Metropolitan University,22/05/2014,47200,General Subscriptions,Environmental Services,Regulatory Services Licensing,500.00
130485,3112339,MANOR PHARMACY#VARIOUS CHEMISTS,15/05/2014,52200,Contracted Services,Adult Services,Drugs Pooled Treatment Budget,739.00
17742,3117845,REDACTED - PERSONAL DATA,22/05/2014,19100,Training Exps Tuition Fees,Childrens Services,CH43727 - WPD Project Link,630.00
6458,3125820,MARK MANGNALL & SON,29/05/2014,Z6008,Expense AP Accrual,Bolton MBC Balance Sheet,Bolton MBC Balance Sheet,"1,249.00"
6458,3113350,MARK MANGNALL & SON,15/05/2014,Z1051,Work in Progress Additions,Environmental Services,Environmental Services Balance sheet,"1,223.00"
24530,3126856,Markland Hill CP School,29/05/2014,53102,Agency Staff  Other,Childrens Services,Income – Teaching & Learning CPD,720.00
6470,3104899,MARLEY COURT  NURSING & RESIDENTAIL HOME,06/05/2014,54301,Residential Provision,Adult Services,OA  External Provision Residential,"1,682.00"
874657,3112359,MARSH (BOLTON) LTD T/A COHENS CHEMIST,15/05/2014,52200,Contracted Services,Adult Services,Drugs Pooled Treatment Budget,605.10
874657,3112361,MARSH (BOLTON) LTD T/A COHENS CHEMIST,15/05/2014,52200,Contracted Services,Adult Services,Drugs Pooled Treatment Budget,620.60
6472,3121606,MARWOOD ELECTRICAL COMPANY LTD,27/05/2014,20501,Engineering Work,Environmental Services,Highway Management,"2,404.80"
349230,3109638,MARWOOD GROUP LIMITED,12/05/2014,33202,Plant Hire,Environmental Services,Highways Maintenance Billable Costs,"1,750.00"
4808,3104886,MARY & JOSEPH HOUSE,06/05/2014,54301,Residential Provision,Adult Services,MH Residential External Provision,"3,898.00"
75513,3117505,MATCHTECH GROUP PLC,22/05/2014,48509,Other Fees,Development & Regen,Divisional Development,613.46
75513,3125907,MATCHTECH GROUP PLC,29/05/2014,48509,Other Fees,Development & Regen,Divisional Development,530.56
75513,3104313,MATCHTECH GROUP PLC,06/05/2014,53102,Agency Staff  Other,Development & Regen,Divisional Development,513.98
2497291,3104993,MAX POTENTIAL UK LTD,06/05/2014,54301,Residential Provision,Adult Services,MH Residential External Provision,"2,000.00"
2434291,3104988,MAYBANK HOUSE,06/05/2014,54301,Residential Provision,Adult Services,OA  External Provision Residential,"1,593.40"
38107,3104918,MEADOW BANK NURSING HOME,06/05/2014,54302,Nursing Provision,Adult Services,OA  External Provision Residential,"3,822.24"
4856,3104906,MEADOWBANK HOUSE,06/05/2014,Z6011,Z6011 - CR Bal Hold A/c Exp,Adult Services,ADZ0802 - Health - Funded Nursing Care,"1,780.64"
4856,3104906,MEADOWBANK HOUSE,06/05/2014,54301,Residential Provision,Adult Services,OA  External Provision Residential,"12,712.64"
4856,3104906,MEADOWBANK HOUSE,06/05/2014,54302,Nursing Provision,Adult Services,OA  External Provision Residential,"6,356.32"
2461290,3104989,MEADOWLARK,06/05/2014,54302,Nursing Provision,Adult Services,OA  External Provision Residential,"2,361.78"
2349295,3109428,MEADOWS CARE LIMITED,08/05/2014,52000,Vol Assoc Grants  General,Childrens Services,Res Serv Agency Placements,"16,500.00"
1598332,3126361,MEARS CARE LTD,29/05/2014,52200,Contracted Services,Adult Services,OA  Home Care Services external provision,"14,681.38"
1598332,3126804,MEARS CARE LTD,29/05/2014,52200,Contracted Services,Adult Services,OA  Home Care Services external provision,"13,695.31"
6479,3117116,MEDWAY HEATING (BOLTON)  LTD,22/05/2014,Z6008,Expense AP Accrual,Bolton MBC Balance Sheet,Bolton MBC Balance Sheet,"1,720.00"
6479,3125876,MEDWAY HEATING (BOLTON)  LTD,29/05/2014,Z6008,Expense AP Accrual,Bolton MBC Balance Sheet,Bolton MBC Balance Sheet,630.00
2212370,3113351,MHG (SUPPLIES) LTD,15/05/2014,40601,General Materials,Finance Department,LMA Library Mgmt,"1,785.25"
1712296,3109311,MIKE FALCUS,08/05/2014,48509,Other Fees,Childrens Services,Management Team,580.31
10133,3104915,MILLVIEW NURSING HOME,06/05/2014,Z6011,Z6011 - CR Bal Hold A/c Exp,Adult Services,ADZ0802 - Health - Funded Nursing Care,"10,809.32"
10133,3104915,MILLVIEW NURSING HOME,06/05/2014,54302,Nursing Provision,Adult Services,LD Purchaser Residential Care,"3,135.92"
10133,3104915,MILLVIEW NURSING HOME,06/05/2014,54301,Residential Provision,Adult Services,MH Residential External Provision,"1,567.96"
10133,3104915,MILLVIEW NURSING HOME,06/05/2014,54301,Residential Provision,Adult Services,OA  External Provision Residential,"97,178.98"
10133,3104915,MILLVIEW NURSING HOME,06/05/2014,54302,Nursing Provision,Adult Services,OA  External Provision Residential,"38,578.25"
10133,3104915,MILLVIEW NURSING HOME,06/05/2014,54301,Residential Provision,Adult Services,PD Purchaser Residential Care,"1,567.96"
10133,3104915,MILLVIEW NURSING HOME,06/05/2014,54302,Nursing Provision,Adult Services,PD Purchaser Residential Care,"1,567.96"
187793,3113175,MISS JAYNE ACTON,15/05/2014,48502,Legal Fees,Childrens Services,Management Team,550.00
5058,3113151,MISS LINDA SWEENEY,15/05/2014,48502,Legal Fees,Childrens Services,Management Team,740.00
2147302,3104963,MOSTON GRANGE NURSING HOME,06/05/2014,54302,Nursing Provision,Adult Services,MH Residential External Provision,"3,700.00"
204392,3113254,MTM PRESENTATIONS LTD,15/05/2014,48203,Marketing,Chief Executives,CX24002 - Marketing - Holding Code,"1,900.00"
2212391,3115877,MULTIHOG UK LTD,19/05/2014,Z6008,Expense AP Accrual,Bolton MBC Balance Sheet,Bolton MBC Balance Sheet,"1,500.00"
2212391,3104557,MULTIHOG UK LTD,06/05/2014,Z6008,Expense AP Accrual,Bolton MBC Balance Sheet,Bolton MBC Balance Sheet,"1,500.00"
2212391,3104551,MULTIHOG UK LTD,06/05/2014,Z6008,Expense AP Accrual,Bolton MBC Balance Sheet,Bolton MBC Balance Sheet,"1,500.00"
13833,3125675,MUSEUMS ASSOCIATION,29/05/2014,47200,General Subscriptions,Chief Executives,CX67310 - Collections Access MUS,882.58
5936,3121680,Myerscough College,27/05/2014,19100,Training Exps Tuition Fees,Environmental Services,Activities and Operations,"1,510.00"
9982,3121004,NATIONAL CAR PARKS LTD#NCP,27/05/2014,37100,Car Parking,Development & Regen,D&R Departmental Account,"49,253.01"
2285319,3104970,NAZARETH HOUSE MANCHESTER#EPH,06/05/2014,Z6011,Z6011 - CR Bal Hold A/c Exp,Adult Services,ADZ1201 - 3rd Party Social Care Contributions,844.76
2285319,3104970,NAZARETH HOUSE MANCHESTER#EPH,06/05/2014,54301,Residential Provision,Adult Services,OA  External Provision Residential,"1,615.24"
6026,3108438,NCC SERVICES LTD,08/05/2014,45430,Computer Software,Chief Executives,CX59500 - C.R.M. Operations,600.00
187,3116976,NEW HORIZONS (STOCKPORT) LTD,22/05/2014,52000,Vol Assoc Grants  General,Childrens Services,Res Serv Agency Placements,"13,000.00"
1237875,3125920,NEW START CHILDCARE,29/05/2014,52000,Vol Assoc Grants  General,Childrens Services,Res Serv Agency Placements,"11,909.76"
1237875,3116995,NEW START CHILDCARE,22/05/2014,52000,Vol Assoc Grants  General,Childrens Services,Res Serv Agency Placements,"20,910.00"
1237875,3116613,NEW START CHILDCARE,22/05/2014,52000,Vol Assoc Grants  General,Childrens Services,Disability Serv External Provision,"17,507.71"
117865,3117583,NEWSQUEST (NORTH WEST) LTD,22/05/2014,48200,Advertising General,Environmental Services,Albert Halls Entertainment,920.00
117865,3124137,NEWSQUEST (NORTH WEST) LTD,27/05/2014,48203,Marketing,Chief Executives,CX24002 - Marketing - Holding Code,502.50
117865,3113215,NEWSQUEST (NORTH WEST) LTD,15/05/2014,48200,Advertising General,Environmental Services,Highway Management,724.10
117865,3113217,NEWSQUEST (NORTH WEST) LTD,15/05/2014,48200,Advertising General,Environmental Services,Highway Management,681.80
117865,3112502,NEWSQUEST (NORTH WEST) LTD,15/05/2014,48203,Marketing,Central Services,Marketing  General (N),900.00
117865,3124483,NEWSQUEST (NORTH WEST) LTD,27/05/2014,20501,Engineering Work,Environmental Services,Highway Services,639.50
117865,3126865,NEWSQUEST (NORTH WEST) LTD,29/05/2014,48200,Advertising General,Environmental Services,Community Safety,681.80
117865,3108602,NEWSQUEST (NORTH WEST) LTD,08/05/2014,48200,Advertising General,Environmental Services,Albert Halls Entertainment,773.41
2535411,3117883,Next Stage 4 Life,22/05/2014,52000,Vol Assoc Grants  General,Childrens Services,Res Serv Agency Placements,"12,000.00"
2265300,3117850,NEXT STAGE A WAY FORWARD LIMITED,22/05/2014,52200,Contracted Services,Adult Services,LD Purchaser Supported Housing,"16,534.50"
8266,3112584,NO THIRD ENTERTAINMENTS LTD,15/05/2014,48501,Artistes Fees,Environmental Services,Albert Halls Entertainment,"5,391.66"
125827,3120010,NOMINET UK,27/05/2014,45401,Computer Maintenance,Childrens Services,Admin IT (Schools),540.00
203434,3116678,NORTHERN EDUCATION,22/05/2014,53102,Agency Staff  Other,Childrens Services,Sec Sch Imp  Running Costs,"2,287.50"
203434,3116685,NORTHERN EDUCATION,22/05/2014,53102,Agency Staff  Other,Childrens Services,Sec Sch Imp  Running Costs,"1,830.00"
203434,3116685,NORTHERN EDUCATION,22/05/2014,48509,Other Fees,Childrens Services,Secondary Commissioning,610.00
203434,3117684,NORTHERN EDUCATION,22/05/2014,19101,Training  Exam Fees,Childrens Services,CE Funding  Intervention  Secondary,850.00
262,3125800,NORTHERNCARE#WHISTLEDAWN LTD,29/05/2014,52000,Vol Assoc Grants  General,Childrens Services,Res Serv Agency Placements,"11,049.29"
1838318,3115849,NORTHGATE VEHICLE HIRE LTD,19/05/2014,33201,Transport Hire,Environmental Services,Transport Support Service,"4,929.74"
1838318,3109792,NORTHGATE VEHICLE HIRE LTD,12/05/2014,36200,Uninsured Losses  Vehicles,Environmental Services,Transport Support Service,771.86
1838318,3109858,NORTHGATE VEHICLE HIRE LTD,12/05/2014,36200,Uninsured Losses  Vehicles,Environmental Services,Transport Support Service,570.71
1838318,3109788,NORTHGATE VEHICLE HIRE LTD,12/05/2014,36200,Uninsured Losses  Vehicles,Environmental Services,Transport Support Service,"1,093.80"
10182,3105132,NPOWER LIMITED,06/05/2014,21100,Electricity  General,Property Services,Energy Payments Account,"1,467.24"
10182,3124459,NPOWER LIMITED,27/05/2014,21200,Gas  General,Chief Executives,CX40000 - Land and Property Portfolios,"2,142.31"
125827,3121301,NRICS SUBS UK CYBS,27/05/2014,47200,General Subscriptions,Chief Executives,CX44002 - Energy Payments Account,619.00
266933,3116819,NSL LIMITED#NSL SERVICES GROUP,22/05/2014,44202,Contract UnitNonLEA,Environmental Services,Parking Services  On Street,"3,858.00"
266933,3116824,NSL LIMITED#NSL SERVICES GROUP,22/05/2014,44202,Contract UnitNonLEA,Environmental Services,Parking Services  On Street,"36,977.02"
62914,3112537,NUGENT CARE#BOLTON PROJECT,15/05/2014,52200,Contracted Services,Adult Services,LD Purchaser Day Services,"33,929.50"
57792,3125418,NUTMEG UK LIMITED,27/05/2014,45431,Computer Software Licences,Environmental Services,Catering,"1,600.00"
116387,3111490,OCLC (UK) LTD,12/05/2014,40753,Book Fund Expenditure,Chief Executives,CX67420 - Libraries Info. Services,"2,324.30"
42754,3112223,OFSTED,15/05/2014,48509,Other Fees,Childrens Services,Disability Serv Avondale Street,"2,078.00"
42754,3112230,OFSTED,15/05/2014,48509,Other Fees,Childrens Services,Disability Serv Trackside Approach,"1,919.00"
1564046,3115354,OJT COMMUNICATIONS LTD,19/05/2014,Z1051,Work in Progress Additions,Central Corporate,Corporate Property Balance Sheet,"9,410.00"
1564046,3108584,OJT COMMUNICATIONS LTD,15/05/2014,Z1051,Work in Progress Additions,Finance Department,Finance Balance Sheet,750.00
1564046,3111349,OJT COMMUNICATIONS LTD,15/05/2014,Z1051,Work in Progress Additions,Finance Department,Finance Balance Sheet,"1,100.00"
6529,3118119,OLM SYSTEMS LIMITED,22/05/2014,45431,Computer Software Licences,Adult Services,AD  IT,"124,642.33"
6529,3118126,OLM SYSTEMS LIMITED,22/05/2014,45431,Computer Software Licences,Adult Services,AD  IT,"34,400.00"
6531,3115087,ORANGE PCS LTD#PAY S98  1DX,19/05/2014,Z5211,Z5211 - Debit Bal Holding A/c Exp,Finance Department,FNZ8018 - Mobile Phone Suspense,"2,017.69"
2397427,3104986,ORCHARD COURT,06/05/2014,54301,Residential Provision,Adult Services,OA  External Provision Residential,"1,562.12"
218061,3127233,ORCHARD RECYCLING SERVICE#FURNITURE,29/05/2014,50002,Other Agency/Contracted Services,Environmental Services,Waste,546.00
125827,3121265,OXFORD UNIVERSITY,27/05/2014,46009,Conference Expenses,Chief Executives,CX67110 - LMA Library Mgmt,500.00
388,3116648,PARALLEL PARENTS,22/05/2014,52000,Vol Assoc Grants  General,Childrens Services,Res Serv Agency Placements,"2,890.80"
388,3116654,PARALLEL PARENTS,22/05/2014,52000,Vol Assoc Grants  General,Childrens Services,Res Serv Agency Placements,"2,809.20"
34703,3117960,PARK HOUSE HEALTHCARE LTD,22/05/2014,44051,Clients Aids & Adaptations,Adult Services,ICES,"7,033.20"
34703,3126877,PARK HOUSE HEALTHCARE LTD,29/05/2014,44051,Clients Aids & Adaptations,Adult Services,ICES,"1,300.00"
34703,3125692,PARK HOUSE HEALTHCARE LTD,29/05/2014,44051,Clients Aids & Adaptations,Adult Services,ICES,"1,555.00"
394,3117772,PARK LANE PLANTS LTD,22/05/2014,40609,Horticultural Materials,Environmental Services,Heaton Fold,548.00
394,3109959,PARK LANE PLANTS LTD,12/05/2014,40609,Horticultural Materials,Environmental Services,Heaton Fold,716.75
50,3106353,PARKLANDS HOUSE NURSING HOME,06/05/2014,54302,Nursing Provision,Adult Services,MH Residential External Provision,"9,821.86"
2330340,3118264,Parklands Residents Accounts#Eldercare (Halifax) Ltd T/A,22/05/2014,Z6011,Z6011 - CR Bal Hold A/c Exp,Adult Services,ADZ1901 - Residents Savings A/C,500.00
7907,3104875,PARKVIEW NURSING & RESIDENTIAL HOME,06/05/2014,54301,Residential Provision,Adult Services,OA  External Provision Residential,"23,384.62"
7907,3104875,PARKVIEW NURSING & RESIDENTIAL HOME,06/05/2014,54301,Residential Provision,Adult Services,PD Purchaser Residential Care,"3,111.12"
2605311,3118240,Parkview Residents Accounts#Co-operative Funeralcare,22/05/2014,Z6011,Z6011 - CR Bal Hold A/c Exp,Adult Services,ADZ1901 - Residents Savings A/C,"1,436.85"
125827,3120703,PAUL DAVIES KITCHENS BOLTON,27/05/2014,40110,Op Equip Furniture Purchase,Housing GRF,Local Welfare Provision Pilot,559.52
125827,3120704,PAUL DAVIES KITCHENS BOLTON,27/05/2014,40110,Op Equip Furniture Purchase,Housing GRF,Local Welfare Provision Pilot,559.52
125827,3120705,PAUL DAVIES KITCHENS BOLTON,27/05/2014,40110,Op Equip Furniture Purchase,Housing GRF,Local Welfare Provision Pilot,559.52
125827,3120706,PAUL DAVIES KITCHENS BOLTON,27/05/2014,40110,Op Equip Furniture Purchase,Housing GRF,Local Welfare Provision Pilot,559.52
125827,3120707,PAUL DAVIES KITCHENS BOLTON,27/05/2014,40110,Op Equip Furniture Purchase,Housing GRF,Local Welfare Provision Pilot,559.52
125827,3120708,PAUL DAVIES KITCHENS BOLTON,27/05/2014,40110,Op Equip Furniture Purchase,Housing GRF,Local Welfare Provision Pilot,559.52
125827,3120709,PAUL DAVIES KITCHENS BOLTON,27/05/2014,40110,Op Equip Furniture Purchase,Housing GRF,Local Welfare Provision Pilot,559.52
125827,3120710,PAUL DAVIES KITCHENS BOLTON,27/05/2014,40110,Op Equip Furniture Purchase,Housing GRF,Local Welfare Provision Pilot,559.52
125827,3120711,PAUL DAVIES KITCHENS BOLTON,27/05/2014,40110,Op Equip Furniture Purchase,Housing GRF,Local Welfare Provision Pilot,559.52
125827,3120712,PAUL DAVIES KITCHENS BOLTON,27/05/2014,40110,Op Equip Furniture Purchase,Housing GRF,Local Welfare Provision Pilot,559.52
125827,3120713,PAUL DAVIES KITCHENS BOLTON,27/05/2014,40110,Op Equip Furniture Purchase,Housing GRF,Local Welfare Provision Pilot,559.52
125827,3120673,PAUL DAVIES KITCHENS BOLTON,27/05/2014,40110,Op Equip Furniture Purchase,Housing GRF,Local Welfare Provision Pilot,559.52
125827,3120674,PAUL DAVIES KITCHENS BOLTON,27/05/2014,40110,Op Equip Furniture Purchase,Housing GRF,Local Welfare Provision Pilot,559.52
125827,3120675,PAUL DAVIES KITCHENS BOLTON,27/05/2014,40110,Op Equip Furniture Purchase,Housing GRF,Local Welfare Provision Pilot,559.52
125827,3120676,PAUL DAVIES KITCHENS BOLTON,27/05/2014,40110,Op Equip Furniture Purchase,Housing GRF,Local Welfare Provision Pilot,559.52
125827,3120677,PAUL DAVIES KITCHENS BOLTON,27/05/2014,40110,Op Equip Furniture Purchase,Housing GRF,Local Welfare Provision Pilot,559.52
125827,3120678,PAUL DAVIES KITCHENS BOLTON,27/05/2014,40110,Op Equip Furniture Purchase,Housing GRF,Local Welfare Provision Pilot,559.52
125827,3120679,PAUL DAVIES KITCHENS BOLTON,27/05/2014,40110,Op Equip Furniture Purchase,Housing GRF,Local Welfare Provision Pilot,559.52
125827,3120680,PAUL DAVIES KITCHENS BOLTON,27/05/2014,40110,Op Equip Furniture Purchase,Housing GRF,Local Welfare Provision Pilot,559.52
125827,3120603,PAUL DAVIES KITCHENS BOLTON,27/05/2014,40110,Op Equip Furniture Purchase,Housing GRF,Local Welfare Provision Pilot,559.52
125827,3120604,PAUL DAVIES KITCHENS BOLTON,27/05/2014,40110,Op Equip Furniture Purchase,Housing GRF,Local Welfare Provision Pilot,559.52
125827,3120605,PAUL DAVIES KITCHENS BOLTON,27/05/2014,40110,Op Equip Furniture Purchase,Housing GRF,Local Welfare Provision Pilot,559.52
125827,3120606,PAUL DAVIES KITCHENS BOLTON,27/05/2014,40110,Op Equip Furniture Purchase,Housing GRF,Local Welfare Provision Pilot,559.52
125827,3120607,PAUL DAVIES KITCHENS BOLTON,27/05/2014,40110,Op Equip Furniture Purchase,Housing GRF,Local Welfare Provision Pilot,559.52
125827,3120608,PAUL DAVIES KITCHENS BOLTON,27/05/2014,40110,Op Equip Furniture Purchase,Housing GRF,Local Welfare Provision Pilot,559.52
125827,3120609,PAUL DAVIES KITCHENS BOLTON,27/05/2014,40110,Op Equip Furniture Purchase,Housing GRF,Local Welfare Provision Pilot,559.52
125827,3120610,PAUL DAVIES KITCHENS BOLTON,27/05/2014,40110,Op Equip Furniture Purchase,Housing GRF,Local Welfare Provision Pilot,559.52
125827,3120611,PAUL DAVIES KITCHENS BOLTON,27/05/2014,40110,Op Equip Furniture Purchase,Housing GRF,Local Welfare Provision Pilot,559.52
125827,3120612,PAUL DAVIES KITCHENS BOLTON,27/05/2014,40110,Op Equip Furniture Purchase,Housing GRF,Local Welfare Provision Pilot,559.52
125827,3120613,PAUL DAVIES KITCHENS BOLTON,27/05/2014,40110,Op Equip Furniture Purchase,Housing GRF,Local Welfare Provision Pilot,559.52
125827,3120614,PAUL DAVIES KITCHENS BOLTON,27/05/2014,40110,Op Equip Furniture Purchase,Housing GRF,Local Welfare Provision Pilot,559.52
125827,3120615,PAUL DAVIES KITCHENS BOLTON,27/05/2014,40110,Op Equip Furniture Purchase,Housing GRF,Local Welfare Provision Pilot,559.52
125827,3120616,PAUL DAVIES KITCHENS BOLTON,27/05/2014,40110,Op Equip Furniture Purchase,Housing GRF,Local Welfare Provision Pilot,559.52
125827,3120617,PAUL DAVIES KITCHENS BOLTON,27/05/2014,40110,Op Equip Furniture Purchase,Housing GRF,Local Welfare Provision Pilot,559.52
125827,3120618,PAUL DAVIES KITCHENS BOLTON,27/05/2014,40110,Op Equip Furniture Purchase,Housing GRF,Local Welfare Provision Pilot,559.52
125827,3120619,PAUL DAVIES KITCHENS BOLTON,27/05/2014,40110,Op Equip Furniture Purchase,Housing GRF,Local Welfare Provision Pilot,559.52
125827,3120620,PAUL DAVIES KITCHENS BOLTON,27/05/2014,40110,Op Equip Furniture Purchase,Housing GRF,Local Welfare Provision Pilot,559.52
125827,3120621,PAUL DAVIES KITCHENS BOLTON,27/05/2014,40110,Op Equip Furniture Purchase,Housing GRF,Local Welfare Provision Pilot,559.52
125827,3120622,PAUL DAVIES KITCHENS BOLTON,27/05/2014,40110,Op Equip Furniture Purchase,Housing GRF,Local Welfare Provision Pilot,559.52
125827,3120623,PAUL DAVIES KITCHENS BOLTON,27/05/2014,40110,Op Equip Furniture Purchase,Housing GRF,Local Welfare Provision Pilot,559.52
125827,3120624,PAUL DAVIES KITCHENS BOLTON,27/05/2014,40110,Op Equip Furniture Purchase,Housing GRF,Local Welfare Provision Pilot,559.52
1457062,3117692,REDACTED - PERSONAL DATA,22/05/2014,48509,Other Fees,Childrens Services,Primary Commissioning,990.00
2405397,3108386,PAYPOINT NETWORK LTD,08/05/2014,21100,Electricity  General,Chief Executives,CX56102 - HB Third Party Commissions,709.00
2405397,3116350,PAYPOINT NETWORK LTD,19/05/2014,21100,Electricity  General,Chief Executives,CX56102 - HB Third Party Commissions,528.00
6547,3118217,PEAK FABRICATIONS (BOLTON) LTD,29/05/2014,Z6008,Expense AP Accrual,Bolton MBC Balance Sheet,Bolton MBC Balance Sheet,"1,950.00"
6547,3118203,PEAK FABRICATIONS (BOLTON) LTD,27/05/2014,Z6008,Expense AP Accrual,Bolton MBC Balance Sheet,Bolton MBC Balance Sheet,"1,250.00"
22610,3115845,PETER DOUGLASS PLATFORMS,19/05/2014,33201,Transport Hire,Environmental Services,Transport Support Service,"1,080.00"
22610,3115846,PETER DOUGLASS PLATFORMS,19/05/2014,33201,Transport Hire,Environmental Services,Transport Support Service,"1,080.00"
6553,3125408,PETERS LTD,27/05/2014,40753,Book Fund Expenditure,Chief Executives,CX67323 - Schools Library Services,"8,368.44"
205423,3125519,PHOENIX FUTURES#PHOENIX HOUSE,29/05/2014,54301,Residential Provision,Adult Services,Drugs Pooled Treatment Budget,"2,331.60"
205423,3125522,PHOENIX FUTURES#PHOENIX HOUSE,29/05/2014,54301,Residential Provision,Adult Services,Drugs Pooled Treatment Budget,"2,331.60"
565550,3124005,PHOENIX POWER SERVICES,27/05/2014,48629,Miscellaneous Expenses,Childrens Services,Youth Service Outdoor Education,570.15
6558,3126511,PHS GROUP PLC,29/05/2014,Z6008,Expense AP Accrual,Bolton MBC Balance Sheet,Bolton MBC Balance Sheet,"2,094.38"
6558,3111894,PHS GROUP PLC,15/05/2014,Z6008,Expense AP Accrual,Bolton MBC Balance Sheet,Bolton MBC Balance Sheet,796.42
6558,3111949,PHS GROUP PLC,15/05/2014,Z6008,Expense AP Accrual,Bolton MBC Balance Sheet,Bolton MBC Balance Sheet,"1,601.72"
6558,3111962,PHS GROUP PLC,15/05/2014,Z6008,Expense AP Accrual,Bolton MBC Balance Sheet,Bolton MBC Balance Sheet,"1,485.12"
6558,3111966,PHS GROUP PLC,15/05/2014,Z6008,Expense AP Accrual,Bolton MBC Balance Sheet,Bolton MBC Balance Sheet,"1,053.00"
6558,3112112,PHS GROUP PLC,15/05/2014,Z6008,Expense AP Accrual,Bolton MBC Balance Sheet,Bolton MBC Balance Sheet,912.08
6558,3112118,PHS GROUP PLC,15/05/2014,Z6008,Expense AP Accrual,Bolton MBC Balance Sheet,Bolton MBC Balance Sheet,"2,176.20"
6558,3112131,PHS GROUP PLC,15/05/2014,Z6008,Expense AP Accrual,Bolton MBC Balance Sheet,Bolton MBC Balance Sheet,"1,461.16"
6558,3112134,PHS GROUP PLC,15/05/2014,Z6008,Expense AP Accrual,Bolton MBC Balance Sheet,Bolton MBC Balance Sheet,786.24
6558,3112146,PHS GROUP PLC,15/05/2014,Z6008,Expense AP Accrual,Bolton MBC Balance Sheet,Bolton MBC Balance Sheet,778.91
6558,3112154,PHS GROUP PLC,15/05/2014,Z6008,Expense AP Accrual,Bolton MBC Balance Sheet,Bolton MBC Balance Sheet,706.46
6558,3112183,PHS GROUP PLC,15/05/2014,Z6008,Expense AP Accrual,Bolton MBC Balance Sheet,Bolton MBC Balance Sheet,600.72
6558,3112194,PHS GROUP PLC,15/05/2014,Z6008,Expense AP Accrual,Bolton MBC Balance Sheet,Bolton MBC Balance Sheet,"1,185.60"
6558,3105128,PHS GROUP PLC,06/05/2014,Z6008,Expense AP Accrual,Bolton MBC Balance Sheet,Bolton MBC Balance Sheet,607.56
6558,3105129,PHS GROUP PLC,06/05/2014,Z6008,Expense AP Accrual,Bolton MBC Balance Sheet,Bolton MBC Balance Sheet,"2,633.20"
6558,3105133,PHS GROUP PLC,06/05/2014,Z6008,Expense AP Accrual,Bolton MBC Balance Sheet,Bolton MBC Balance Sheet,"1,423.60"
6558,3105163,PHS GROUP PLC,06/05/2014,Z6008,Expense AP Accrual,Bolton MBC Balance Sheet,Bolton MBC Balance Sheet,"1,832.44"
6558,3105167,PHS GROUP PLC,06/05/2014,Z6008,Expense AP Accrual,Bolton MBC Balance Sheet,Bolton MBC Balance Sheet,"1,691.42"
6558,3105168,PHS GROUP PLC,06/05/2014,Z6008,Expense AP Accrual,Bolton MBC Balance Sheet,Bolton MBC Balance Sheet,527.32
6558,3105170,PHS GROUP PLC,06/05/2014,Z6008,Expense AP Accrual,Bolton MBC Balance Sheet,Bolton MBC Balance Sheet,564.68
6558,3105172,PHS GROUP PLC,06/05/2014,Z6008,Expense AP Accrual,Bolton MBC Balance Sheet,Bolton MBC Balance Sheet,"1,492.94"
6558,3105236,PHS GROUP PLC,06/05/2014,Z6008,Expense AP Accrual,Bolton MBC Balance Sheet,Bolton MBC Balance Sheet,591.24
6558,3105243,PHS GROUP PLC,06/05/2014,Z6008,Expense AP Accrual,Bolton MBC Balance Sheet,Bolton MBC Balance Sheet,"1,132.56"
6558,3105244,PHS GROUP PLC,06/05/2014,Z6008,Expense AP Accrual,Bolton MBC Balance Sheet,Bolton MBC Balance Sheet,"1,171.04"
6558,3105246,PHS GROUP PLC,06/05/2014,Z6008,Expense AP Accrual,Bolton MBC Balance Sheet,Bolton MBC Balance Sheet,634.96
6558,3105247,PHS GROUP PLC,06/05/2014,Z6008,Expense AP Accrual,Bolton MBC Balance Sheet,Bolton MBC Balance Sheet,"2,561.52"
6558,3105249,PHS GROUP PLC,06/05/2014,Z6008,Expense AP Accrual,Bolton MBC Balance Sheet,Bolton MBC Balance Sheet,"1,453.12"
6558,3105304,PHS GROUP PLC,06/05/2014,Z6008,Expense AP Accrual,Bolton MBC Balance Sheet,Bolton MBC Balance Sheet,584.48
6558,3105124,PHS GROUP PLC,06/05/2014,Z6008,Expense AP Accrual,Bolton MBC Balance Sheet,Bolton MBC Balance Sheet,594.85
74437,3126851,Pikes Lane Primary School,29/05/2014,53102,Agency Staff  Other,Childrens Services,Income – Teaching & Learning CPD,720.00
350350,3117518,PIPS COURIER SERVICES#MR D BROWN,22/05/2014,48509,Other Fees,Childrens Services,Management Team,509.00
116750,3125552,PLACES FOR PEOPLE INDIVIDUAL SUPPORT,29/05/2014,52200,Contracted Services,Adult Services,Supporting People  Capital Financing,"15,745.53"
116750,3125763,PLACES FOR PEOPLE INDIVIDUAL SUPPORT,29/05/2014,52200,Contracted Services,Adult Services,OA Extra Care Housing External Provision,"36,230.50"
78978,3118226,PLAY & LEISURE LTD,22/05/2014,40601,General Materials,Environmental Services,Activities and Operations,"9,429.00"
181712,3117485,PORTFOLIO#ROTHWELL COMPANY LTD,22/05/2014,48202,General Publicity,Public Health,Get Active,"3,000.00"
181712,3110635,PORTFOLIO#ROTHWELL COMPANY LTD,12/05/2014,45430,Computer Software,Public Health,Primary Care,525.00
525,3113221,POST OFFICE LTD,15/05/2014,31300,Vehicle Tax,Environmental Services,Transport Support Service,"8,535.00"
6568,3118162,Postage By Phone-Pitney Bowes Ltd,23/05/2014,Z5211,Z5211 - Debit Bal Holding A/c Exp,Environmental Services,Environmental Services Balance sheet,"36,000.00"
537,3121320,POWERCARE,22/05/2014,40601,General Materials,Environmental Services,Transport Support Service,"3,995.00"
35473,3110502,PREMIER CARE LTD#BOLTON CARE SERVICES,12/05/2014,52200,Contracted Services,Adult Services,OA  Home Care Services external provision,"4,085.25"
561,3115476,PRESTIGE BLINDS LTD,19/05/2014,Z6008,Expense AP Accrual,Bolton MBC Balance Sheet,Bolton MBC Balance Sheet,670.50
561,3116328,PRESTIGE BLINDS LTD,19/05/2014,40110,Op Equip Furniture Purchase,Adult Services,OA  Wilfred Geere  Residential,"2,420.00"
207635,3116689,PRIMARILY SCIENCE,22/05/2014,48509,Other Fees,Childrens Services,Income – Teaching & Learning CPD,652.00
434426,3104944,PRINCESS ALEXANDRA HOME,06/05/2014,54301,Residential Provision,Adult Services,OA  External Provision Residential,"1,554.00"
739608,3127287,PRISM MEDICAL UK,29/05/2014,44051,Clients Aids & Adaptations,Adult Services,ICES,848.25
739608,3127289,PRISM MEDICAL UK,29/05/2014,44051,Clients Aids & Adaptations,Adult Services,ICES,902.10
739608,3123998,PRISM MEDICAL UK,27/05/2014,44051,Clients Aids & Adaptations,Adult Services,ICES,"1,514.46"
739608,3124004,PRISM MEDICAL UK,27/05/2014,44051,Clients Aids & Adaptations,Adult Services,ICES,860.89
739608,3112496,PRISM MEDICAL UK,15/05/2014,44051,Clients Aids & Adaptations,Adult Services,ICES,"1,052.12"
739608,3117118,PRISM MEDICAL UK,22/05/2014,44051,Clients Aids & Adaptations,Adult Services,ICES,601.66
739608,3112280,PRISM MEDICAL UK,15/05/2014,44051,Clients Aids & Adaptations,Adult Services,ICES,"2,082.50"
739608,3107348,PRISM MEDICAL UK,06/05/2014,44051,Clients Aids & Adaptations,Adult Services,ICES,"1,504.29"
739608,3117095,PRISM MEDICAL UK,22/05/2014,44051,Clients Aids & Adaptations,Adult Services,ICES,"1,469.78"
739608,3112239,PRISM MEDICAL UK,15/05/2014,44051,Clients Aids & Adaptations,Adult Services,ICES,"3,473.78"
739608,3106360,PRISM MEDICAL UK,06/05/2014,44051,Clients Aids & Adaptations,Adult Services,ICES,585.00
2606307,3117999,Prism Music Group#PMG,22/05/2014,48501,Artistes Fees,Environmental Services,Albert Halls Entertainment,"7,214.04"
49008,3116942,PROGRESS CARE HOUSING ASSOCIATION,22/05/2014,52210,Contracted Services  Rental Voids,Adult Services,LD Purchaser Supported Housing,"1,402.92"
2165294,3117020,PROTEK FENCING LTD,22/05/2014,Z1051,Work in Progress Additions,Highways,Stores,"40,813.46"
596,3118195,PSI (RESOURCES) LTD,29/05/2014,Z6007,Z6007 - Inventory AP Accrual,Property Services,EAM Holding,945.00
2535426,3115604,Pulse#Pulse Healthcare Limited,19/05/2014,19103,Training Exp  In House,Public Health,Think Positive,"1,221.00"
2535426,3105140,Pulse#Pulse Healthcare Limited,06/05/2014,48509,Other Fees,Public Health,Think Positive,"1,204.72"
265233,3111492,QUADRANT SECURITY GROUP LTD,12/05/2014,25105,Other Security,Environmental Services,NCP CCTV,"32,032.00"
265233,3111496,QUADRANT SECURITY GROUP LTD,12/05/2014,25105,Other Security,Environmental Services,NCP CCTV,"14,213.00"
168404,3104930,QUEENS PARK VIEW#INTELLIGENT CARE,06/05/2014,54301,Residential Provision,Adult Services,MH Residential External Provision,"8,311.56"
644,3109487,R S TYRER LTD,12/05/2014,34405,Clients  Swimming Fares,Environmental Services,SNT Childrens Servs,"1,244.00"
67249,3121863,R WALKER & SONS (PRESTON) LIMITED,27/05/2014,Z1051,Work in Progress Additions,Finance Department,Finance Balance Sheet,"30,730.20"
125827,3118580,RALPH LIVESEY LTD,27/05/2014,41101,Catering ProvisionsFood,Environmental Services,Catering,564.11
125827,3118780,RALPH LIVESEY LTD,27/05/2014,41101,Catering ProvisionsFood,Environmental Services,Catering,601.51
125827,3118858,RALPH LIVESEY LTD,27/05/2014,41101,Catering ProvisionsFood,Environmental Services,Catering,510.26
125827,3118918,RALPH LIVESEY LTD,27/05/2014,41101,Catering ProvisionsFood,Environmental Services,Catering,559.57
125827,3119524,RALPH LIVESEY LTD,27/05/2014,41101,Catering ProvisionsFood,Environmental Services,Catering,634.14
125827,3119751,RALPH LIVESEY LTD,27/05/2014,41101,Catering ProvisionsFood,Environmental Services,Catering,506.26
6595,3104876,RANDOMLIGHT LTD#HEIGHTSIDE HOUSE,06/05/2014,54301,Residential Provision,Adult Services,MH Residential External Provision,"2,270.12"
6595,3104876,RANDOMLIGHT LTD#HEIGHTSIDE HOUSE,06/05/2014,54302,Nursing Provision,Adult Services,MH Residential External Provision,"8,848.52"
1800291,3115756,RAPID PRIVATE HIRE LTD,19/05/2014,34402,Clients  Taxi Fares,Environmental Services,SNT Childrens Servs,904.00
1800291,3126521,RAPID PRIVATE HIRE LTD,29/05/2014,34402,Clients  Taxi Fares,Environmental Services,SNT Childrens Servs,"1,152.00"
1800291,3126508,RAPID PRIVATE HIRE LTD,29/05/2014,34402,Clients  Taxi Fares,Environmental Services,SNT Childrens Servs,"1,152.00"
1800291,3112999,RAPID PRIVATE HIRE LTD,15/05/2014,34402,Clients  Taxi Fares,Environmental Services,SNT Childrens Servs,"1,036.00"
706,3117500,READEYS SPORTS TROPHIES B/N,22/05/2014,48620,48620 - Prizes,Public Health,Get Active,581.09
42398,3104924,REDBANK CARE HOME#PAYEE VOYAGE NORTH,06/05/2014,54301,Residential Provision,Adult Services,LD Purchaser Residential Care,"4,692.20"
22999,3116455,REFUGE,19/05/2014,48629,Miscellaneous Expenses,Childrens Services,Referral & Assmt Team South,893.95
22999,3116464,REFUGE,19/05/2014,48629,Miscellaneous Expenses,Childrens Services,Referral & Assmt Team South,893.95
6605,3109422,RELATE#GREATER MANCHESTER NORTH,08/05/2014,47103,Miscellaneous Grants,Chief Executives,Voluntary Sector Grants,"3,738.25"
6612,3111331,RIGBY TAYLOR LTD,12/05/2014,40609,Horticultural Materials,Environmental Services,Activities and Operations,910.04
6612,3108376,RIGBY TAYLOR LTD,15/05/2014,40601,General Materials,Environmental Services,Activities and Operations,960.00
2509317,3104994,RIVERVIEW NURSING HOME,06/05/2014,54302,Nursing Provision,Adult Services,OA  External Provision Residential,"1,811.60"
2596318,3108996,Rivington Park Care Home,08/05/2014,93258,Residential Provision,Adult Services,OA  External Provision Residential,"2,361.00"
6617,3104877,RIVINGTON VIEW NURSING HOME,06/05/2014,54301,Residential Provision,Adult Services,LD Purchaser Residential Care,"1,545.00"
6617,3104877,RIVINGTON VIEW NURSING HOME,06/05/2014,54301,Residential Provision,Adult Services,OA  External Provision Residential,"4,333.71"
6617,3104877,RIVINGTON VIEW NURSING HOME,06/05/2014,54302,Nursing Provision,Adult Services,OA  External Provision Residential,"1,665.00"
1509,3116403,ROBERT SCOTT & SONS LTD,29/05/2014,26000,Cleaning Materials,Environmental Services,Building Cleaning,"1,225.00"
6619,3109400,ROBINSON PLANT HIRE,08/05/2014,33201,Transport Hire,Environmental Services,Activities and Operations,529.75
6619,3125877,ROBINSON PLANT HIRE,29/05/2014,33202,Plant Hire,Environmental Services,Activities and Operations,529.75
6619,3115852,ROBINSON PLANT HIRE,19/05/2014,33202,Plant Hire,Environmental Services,Activities and Operations,661.78
6623,3104878,ROSE COURT NURSING HOME,06/05/2014,Z6011,Z6011 - CR Bal Hold A/c Exp,Adult Services,ADZ0802 - Health - Funded Nursing Care,902.32
6623,3104878,ROSE COURT NURSING HOME,06/05/2014,54301,Residential Provision,Adult Services,OA  External Provision Residential,"6,590.08"
6623,3104878,ROSE COURT NURSING HOME,06/05/2014,54302,Nursing Provision,Adult Services,OA  External Provision Residential,"4,942.56"
2596323,3109932,Rose Court Residents Accounts#Silletts,09/05/2014,Z6011,Z6011 - CR Bal Hold A/c Exp,Adult Services,ADZ1901 - Residents Savings A/C,"2,899.88"
35,3104893,ROSEBRIDGE COURT,06/05/2014,54302,Nursing Provision,Adult Services,OA  External Provision Residential,"3,240.00"
2013332,3104958,ROUNDHAM COURT#EPH,06/05/2014,54301,Residential Provision,Adult Services,OA  External Provision Residential,"1,679.64"
162251,3112346,ROWLANDS PHARMACY,15/05/2014,52200,Contracted Services,Adult Services,Drugs Pooled Treatment Budget,517.20
162251,3109371,ROWLANDS PHARMACY,08/05/2014,52200,Contracted Services,Public Health,Smoking,"1,004.65"
6629,3124464,ROYAL MAIL GROUP LTD,27/05/2014,45000,Postages Direct Costs,Chief Executives,CX56100 - Housing Benefits,920.70
6629,3124464,ROYAL MAIL GROUP LTD,27/05/2014,45000,Postages Direct Costs,Chief Executives,CX57500 - Council Tax,"1,671.34"
6629,3124464,ROYAL MAIL GROUP LTD,27/05/2014,45000,Postages Direct Costs,Chief Executives,CX57610 - Accounts Receivable (R & B),789.22
6629,3107383,ROYAL MAIL GROUP LTD,08/05/2014,45000,Postages Direct Costs,Chief Executives,CX56100 - Housing Benefits,"1,025.75"
6629,3107383,ROYAL MAIL GROUP LTD,08/05/2014,45000,Postages Direct Costs,Chief Executives,CX57500 - Council Tax,"1,446.28"
6629,3113287,ROYAL MAIL GROUP LTD,15/05/2014,45000,Postages Direct Costs,Chief Executives,CX57500 - Council Tax,726.50
6629,3116780,ROYAL MAIL GROUP LTD,22/05/2014,45000,Postages Direct Costs,Chief Executives,CX56100 - Housing Benefits,"1,472.90"
6629,3116780,ROYAL MAIL GROUP LTD,22/05/2014,45000,Postages Direct Costs,Chief Executives,CX57500 - Council Tax,"1,645.04"
6629,3116780,ROYAL MAIL GROUP LTD,22/05/2014,45000,Postages Direct Costs,Chief Executives,CX57610 - Accounts Receivable (R & B),535.75
6629,3111976,ROYAL MAIL GROUP LTD,15/05/2014,45000,Postages Direct Costs,Chief Executives,CX55330 - Accounts Payable Shared Service Centre,518.43
65880,3114765,ROYAL MENCAP SOCIETY#MENCAP,19/05/2014,52200,Contracted Services,Adult Services,OA  Home Care Services external provision,903.00
65880,3114792,ROYAL MENCAP SOCIETY#MENCAP,19/05/2014,52200,Contracted Services,Adult Services,OA  Home Care Services external provision,774.00
8372,3113216,RUSSELL AND RUSSELL SOLICITORS,15/05/2014,48509,Other Fees,Childrens Services,Management Team,918.00
36921,3115613,S & D PRIVATE HIRE#S & D CARS,19/05/2014,34402,Clients  Taxi Fares,Environmental Services,SNT Childrens Servs,594.00
1548466,3112611,S&S DECORATORS,15/05/2014,20100,Day To Day Maintenance,Childrens Services,Res Serv Maintenance,"2,050.00"
2205290,3111421,SAFEHANDS CARE LTD#SAFEHANDS GROUP,12/05/2014,52200,Contracted Services,Adult Services,OA  Home Care Services external provision,"64,338.70"
1637,3117536,SAFETY KLEEN UK  LTD,22/05/2014,40101,Operational Equipment Maint,Environmental Services,Transport Support Service,659.50
10259,3110436,Salford City Council,12/05/2014,52200,Contracted Services,Environmental Services,Highway Regulation & Inspection,"55,829.07"
10259,3110634,Salford City Council,12/05/2014,52200,Contracted Services,Environmental Services,Highway Regulation & Inspection,"18,845.82"
2451341,3117592,REDACTED - PERSONAL DATA,22/05/2014,48517,Fees/Expenses Schools,Childrens Services,Gtr Manchester Music Education Hub,675.00
1569311,3127249,SANCTUARY CARR-GOMM#THE SANCTUARY GROUP,29/05/2014,52200,Contracted Services,Adult Services,Supporting People  Capital Financing,"17,258.99"
1569311,3127253,SANCTUARY CARR-GOMM#THE SANCTUARY GROUP,29/05/2014,52200,Contracted Services,Adult Services,Supporting People  Capital Financing,"13,807.19"
2539298,3104998,Sandiway Lodge Residential Home,06/05/2014,54301,Residential Provision,Adult Services,OA  External Provision Residential,"1,450.40"
74385,3113574,Sector Security Services (Manchester) Ltd,19/05/2014,53102,Agency Staff  Other,Environmental Services,Security Services,897.12
74385,3126633,Sector Security Services (Manchester) Ltd,29/05/2014,53102,Agency Staff  Other,Environmental Services,Security Services,"1,744.40"
74385,3126651,Sector Security Services (Manchester) Ltd,29/05/2014,53102,Agency Staff  Other,Environmental Services,Security Services,"1,174.80"
74385,3126653,Sector Security Services (Manchester) Ltd,29/05/2014,53102,Agency Staff  Other,Environmental Services,Security Services,578.50
74385,3126656,Sector Security Services (Manchester) Ltd,29/05/2014,53102,Agency Staff  Other,Environmental Services,Security Services,835.80
74385,3126667,Sector Security Services (Manchester) Ltd,29/05/2014,53102,Agency Staff  Other,Environmental Services,Security Services,945.63
74385,3126670,Sector Security Services (Manchester) Ltd,29/05/2014,53102,Agency Staff  Other,Environmental Services,Security Services,"1,566.40"
74385,3126684,Sector Security Services (Manchester) Ltd,29/05/2014,53102,Agency Staff  Other,Environmental Services,Security Services,712.00
74385,3126691,Sector Security Services (Manchester) Ltd,29/05/2014,53102,Agency Staff  Other,Environmental Services,Security Services,640.80
74385,3113553,Sector Security Services (Manchester) Ltd,29/05/2014,53102,Agency Staff  Other,Environmental Services,Security Services,"1,388.40"
74385,3113558,Sector Security Services (Manchester) Ltd,29/05/2014,53102,Agency Staff  Other,Environmental Services,Security Services,694.20
74385,3113554,Sector Security Services (Manchester) Ltd,19/05/2014,53102,Agency Staff  Other,Environmental Services,Security Services,"1,495.20"
74385,3113555,Sector Security Services (Manchester) Ltd,19/05/2014,53102,Agency Staff  Other,Environmental Services,Security Services,961.20
74385,3113580,Sector Security Services (Manchester) Ltd,19/05/2014,53102,Agency Staff  Other,Environmental Services,Security Services,534.00
74385,3113595,Sector Security Services (Manchester) Ltd,19/05/2014,53102,Agency Staff  Other,Environmental Services,Security Services,640.80
74385,3115348,Sector Security Services (Manchester) Ltd,19/05/2014,53102,Agency Staff  Other,Environmental Services,Security Services,860.68
2323,3109391,SERCO LEISURE OPERATING LTD#2,08/05/2014,52200,Contracted Services,Development & Regen,The Leisure Trust,"4,652.28"
2323,3109395,SERCO LEISURE OPERATING LTD#2,08/05/2014,52200,Contracted Services,Development & Regen,The Leverhulme Centre,"1,822.04"
6656,3126802,SEVA LINE,29/05/2014,52200,Contracted Services,Adult Services,OA  Home Care Services external provision,"6,962.56"
1609312,3116628,SEVACARE UK LTD,22/05/2014,52200,Contracted Services,Adult Services,OA  Home Care Services external provision,"31,439.26"
6659,3104879,SHANNON COURT NURSING HOME,06/05/2014,Z6011,Z6011 - CR Bal Hold A/c Exp,Adult Services,ADZ0802 - Health - Funded Nursing Care,"2,834.33"
6659,3104879,SHANNON COURT NURSING HOME,06/05/2014,54302,Nursing Provision,Adult Services,MH Residential External Provision,"1,589.08"
6659,3104879,SHANNON COURT NURSING HOME,06/05/2014,54301,Residential Provision,Adult Services,OA  External Provision Residential,"34,805.65"
6659,3104879,SHANNON COURT NURSING HOME,06/05/2014,54302,Nursing Provision,Adult Services,OA  External Provision Residential,"10,303.03"
152595,3113613,SHARED CARE#MAPLE LEAF CARE LIMITED,19/05/2014,52000,Vol Assoc Grants  General,Childrens Services,Res Serv Agency Placements,"9,150.00"
74625,3104926,SHASSAB,06/05/2014,54301,Residential Provision,Adult Services,MH Residential External Provision,"1,562.16"
142271,3106354,SHAWCROSS CARE HOME#TAMENG CARE LTD,06/05/2014,54301,Residential Provision,Adult Services,OA  External Provision Residential,"1,460.00"
1822,3116845,SIDHIL LIMITED,22/05/2014,44051,Clients Aids & Adaptations,Adult Services,ICES,"3,234.00"
1822,3113382,SIDHIL LIMITED,15/05/2014,44051,Clients Aids & Adaptations,Adult Services,ICES,"3,234.00"
1822,3124452,SIDHIL LIMITED,27/05/2014,44051,Clients Aids & Adaptations,Adult Services,ICES,"5,570.00"
203373,3116936,SIGNHEALTH,22/05/2014,52200,Contracted Services,Adult Services,Independent,854.62
203373,3116940,SIGNHEALTH,22/05/2014,52200,Contracted Services,Adult Services,Independent,"1,090.91"
203373,3110497,SIGNHEALTH,12/05/2014,52200,Contracted Services,Adult Services,MH Residential External Provision,960.97
203373,3116937,SIGNHEALTH,22/05/2014,52200,Contracted Services,Adult Services,Independent,"1,049.94"
203373,3116939,SIGNHEALTH,22/05/2014,52200,Contracted Services,Adult Services,Independent,747.50
203373,3117078,SIGNHEALTH,22/05/2014,52200,Contracted Services,Adult Services,MH Residential External Provision,761.38
203373,3108347,SIGNHEALTH,08/05/2014,52200,Contracted Services,Adult Services,MH Residential External Provision,960.97
1827,3125493,SIGNPOST SOLUTIONS LTD T/A SIGNFIX,27/05/2014,Z6007,Z6007 - Inventory AP Accrual,Highways,Stores,552.00
2284375,3115403,SIMMONS SERVICES LIMITED,29/05/2014,Z6008,Expense AP Accrual,Bolton MBC Balance Sheet,Bolton MBC Balance Sheet,"5,626.01"
1097786,3116729,SIMPLYMED LTD,22/05/2014,44051,Clients Aids & Adaptations,Adult Services,ICES,"1,507.00"
58344,3108471,SITEIMPROVE LTD,08/05/2014,45401,Computer Maintenance,Chief Executives,CX59500 - C.R.M. Operations,"4,410.65"
1735290,3126327,SLC GROUP#PARAGON LIMITED,29/05/2014,52200,Contracted Services,Adult Services,MH Residential External Provision,"1,029.60"
761614,3116651,SLC PARAGON,22/05/2014,52200,Contracted Services,Adult Services,MH Residential External Provision,"3,068.08"
2538290,3125364,SMC Euroclamp Ltd,27/05/2014,53000,Private Contracted Services,Environmental Services,Waste,"1,705.00"
1941312,3111415,SMG Europe Holdings Ltd,12/05/2014,48517,Fees/Expenses Schools,Childrens Services,Gtr Manchester Music Education Hub,"1,825.00"
6669,3108469,SNAPFAST,08/05/2014,Z6007,Z6007 - Inventory AP Accrual,Highways,Stores,"1,338.80"
1556141,3125828,SOCIAL CARE SERVICES GROUP,29/05/2014,52000,Vol Assoc Grants  General,Childrens Services,Res Serv Agency Placements,"8,635.67"
858669,3125872,SOFTCAT LTD,29/05/2014,45430,Computer Software,Childrens Services,Admin IT (Schools),"6,098.03"
858669,3125873,SOFTCAT LTD,29/05/2014,45430,Computer Software,Childrens Services,Admin IT (Schools),"1,258.85"
858669,3125874,SOFTCAT LTD,29/05/2014,45430,Computer Software,Childrens Services,Admin IT (Schools),699.72
16692,3125594,SOLON SECURITY LTD,29/05/2014,40100,Operational Equipment Purchase,Environmental Services,Community Safety,690.00
1108806,3107355,SONGSMITH RECORDS LTD,06/05/2014,48501,Artistes Fees,Environmental Services,Activities and Operations,500.00
6672,3116460,SOUTHERNS OFFICE INTERIORS LTD,19/05/2014,40110,Op Equip Furniture Purchase,Development & Regen,The Leverhulme Centre,756.00
6673,3104901,SOUTHLANDS RESIDENTIAL HOME#SOUTHLANDS,06/05/2014,Z6011,Z6011 - CR Bal Hold A/c Exp,Adult Services,ADZ1201 - 3rd Party Social Care Contributions,"1,310.76"
6673,3104901,SOUTHLANDS RESIDENTIAL HOME#SOUTHLANDS,06/05/2014,Z5211,Z5211 - Debit Bal Holding A/c Exp,Adult Services,ADZ1202 - Client Property Top Ups,"1,023.00"
6673,3104901,SOUTHLANDS RESIDENTIAL HOME#SOUTHLANDS,06/05/2014,54301,Residential Provision,Adult Services,OA  External Provision Residential,"7,631.48"
10140,3104917,SOUTHLEA RESIDENTIAL CARE HOME,06/05/2014,54301,Residential Provision,Adult Services,MH Residential External Provision,"1,647.52"
991723,3104945,SOUTHVIEW LODGE RESIDENTIAL CARE HOME,06/05/2014,54301,Residential Provision,Adult Services,OA  External Provision Residential,"1,444.00"
2595303,3125634,Specialised Homes and Lodgings Ltd,29/05/2014,52000,Vol Assoc Grants  General,Childrens Services,Res Serv Agency Placements,"2,828.57"
2595303,3117342,Specialised Homes and Lodgings Ltd,22/05/2014,52000,Vol Assoc Grants  General,Childrens Services,Res Serv Agency Placements,"3,985.71"
2595303,3117343,Specialised Homes and Lodgings Ltd,22/05/2014,52000,Vol Assoc Grants  General,Childrens Services,Res Serv Agency Placements,"3,985.71"
2338384,3104973,SPECIALITY CARE (REIT HOMES) LTD T/A HOUNDSWOOD HOUSE CARE HOME,06/05/2014,54301,Residential Provision,Adult Services,OA  External Provision Residential,"3,905.44"
6675,3113524,SPECTRA SECURITY LTD,19/05/2014,25101,Security Systems   Repairs,Environmental Services,Depots,880.00
6675,3117396,SPECTRA SECURITY LTD,29/05/2014,Z1051,Work in Progress Additions,Central Corporate,Corporate Property Balance Sheet,"12,236.00"
6675,3116400,SPECTRA SECURITY LTD,27/05/2014,Z6008,Expense AP Accrual,Bolton MBC Balance Sheet,Bolton MBC Balance Sheet,612.00
6675,3113521,SPECTRA SECURITY LTD,19/05/2014,Z6008,Expense AP Accrual,Bolton MBC Balance Sheet,Bolton MBC Balance Sheet,"1,586.00"
113123,3104927,SPENNYMOOR CARE HOME LTD,06/05/2014,Z6011,Z6011 - CR Bal Hold A/c Exp,Adult Services,ADZ1201 - 3rd Party Social Care Contributions,854.08
113123,3104927,SPENNYMOOR CARE HOME LTD,06/05/2014,54301,Residential Provision,Adult Services,OA  External Provision Residential,"9,708.88"
2446319,3116856,ST BEDE SERVICES LTD#BABY BEDE NURSERY,22/05/2014,48509,Other Fees,Childrens Services,Children and Family Supp Svs South,"1,565.76"
49908,3126871,St Brendan's RC Primary School,29/05/2014,53102,Agency Staff  Other,Childrens Services,Income – Teaching & Learning CPD,640.00
6679,3104880,ST CATHERINES CARE HOME,06/05/2014,Z6011,Z6011 - CR Bal Hold A/c Exp,Adult Services,ADZ0802 - Health - Funded Nursing Care,"5,389.92"
6679,3104880,ST CATHERINES CARE HOME,06/05/2014,54301,Residential Provision,Adult Services,OA  External Provision Residential,"12,360.00"
6679,3104880,ST CATHERINES CARE HOME,06/05/2014,54302,Nursing Provision,Adult Services,OA  External Provision Residential,"23,518.98"
2387307,3104980,ST GEORGES (WIGAN) LTD,06/05/2014,54302,Nursing Provision,Adult Services,OA  External Provision Residential,"1,620.00"
2397424,3104984,STANLEY GRANGE,06/05/2014,54301,Residential Provision,Adult Services,LD Purchaser Residential Care,"12,852.78"
6685,3116502,STANNAH LIFT SERVICES LTD,19/05/2014,44051,Clients Aids & Adaptations,Adult Services,ICES,"5,157.00"
6686,3104881,STARMOUNT VILLA RESIDENTIAL CARE HOME,06/05/2014,Z6011,Z6011 - CR Bal Hold A/c Exp,Adult Services,ADZ1201 - 3rd Party Social Care Contributions,780.76
6686,3104881,STARMOUNT VILLA RESIDENTIAL CARE HOME,06/05/2014,54301,Residential Provision,Adult Services,OA  External Provision Residential,"8,690.08"
2545292,3117590,REDACTED - PERSONAL DATA,22/05/2014,48517,Fees/Expenses Schools,Childrens Services,Gtr Manchester Music Education Hub,600.00
2186294,3110456,STEVE ARMSTRONG CONSULTANCY,12/05/2014,19100,Training Exps Tuition Fees,Chief Executives,CX21202 - Workforce Development Team,875.00
798,3117837,Stockport MBC,22/05/2014,48510,Consultancy Fees,Development & Regen,Development Management,"1,027.60"
22970,3117522,STOCKPORT PSYCHOLOGY SERVICES,22/05/2014,48509,Other Fees,Childrens Services,Management Team,721.95
57187,3109609,STRAIGHT PLC,29/05/2014,40100,Operational Equipment Purchase,Adult Services,Adult Disabilities Day Services  Staff & Admin Costs,"1,540.24"
6691,3104902,STRATHMORE NURSING HOME#WHITEHILL HOMES LTD,06/05/2014,Z6011,Z6011 - CR Bal Hold A/c Exp,Adult Services,ADZ0802 - Health - Funded Nursing Care,572.95
6691,3104902,STRATHMORE NURSING HOME#WHITEHILL HOMES LTD,06/05/2014,54301,Residential Provision,Adult Services,OA  External Provision Residential,"7,839.80"
6691,3104902,STRATHMORE NURSING HOME#WHITEHILL HOMES LTD,06/05/2014,54302,Nursing Provision,Adult Services,OA  External Provision Residential,"1,959.95"
6691,3104902,STRATHMORE NURSING HOME#WHITEHILL HOMES LTD,06/05/2014,54301,Residential Provision,Adult Services,PD Purchaser Residential Care,"1,567.96"
200127,3115621,STREET CARS#REDACTED - PERSONAL DATA,19/05/2014,34402,Clients  Taxi Fares,Environmental Services,SNT Childrens Servs,735.00
2601319,3116454,REDACTED - PERSONAL DATA,19/05/2014,48509,Other Fees,Environmental Services,Highway Management,812.50
22456,3125403,SUB SOIL CONSULTANCY SURVEYS LTD,27/05/2014,Z1051,Work in Progress Additions,Environmental Services,Environmental Services Balance sheet,960.00
22456,3126714,SUB SOIL CONSULTANCY SURVEYS LTD,29/05/2014,Z1051,Work in Progress Additions,Environmental Services,Environmental Services Balance sheet,"2,125.75"
2600299,3113369,Sue Lomas Ltd,29/05/2014,19100,Training Exps Tuition Fees,Chief Executives,CX21202 - Workforce Development Team,625.00
2225293,3112187,SU-MED INTERNATIONAL (UK) LTD,29/05/2014,44051,Clients Aids & Adaptations,Adult Services,ICES,"34,000.00"
7857,3104903,SUNNYSIDE RESIDENTIAL HOME,06/05/2014,54301,Residential Provision,Adult Services,OA  External Provision Residential,"37,342.96"
2379298,3104979,SUNRISE OF BRAMHALL,06/05/2014,Z6011,Z6011 - CR Bal Hold A/c Exp,Adult Services,ADZ1201 - 3rd Party Social Care Contributions,"3,176.00"
2379298,3104979,SUNRISE OF BRAMHALL,06/05/2014,54301,Residential Provision,Adult Services,MH Residential External Provision,"1,360.00"
868,3125584,SUTCLIFFE PLAY LTD,29/05/2014,40601,General Materials,Environmental Services,Activities and Operations,"15,568.41"
2496440,3104992,SYCAMORES CARE CENTRE,06/05/2014,54301,Residential Provision,Adult Services,OA  External Provision Residential,"1,848.00"
41646,3112317,SYKES CHEMIST LTD,15/05/2014,52200,Contracted Services,Adult Services,Drugs Pooled Treatment Budget,"1,783.70"
41646,3112319,SYKES CHEMIST LTD,15/05/2014,52200,Contracted Services,Adult Services,Drugs Pooled Treatment Budget,"1,460.80"
41646,3112320,SYKES CHEMIST LTD,15/05/2014,52200,Contracted Services,Adult Services,Drugs Pooled Treatment Budget,"1,180.30"
41646,3112327,SYKES CHEMIST LTD,15/05/2014,52200,Contracted Services,Adult Services,Drugs Pooled Treatment Budget,"1,509.20"
1576391,3125949,SYMPHONY HOUSING GROUP,29/05/2014,22005,Rent of Office Accommodation,Housing GRF,Access & Advice Housing Options Centre,"22,500.00"
251543,3117446,T LOWE & SON LIMITED,22/05/2014,20103,Day To Day Maintenance Structural,Environmental Services,Assets,659.20
251543,3116786,T LOWE & SON LIMITED,22/05/2014,20103,Day To Day Maintenance Structural,Environmental Services,Assets,"2,800.00"
251543,3116790,T LOWE & SON LIMITED,22/05/2014,20103,Day To Day Maintenance Structural,Environmental Services,Assets,614.05
2582313,3108378,Talent4 Media Ltd,08/05/2014,48203,Marketing,Chief Executives,CX24002 - Marketing - Holding Code,"4,000.00"
73079,3115866,TALKINGTECH UK LTD,19/05/2014,45401,Computer Maintenance,Finance Department,Libraries Info. Systems,"3,398.00"
932,3125739,TECHNOLOGY SOLUTIONS LIMITED,29/05/2014,40101,Operational Equipment Maint,Environmental Services,Community Safety,702.00
932,3116748,TECHNOLOGY SOLUTIONS LIMITED,22/05/2014,25106,C.C.T.V.,Environmental Services,Security Services,"1,615.00"
6706,3113001,TELECARS BOLTON,15/05/2014,34402,Clients  Taxi Fares,Environmental Services,SNT Childrens Servs,"1,253.50"
6706,3117373,TELECARS BOLTON,22/05/2014,34402,Clients  Taxi Fares,Environmental Services,SNT Childrens Servs,"1,077.50"
6706,3126523,TELECARS BOLTON,29/05/2014,34402,Clients  Taxi Fares,Environmental Services,SNT Childrens Servs,"1,137.50"
6706,3107370,TELECARS BOLTON,08/05/2014,34402,Clients  Taxi Fares,Environmental Services,SNT Childrens Servs,636.00
6706,3107371,TELECARS BOLTON,08/05/2014,34402,Clients  Taxi Fares,Environmental Services,SNT Childrens Servs,660.00
611563,3126805,Telford & Wrekin Council,29/05/2014,52200,Contracted Services,Adult Services,LD Purchaser Residential Care,"16,141.21"
945,3117544,TERBERG MATEC UK,22/05/2014,31305,Vehicle Servicing,Environmental Services,Transport Support Service,668.35
945,3112981,TERBERG MATEC UK,15/05/2014,31305,Vehicle Servicing,Environmental Services,Transport Support Service,540.82
2146302,3104962,THE BEECHES CARE HOME,06/05/2014,54301,Residential Provision,Adult Services,OA  External Provision Residential,"1,792.00"
2146302,3104962,THE BEECHES CARE HOME,06/05/2014,54302,Nursing Provision,Adult Services,OA  External Provision Residential,"1,765.20"
140866,3126695,THE BEST OF BOLTON,29/05/2014,48200,Advertising General,Environmental Services,Albert Halls Entertainment,"1,740.00"
2288290,3104971,THE BIRCHES,06/05/2014,54301,Residential Provision,Adult Services,MH Residential External Provision,"4,292.72"
972,3104890,THE BRANDLES,06/05/2014,54301,Residential Provision,Adult Services,MH Residential External Provision,"3,216.20"
6438,3104871,THE BUNGALOW RESIDENTIAL HOME,06/05/2014,Z6011,Z6011 - CR Bal Hold A/c Exp,Adult Services,ADZ1201 - 3rd Party Social Care Contributions,500.12
6438,3104871,THE BUNGALOW RESIDENTIAL HOME,06/05/2014,54301,Residential Provision,Adult Services,MH Residential External Provision,"1,800.00"
6438,3104871,THE BUNGALOW RESIDENTIAL HOME,06/05/2014,54301,Residential Provision,Adult Services,OA  External Provision Residential,"20,615.52"
6438,3104871,THE BUNGALOW RESIDENTIAL HOME,06/05/2014,54301,Residential Provision,Adult Services,PD Purchaser Residential Care,"1,567.96"
10139,3104916,THE CLOUGH RESIDENTIAL HOME,06/05/2014,Z6011,Z6011 - CR Bal Hold A/c Exp,Adult Services,ADZ1201 - 3rd Party Social Care Contributions,"1,197.14"
10139,3104916,THE CLOUGH RESIDENTIAL HOME,06/05/2014,54301,Residential Provision,Adult Services,OA  External Provision Residential,"26,710.21"
88184,3125944,THE COLUMBARIA COMPANY,29/05/2014,40601,General Materials,Environmental Services,Bereavement Services,"1,550.00"
88184,3116900,THE COLUMBARIA COMPANY,22/05/2014,40610,Direct Materials,Environmental Services,Bereavement Services,650.00
226468,3125591,THE CORPORATE GROUP#CORPORATE PRODUCTS LTD,29/05/2014,48203,Marketing,Chief Executives,CX24002 - Marketing - Holding Code,"6,500.00"
6713,3104909,THE DAVID LEWIS CENTRE,06/05/2014,54301,Residential Provision,Adult Services,LD Purchaser Residential Care,"15,182.76"
997,3111334,THE GEOGRAPHICAL ASSOCIATION,12/05/2014,48509,Other Fees,Childrens Services,Income – Teaching & Learning CPD,660.00
125827,3118848,THE GOOD FOOD CHAIN LTD,27/05/2014,41101,Catering ProvisionsFood,Environmental Services,Catering,884.12
125827,3118863,THE GOOD FOOD CHAIN LTD,27/05/2014,41101,Catering ProvisionsFood,Environmental Services,Catering,701.05
1603302,3108577,THE GREATER MANCHESTER COMBINED AUTHORITY,08/05/2014,Z1051,Work in Progress Additions,Highways,Stores,"1,398.62"
1603302,3110648,THE GREATER MANCHESTER COMBINED AUTHORITY,12/05/2014,55004,GMCA Marketing Manchester,Chief Executives,CX55951 - AGMA Payments,"30,171.00"
1603302,3110648,THE GREATER MANCHESTER COMBINED AUTHORITY,12/05/2014,55018,55018 - AGMA 16-19 Contributions from Settlements,Chief Executives,CX55951 - AGMA Payments,"6,814.00"
1603302,3110648,THE GREATER MANCHESTER COMBINED AUTHORITY,12/05/2014,55021,55021 - AGMA-Planning/Housing Commission,Chief Executives,CX55951 - AGMA Payments,"31,283.00"
1603302,3110648,THE GREATER MANCHESTER COMBINED AUTHORITY,12/05/2014,55023,55023 - AGMA M/CR family secondments,Chief Executives,CX55951 - AGMA Payments,"18,893.00"
1603302,3110648,THE GREATER MANCHESTER COMBINED AUTHORITY,12/05/2014,55026,55026 - AGMA Investment core/strategy,Chief Executives,CX55951 - AGMA Payments,"27,979.00"
1603302,3110648,THE GREATER MANCHESTER COMBINED AUTHORITY,12/05/2014,55029,GMCA New Economy,Chief Executives,CX55951 - AGMA Payments,"78,096.00"
1603302,3110648,THE GREATER MANCHESTER COMBINED AUTHORITY,12/05/2014,55030,55030 - GMCA Running Costs,Chief Executives,CX55951 - AGMA Payments,"10,158.00"
1603302,3110648,THE GREATER MANCHESTER COMBINED AUTHORITY,12/05/2014,55031,55031 - GM Alliance Project (textiles),Chief Executives,CX55951 - AGMA Payments,"11,873.00"
1603302,3110648,THE GREATER MANCHESTER COMBINED AUTHORITY,12/05/2014,54102,54102 - Inter Agency Fees,Development & Regen,REDD Divisional Directorate,"122,540.00"
1603302,3110422,THE GREATER MANCHESTER COMBINED AUTHORITY,12/05/2014,Z1051,Work in Progress Additions,Highways,Stores,609.60
9562,3104913,THE HAMILTONS,06/05/2014,54301,Residential Provision,Adult Services,OA  External Provision Residential,"3,080.00"
1017,3105252,THE LANCASHIRE WILDLIFE TRUST,06/05/2014,47200,General Subscriptions,Finance Department,Corporate Smartcard,"4,500.00"
88171,3113002,THE LEAVING CARE TEAM,15/05/2014,52300,Client Support Costs,Childrens Services,Child Prot Leaving Care Team,"3,082.92"
45009,3118058,THE LESBIAN & GAY FOUNDATION,22/05/2014,52200,Contracted Services,Public Health,HIV,"21,575.00"
1604381,3104950,THE LIMES#MAKING SPACES,06/05/2014,54301,Residential Provision,Adult Services,MH Residential External Provision,"2,100.00"
207974,3112594,THE LOCAL CARE COMPANY (BOLTON) LTD,15/05/2014,52200,Contracted Services,Adult Services,OA  Home Care Services external provision,"31,501.61"
156398,3117501,THE MUSIC CELLAR,22/05/2014,40100,Operational Equipment Purchase,Childrens Services,Music Serv  Events and External Funding,819.50
995,3116658,THE NATIONAL FOSTERING AGENCY,22/05/2014,52000,Vol Assoc Grants  General,Childrens Services,Res Serv Agency Placements,"3,192.90"
995,3116667,THE NATIONAL FOSTERING AGENCY,22/05/2014,52000,Vol Assoc Grants  General,Childrens Services,Res Serv Agency Placements,"2,892.00"
24580,3108576,THE NURTURE GROUP NETWORK LIMITED,08/05/2014,19105,Training Exp  Books Etc,Childrens Services,Education Psychology Service,"2,800.00"
38184,3104919,THE OAKS,06/05/2014,54301,Residential Provision,Adult Services,OA  External Provision Residential,"1,620.00"
301,3109413,THE OCTAGON,08/05/2014,47103,Miscellaneous Grants,Chief Executives,Voluntary Sector Grants,"36,345.00"
9243,3104912,THE OLD VICARAGE,06/05/2014,Z6011,Z6011 - CR Bal Hold A/c Exp,Adult Services,ADZ1201 - 3rd Party Social Care Contributions,"1,645.68"
9243,3104912,THE OLD VICARAGE,06/05/2014,54301,Residential Provision,Adult Services,OA  External Provision Residential,"4,520.36"
2036306,3104959,THE OLD VICARAGE#1,06/05/2014,54301,Residential Provision,Adult Services,OA  External Provision Residential,"1,932.00"
1912,3104888,THE SPINAL UNIT ACTION GROUP,06/05/2014,54301,Residential Provision,Adult Services,PD Purchaser Residential Care,"2,192.40"
1054,3117438,THE SYCAMORE PROJECT#ZACS BAR,22/05/2014,48509,Other Fees,Environmental Services,Neighbourhood Management Programme,"3,600.00"
1054,3105001,THE SYCAMORE PROJECT#ZACS BAR,06/05/2014,55700,Grant Funded Expenditure,Environmental Services,Neighbourhood Management Programme,"1,600.00"
39704,3104922,THE TOGETHER TRUST,06/05/2014,54301,Residential Provision,Adult Services,LD Purchaser Residential Care,"15,370.46"
2346424,3104977,THE TUDORS,06/05/2014,54301,Residential Provision,Adult Services,OA  External Provision Residential,"1,548.12"
78749,3105254,THE YOUTH JUSTICE BOARD,06/05/2014,52000,Vol Assoc Grants  General,Childrens Services,Res Serv Agency Placements,"3,768.00"
158742,3115468,THEBIGWORD#THE BIG WORD#THEBIGWORD INTERPRETING SERVICES LTD,19/05/2014,44054,Other Clients Services,Chief Executives,CX59500 - C.R.M. Operations,"2,667.25"
158742,3105286,THEBIGWORD#THE BIG WORD#THEBIGWORD INTERPRETING SERVICES LTD,06/05/2014,44054,Other Clients Services,Chief Executives,CX59500 - C.R.M. Operations,"2,789.50"
6724,3125432,THISTLETHWAITE TYRES & EXHAUSTS#FACTOR MICHELDEVER TYRE SVS LTD,27/05/2014,31303,Tyres,Environmental Services,Transport Support Service,688.38
6724,3108578,THISTLETHWAITE TYRES & EXHAUSTS#FACTOR MICHELDEVER TYRE SVS LTD,08/05/2014,31303,Tyres,Environmental Services,Transport Support Service,"2,050.92"
6724,3125427,THISTLETHWAITE TYRES & EXHAUSTS#FACTOR MICHELDEVER TYRE SVS LTD,27/05/2014,31303,Tyres,Environmental Services,Transport Support Service,"1,301.16"
125827,3118407,THOMAS HARDIE COMMERCIALS,27/05/2014,31305,Vehicle Servicing,Environmental Services,Transport Support Service,705.08
125827,3118357,THOMAS HARDIE COMMERCIALS,27/05/2014,31305,Vehicle Servicing,Environmental Services,Transport Support Service,556.54
39372,3104921,THORLEY HOUSE,06/05/2014,54301,Residential Provision,Adult Services,OA  External Provision Residential,"1,620.00"
2481358,3104990,THORNTON HILL CARE HOME,06/05/2014,54301,Residential Provision,Adult Services,OA  External Provision Residential,"2,546.82"
1684291,3115667,TICKETSOLVE LTD,19/05/2014,48509,Other Fees,Environmental Services,Albert Halls Entertainment,915.20
6700,3109888,TJS HIRE CO (HUMBERSIDE) LTD#TJD SELF DRIVE BOLTON,12/05/2014,33201,Transport Hire,Environmental Services,Transport Support Service,644.00
2606313,3121031,TLM Laser Ltd,29/05/2014,40100,Operational Equipment Purchase,Childrens Services,Technical Innovation Centre,"1,880.00"
6732,3124360,TOM GALLAGHER LTD,27/05/2014,44051,Clients Aids & Adaptations,Adult Services,ICES,999.75
6732,3111771,TOM GALLAGHER LTD,15/05/2014,44051,Clients Aids & Adaptations,Adult Services,ICES,"1,001.63"
6732,3111866,TOM GALLAGHER LTD,15/05/2014,44051,Clients Aids & Adaptations,Adult Services,ICES,509.67
6732,3112503,TOM GALLAGHER LTD,15/05/2014,44051,Clients Aids & Adaptations,Adult Services,ICES,839.89
2493429,3117297,REDACTED - PERSONAL DATA,22/05/2014,48509,Other Fees,Development & Regen,PTP General Policy,957.35
2539295,3112789,Toyota Material Handling UK Ltd,15/05/2014,40101,Operational Equipment Maint,Childrens Services,Admin IT (Schools),"3,944.25"
1150,3116933,Trafford MBC#Trafford Borough Council,22/05/2014,48511,Management Fees,Chief Executives,CX21005 - HR - Corporate,"11,000.00"
1150,3112998,Trafford MBC#Trafford Borough Council,15/05/2014,48501,Artistes Fees,Development & Regen,Art Projects,"2,000.00"
1166814,3116947,TRAKM8 LIMITED,29/05/2014,45409,Information and Communication Technology,Environmental Services,Transport Support Service,"1,395.90"
1548572,3121393,TRANSPORT FOR GREATER MANCHESTER,27/05/2014,34102,Staff/Officers   Bus Fares,Chief Executives,CX13000 - Members,"2,040.00"
1548572,3125724,TRANSPORT FOR GREATER MANCHESTER,29/05/2014,Z1051,Work in Progress Additions,Highways,Stores,"5,460.00"
1548572,3126461,TRANSPORT FOR GREATER MANCHESTER,29/05/2014,40102,Operational Equipment Rental,Development & Regen,Metro Shuttle Bus,"9,006.38"
129870,3110024,TREESCAPE NORTH WEST LTD,12/05/2014,52200,Contracted Services,Environmental Services,Assets,720.00
2501330,3117429,TTP,22/05/2014,54301,Residential Provision,Adult Services,Drugs Pooled Treatment Budget,"2,785.71"
2501330,3117431,TTP,22/05/2014,54301,Residential Provision,Adult Services,Drugs Pooled Treatment Budget,"2,785.71"
1581918,3117910,TUDOR NORTHWEST LTD,22/05/2014,Z6008,Expense AP Accrual,Bolton MBC Balance Sheet,Bolton MBC Balance Sheet,"1,832.25"
1581918,3117914,TUDOR NORTHWEST LTD,22/05/2014,Z6008,Expense AP Accrual,Bolton MBC Balance Sheet,Bolton MBC Balance Sheet,535.50
1581918,3112284,TUDOR NORTHWEST LTD,15/05/2014,Z6008,Expense AP Accrual,Bolton MBC Balance Sheet,Bolton MBC Balance Sheet,553.28
1581918,3121739,TUDOR NORTHWEST LTD,27/05/2014,Z6008,Expense AP Accrual,Bolton MBC Balance Sheet,Bolton MBC Balance Sheet,638.21
1581918,3121755,TUDOR NORTHWEST LTD,27/05/2014,Z6008,Expense AP Accrual,Bolton MBC Balance Sheet,Bolton MBC Balance Sheet,"2,104.15"
1581918,3121800,TUDOR NORTHWEST LTD,27/05/2014,Z6008,Expense AP Accrual,Bolton MBC Balance Sheet,Bolton MBC Balance Sheet,684.38
1183,3117072,Turbary House Nursery,29/05/2014,40609,Horticultural Materials,Environmental Services,Heaton Fold,630.55
1183,3117077,Turbary House Nursery,29/05/2014,40609,Horticultural Materials,Environmental Services,Heaton Fold,907.50
1185,3117436,TURNING POINT (SERVICES) LIMITED,22/05/2014,54301,Residential Provision,Adult Services,Drugs Pooled Treatment Budget,"2,015.00"
2595311,3109434,Turtle Trading Ltd,08/05/2014,45914,Commissioning Worklessness,Development & Regen,The Work Programme,750.00
2532340,3112587,Tusker,15/05/2014,31100,Vehicle Purchase,Chief Executives,CX21102 - Car Salary Sacrifice Scheme,"9,823.45"
2532340,3112585,Tusker,15/05/2014,31100,Vehicle Purchase,Chief Executives,CX21102 - Car Salary Sacrifice Scheme,833.59
9975,3108326,TV LICENSING,08/05/2014,48629,Miscellaneous Expenses,Chief Executives,CX67110 - LMA Library Mgmt,"1,455.00"
55208,3108373,UK ORACLE USER GROUP,08/05/2014,45431,Computer Software Licences,Chief Executives,CX55315 - CSS Team,999.00
1604384,3125911,ULTIMATE CARE GROUP LTD,29/05/2014,44051,Clients Aids & Adaptations,Adult Services,ICES,727.40
6742,3126397,ULVERSCROFT LARGE PRINT BOOKS LIMITED,29/05/2014,40753,Book Fund Expenditure,Chief Executives,CX67420 - Libraries Info. Services,632.00
6742,3126402,ULVERSCROFT LARGE PRINT BOOKS LIMITED,29/05/2014,40753,Book Fund Expenditure,Chief Executives,CX67420 - Libraries Info. Services,605.60
94608,3107332,UNIGLOBE DIAMOND TRAVEL#CRESTA WORLD TRAVEL LTD T/A NORTHENDEN,06/05/2014,79000,Election Expenses,Chief Executives,CX13104 - European Elections,600.60
2418,3115508,UNITED UTILITIES WATER PLC#1,19/05/2014,22200,Water Charges  Metered,Housing GRF,Access & Advice Caravan Sites,"1,284.51"
2418,3115508,UNITED UTILITIES WATER PLC#1,19/05/2014,22200,Water Charges  Metered,Environmental Services,Assets,"1,281.49"
2418,3115508,UNITED UTILITIES WATER PLC#1,19/05/2014,22200,Water Charges  Metered,Chief Executives,CX40000 - Land and Property Portfolios,606.86
2418,3115508,UNITED UTILITIES WATER PLC#1,19/05/2014,22200,Water Charges  Metered,Chief Executives,CX41000 - Admin Buildings Portfolio,"10,988.73"
2418,3115508,UNITED UTILITIES WATER PLC#1,19/05/2014,22200,Water Charges  Metered,Chief Executives,CX41100 - Other Buildings Portfolio,"1,138.82"
2418,3115508,UNITED UTILITIES WATER PLC#1,19/05/2014,22200,Water Charges  Metered,Chief Executives,CX41200 - Adult Social Care Portfolio,"7,241.87"
2418,3115508,UNITED UTILITIES WATER PLC#1,19/05/2014,22200,Water Charges  Metered,Chief Executives,CX42000 - Castle Hill,"3,384.72"
2418,3115508,UNITED UTILITIES WATER PLC#1,19/05/2014,22200,Water Charges  Metered,Housing GRF,Dispersed Properties,610.60
2418,3115508,UNITED UTILITIES WATER PLC#1,19/05/2014,22200,Water Charges  Metered,Childrens Services,Farnworth Youth Centre (Yth Srv),698.83
2418,3115508,UNITED UTILITIES WATER PLC#1,19/05/2014,22200,Water Charges  Metered,Childrens Services,Lord Street and Grosvenor CC,"2,162.10"
2418,3115508,UNITED UTILITIES WATER PLC#1,19/05/2014,22200,Water Charges  Metered,Environmental Services,Markets  Rent Account,"8,265.38"
2418,3115508,UNITED UTILITIES WATER PLC#1,19/05/2014,22200,Water Charges  Metered,Childrens Services,Tonge CC,826.30
2418,3108977,UNITED UTILITIES WATER PLC#1,08/05/2014,22200,Water Charges  Metered,Childrens Services,Technical Innovation Centre,"1,034.14"
2418,3115509,UNITED UTILITIES WATER PLC#1,19/05/2014,22201,Water Charges  Unmetered,Property Services,Energy Payments Account,"2,012.00"
2418,3108388,UNITED UTILITIES WATER PLC#1,08/05/2014,22200,Water Charges  Metered,Childrens Services,Gt Lever CC,"1,541.04"
150827,3115928,URBAN VISION PARTNERSHIP LTD#GMGU,19/05/2014,53102,Agency Staff  Other,Property Services,Estates & Property Management,"6,524.16"
6736,3115811,UTV MEDIA (GB) LTD#FACTOR TOWER FM,19/05/2014,48200,Advertising General,Environmental Services,Albert Halls Entertainment,500.00
51860,3108370,VANLINERS,08/05/2014,40101,Operational Equipment Maint,Public Health,Food Action Bolton,753.00
257291,3111569,VIP-SYSTEM LIMITED,12/05/2014,40100,Operational Equipment Purchase,Environmental Services,Regulatory Services Licensing,"4,172.08"
1293,3116433,VODAFONE LIMITED#1,19/05/2014,45252,Mobile Telephone Rental,Adult Services,MH Residential Network,"1,656.37"
1293,3116438,VODAFONE LIMITED#1,19/05/2014,Z5211,Z5211 - Debit Bal Holding A/c Exp,Finance Department,FNZ8018 - Mobile Phone Suspense,"40,733.26"
7915,3125929,W & S C JOBSON,29/05/2014,52200,Contracted Services,Environmental Services,Transport Support Service,737.13
7915,3125793,W & S C JOBSON,29/05/2014,52200,Contracted Services,Environmental Services,Transport Support Service,604.95
423333,3116633,W CRAVEN & SON,22/05/2014,Z6008,Expense AP Accrual,Bolton MBC Balance Sheet,Bolton MBC Balance Sheet,551.20
423333,3116726,W CRAVEN & SON,22/05/2014,20101,Programmed Maint. Work,Central Corporate,Land & Property Portfolios,665.40
423333,3121794,W CRAVEN & SON,27/05/2014,20101,Programmed Maint. Work,Property Services,Le Mans Crescent  General,"4,914.00"
423333,3121796,W CRAVEN & SON,27/05/2014,20101,Programmed Maint. Work,Property Services,Howell Croft House  Le Mans Crescent,"2,342.00"
1329,3117704,WALTON SUMMIT TRUCK CENTRE,22/05/2014,52200,Contracted Services,Environmental Services,Transport Support Service,540.75
1329,3125637,WALTON SUMMIT TRUCK CENTRE,29/05/2014,31305,Vehicle Servicing,Environmental Services,Transport Support Service,697.89
151046,3116312,WALTONS THE CATERERS,19/05/2014,41101,Catering ProvisionsFood,Childrens Services,Technical Innovation Centre,585.00
168831,3113367,WATTS GROUP PLC,15/05/2014,Z1051,Work in Progress Additions,Property Services,Corporate Property Capital Project Transfers to Other Projects,600.00
6776,3106357,Westleigh Lodge#Westleigh Lodge Care Home,06/05/2014,54302,Nursing Provision,Adult Services,OA  External Provision Residential,"3,529.29"
127802,3110680,WHITTINGHAMS FARM SUPPLIES,12/05/2014,52200,Contracted Services,Environmental Services,Transport Support Service,664.07
50111,3112333,WHITTLE PHARMACIES LTD,15/05/2014,52200,Contracted Services,Adult Services,Drugs Pooled Treatment Budget,619.60
1434057,3113257,WIGAN PIER PROMOTIONS,15/05/2014,48203,Marketing,Chief Executives,CX24002 - Marketing - Holding Code,"1,825.00"
2056318,3118204,WILLIAM DYER ELECTRICAL UK LTD,22/05/2014,Z1051,Work in Progress Additions,Environmental Services,Environmental Services Balance sheet,"9,516.60"
6780,3104882,WINGATES RESIDENTIAL HOME,06/05/2014,Z6011,Z6011 - CR Bal Hold A/c Exp,Adult Services,ADZ1201 - 3rd Party Social Care Contributions,600.00
6780,3104882,WINGATES RESIDENTIAL HOME,06/05/2014,54301,Residential Provision,Adult Services,OA  External Provision Residential,"33,641.23"
1402,3104891,WITHINS RESIDENTIAL HOME,06/05/2014,54301,Residential Provision,Adult Services,OA  External Provision Residential,"86,207.59"
1548544,3117589,WLG LIMITED#WILDS OF OLDHAM,22/05/2014,41106,Bar Stock,Environmental Services,Civic Catering  Town Hall Bar,700.50
1548544,3126411,WLG LIMITED#WILDS OF OLDHAM,29/05/2014,41106,Bar Stock,Environmental Services,Civic Catering  Town Hall Bar,"1,213.58"
162685,3104929,Woodlands Court,06/05/2014,54301,Residential Provision,Adult Services,OA  External Provision Residential,"1,620.00"
6783,3104883,WOODLANDS HOUSE RESIDENTIAL HOME LTD,06/05/2014,54301,Residential Provision,Adult Services,OA  External Provision Residential,"25,881.84"
74247,3116838,WOODLODGE PRODUCTS,22/05/2014,40609,Horticultural Materials,Environmental Services,Heaton Fold,584.43
2595304,3109420,Woods Hardwick Ltd,08/05/2014,93120,Refunds,Development & Regen,Development Management,"1,925.00"
2397426,3104985,WYNNE CREST RESIDENTIAL CARE HOME,06/05/2014,54301,Residential Provision,Adult Services,OA  External Provision Residential,"1,892.00"
1428,3117434,XEROX (UK) LTD,22/05/2014,43030,Photocopying Lease/Maintenance,Chief Executives,MFD,"31,540.18"
426469,3126337,YESHILI REFLECTIVES T/A VIZWEAR,29/05/2014,Z6007,Z6007 - Inventory AP Accrual,Highways,Stores,619.50
125827,3118495,YORKSHIRE PURCHASING ORGANISATION,27/05/2014,41101,Catering ProvisionsFood,Environmental Services,Catering,721.93
125827,3118574,YORKSHIRE PURCHASING ORGANISATION,27/05/2014,41101,Catering ProvisionsFood,Environmental Services,Catering,732.00
125827,3118774,YORKSHIRE PURCHASING ORGANISATION,27/05/2014,41101,Catering ProvisionsFood,Environmental Services,Catering,678.58
125827,3118849,YORKSHIRE PURCHASING ORGANISATION,27/05/2014,41101,Catering ProvisionsFood,Environmental Services,Catering,858.82
125827,3118913,YORKSHIRE PURCHASING ORGANISATION,27/05/2014,41101,Catering ProvisionsFood,Environmental Services,Catering,640.33
125827,3120378,YORKSHIRE PURCHASING ORGANISATION,27/05/2014,41101,Catering ProvisionsFood,Environmental Services,Community Meals,701.65
125827,3118795,YORKSHIRE PURCHASING ORGANISATION,27/05/2014,41101,Catering ProvisionsFood,Environmental Services,Catering,557.40
125827,3118928,YORKSHIRE PURCHASING ORGANISATION,27/05/2014,41101,Catering ProvisionsFood,Environmental Services,Catering,543.65
125827,3120418,YORKSHIRE PURCHASING ORGANISATION,27/05/2014,41101,Catering ProvisionsFood,Adult Services,OA  Firwood  Residential,551.57
125827,3118566,YORKSHIRE PURCHASING ORGANISATION,27/05/2014,41101,Catering ProvisionsFood,Environmental Services,Catering,547.97
125827,3118842,YORKSHIRE PURCHASING ORGANISATION,27/05/2014,41101,Catering ProvisionsFood,Environmental Services,Catering,616.71
125827,3118905,YORKSHIRE PURCHASING ORGANISATION,27/05/2014,41101,Catering ProvisionsFood,Environmental Services,Catering,513.77
7865,3124595,YORKSHIRE PURCHASING ORGANISATION,30/05/2014,26000,Cleaning Materials,Childrens Services,Disability Serv Avondale Street,542.75
7865,3110412,YORKSHIRE PURCHASING ORGANISATION,16/05/2014,41101,Catering ProvisionsFood,Adult Services,OA  Alderbank  Residential,512.40
7865,3115902,YORKSHIRE PURCHASING ORGANISATION,27/05/2014,41101,Catering ProvisionsFood,Adult Services,OA  Darley Court Intermediate Care,646.97
7865,3115903,YORKSHIRE PURCHASING ORGANISATION,27/05/2014,41101,Catering ProvisionsFood,Adult Services,OA  Alderbank  Residential,508.34
7865,3104409,YORKSHIRE PURCHASING ORGANISATION,09/05/2014,41101,Catering ProvisionsFood,Adult Services,OA  Darley Court Intermediate Care,525.56
1726484,3117848,YOUR LIFE YOUR WAY CIC LTD,22/05/2014,52200,Contracted Services,Adult Services,LD Purchaser Supported Housing,"12,682.00"
2598338,3113207,Zest Media UK / The Canvas Art Shop,27/05/2014,Z1051,Work in Progress Additions,Adult Services,Adult Services Balance Sheet,991.44
2582330,3125388,Zika Direct,27/05/2014,40110,Op Equip Furniture Purchase,Chief Executives,CX59500 - C.R.M. Operations,"3,119.00"
